SERVICE_CODE,ORGANISATION_UNIT,EXPENDITURE_CATEGORY,EXPENDITURE_DESCRIPTION,EXPENDITURE_CODE,NARRATIVE,DATE,TRANSATION_CODE,NET_AMOUNT,SUPPLIER_CODE,SUPPLIER_NAME,FROM_DATE,TO_DATE,FINANCIAL_PERIOD_YEAR,
P&V,POLICY & PERFORMANCE (L&E),EMPLOYEES,APPOINTMENT EXPENSES,1301,P118695-SERVICE-Sport & Active Recreation Officer advert cost,19/07/2022 00:00,265177,1004,SA0133,SOWERBY ADVERTISING AND COMMUNICATIONS,27/06/2022 00:00,31/07/2022 00:00,P04-2023,
P&V,POLICY & PERFORMANCE (L&E),EMPLOYEES,APPOINTMENT EXPENSES,1301,P118730-SERVICE-Retainer fee for Procurement officer,25/07/2022 00:00,265328,1500,RE0011,REED EMPLOYMENT PLC,27/06/2022 00:00,31/07/2022 00:00,P04-2023,
R&B,CORPORATE TRAINING,EMPLOYEES,TRAINING EXPENSES,1305,P118653-SERVICE-Desig Safeguarding Lead (Level 3) training,13/07/2022 00:00,265004,60,HI0455,HIGH SPEED TRAINING LIMITED,27/06/2022 00:00,31/07/2022 00:00,P04-2023,
,LEE VALLEY CARAVAN PARK,EMPLOYEES,TRAINING EXPENSES,1305,P118609-SERVICE-Training 01 June 2022 - Sarah Anderson,25/07/2022 00:00,264607,60,NE0218,NETGUIDES LIMITED,27/06/2022 00:00,31/07/2022 00:00,P04-2023,
R&B,NON DISTRIBUTED COSTS,EMPLOYEES,SUPERANNUATION ADDED YEARS,1310,LONDON PENSIONS FUND AUTHORITY,04/07/2022 00:00,264696,5575.02,LO0031,LONDON PENSIONS FUND AUTHORITY,27/06/2022 00:00,31/07/2022 00:00,P04-2023,
R&B,NON DISTRIBUTED COSTS,EMPLOYEES,SUPERANNUATION ADDED YEARS,1310,LONDON PENSIONS FUND AUTHORITY,04/07/2022 00:00,264709,5575.02,LO0031,LONDON PENSIONS FUND AUTHORITY,27/06/2022 00:00,31/07/2022 00:00,P04-2023,
R&B,NON DISTRIBUTED COSTS,EMPLOYEES,SUPERANNUATION ADDED YEARS,1310,LONDON PENSIONS FUND AUTHORITY,31/07/2022 00:00,265569,5575.02,LO0031,LONDON PENSIONS FUND AUTHORITY,27/06/2022 00:00,31/07/2022 00:00,P04-2023,
P&V,"ASSET PROTECTION, MAINT, DEVEL",EMPLOYEES,DRIVING LICENCE CHECKS,1335,R MERLE DRIVING LICENCE CHECK,11/07/2022 00:00,264832,6.25,FI0288,FIRST ADVANTAGE EUROPE LTD,27/06/2022 00:00,31/07/2022 00:00,P04-2023,
CEO,LEGAL SERVICES,EMPLOYEES,DRIVING LICENCE CHECKS,1335,J SMITH DRIVING LICENCE CHECK,11/07/2022 00:00,264832,6.25,FI0288,FIRST ADVANTAGE EUROPE LTD,27/06/2022 00:00,31/07/2022 00:00,P04-2023,
,LEE VALLEY CAMPSITE,EMPLOYEES,DRIVING LICENCE CHECKS,1335,DBS CHECKS,11/07/2022 00:00,264925,18,DD0119,DUE DILIGENCE CHECKING LIMITED,27/06/2022 00:00,31/07/2022 00:00,P04-2023,
,LEE VALLEY CAMPSITE,EMPLOYEES,DRIVING LICENCE CHECKS,1335,ADMIN FEE,11/07/2022 00:00,264925,18,DD0119,DUE DILIGENCE CHECKING LIMITED,27/06/2022 00:00,31/07/2022 00:00,P04-2023,
P&V,YOUTH AND SCHOOLS,EMPLOYEES,DRIVING LICENCE CHECKS,1335,N CROFT DRIVING LICENCE CHECK,11/07/2022 00:00,264832,6.25,FI0288,FIRST ADVANTAGE EUROPE LTD,27/06/2022 00:00,31/07/2022 00:00,P04-2023,
P&V,YOUTH AND SCHOOLS,EMPLOYEES,DRIVING LICENCE CHECKS,1335,ADMIN FEE,11/07/2022 00:00,264925,56,DD0119,DUE DILIGENCE CHECKING LIMITED,27/06/2022 00:00,31/07/2022 00:00,P04-2023,
P&V,YOUTH AND SCHOOLS,EMPLOYEES,DRIVING LICENCE CHECKS,1335,DBS CHECKS,11/07/2022 00:00,264925,36,DD0119,DUE DILIGENCE CHECKING LIMITED,27/06/2022 00:00,31/07/2022 00:00,P04-2023,
P&V,POLICY & PERFORMANCE (L&E),EMPLOYEES,DRIVING LICENCE CHECKS,1335,DBS CHECKS,11/07/2022 00:00,264925,18,DD0119,DUE DILIGENCE CHECKING LIMITED,27/06/2022 00:00,31/07/2022 00:00,P04-2023,
P&V,POLICY & PERFORMANCE (L&E),EMPLOYEES,DRIVING LICENCE CHECKS,1335,ADMIN FEE,11/07/2022 00:00,264925,18,DD0119,DUE DILIGENCE CHECKING LIMITED,27/06/2022 00:00,31/07/2022 00:00,P04-2023,
,LV LEISURE CENTRE CAMPSITE,EMPLOYEES,DRIVING LICENCE CHECKS,1335,DBS CHECKS,11/07/2022 00:00,264925,18,DD0119,DUE DILIGENCE CHECKING LIMITED,27/06/2022 00:00,31/07/2022 00:00,P04-2023,
,LV LEISURE CENTRE CAMPSITE,EMPLOYEES,DRIVING LICENCE CHECKS,1335,ADMIN FEE,11/07/2022 00:00,264925,18,DD0119,DUE DILIGENCE CHECKING LIMITED,27/06/2022 00:00,31/07/2022 00:00,P04-2023,
,LV LEISURE CENTRE GOLF COURSE,EMPLOYEES,DRIVING LICENCE CHECKS,1335,DBS CHECKS,11/07/2022 00:00,264925,18,DD0119,DUE DILIGENCE CHECKING LIMITED,27/06/2022 00:00,31/07/2022 00:00,P04-2023,
,LV LEISURE CENTRE GOLF COURSE,EMPLOYEES,DRIVING LICENCE CHECKS,1335,ADMIN FEE,11/07/2022 00:00,264925,18,DD0119,DUE DILIGENCE CHECKING LIMITED,27/06/2022 00:00,31/07/2022 00:00,P04-2023,
R&B,CORPORATE TRAINING,EMPLOYEES,APPRENTICE LEVY,1390,PAYE,19/07/2022 00:00,265150,665,HM0368,HMRC,27/06/2022 00:00,31/07/2022 00:00,P04-2023,
CEO,RESIDENTIAL ACCOMMODATION,PREMISES RELATED EXPENDITURE,SCHEDULED GROUND MAINTENANCE,2111,"P118731-SERVICE-Gate House, Myddelton House - Boiler Service",25/07/2022 00:00,265129,121.5,GI0137,R & P GIBBS LIMITED,27/06/2022 00:00,31/07/2022 00:00,P04-2023,
CEO,LVLC SERVICE CHARGE,PREMISES RELATED EXPENDITURE,SCHEDULED GROUND MAINTENANCE,2111,GLENDALE GROUNDS MANAGEMENT LI,05/07/2022 00:00,264703,108.26,GL0214,GLENDALE GROUNDS MANAGEMENT LIMITED,27/06/2022 00:00,31/07/2022 00:00,P04-2023,
CEO,LVLC SERVICE CHARGE,PREMISES RELATED EXPENDITURE,SCHEDULED GROUND MAINTENANCE,2111,GLENDALE GROUNDS MANAGEMENT LI,05/07/2022 00:00,264703,2968.25,GL0214,GLENDALE GROUNDS MANAGEMENT LIMITED,27/06/2022 00:00,31/07/2022 00:00,P04-2023,
CEO,LVLC SERVICE CHARGE,PREMISES RELATED EXPENDITURE,SCHEDULED GROUND MAINTENANCE,2111,P118244-SERVICE-LVAC Car Park Litter Clear Up,11/07/2022 00:00,264704,248.49,GL0214,GLENDALE GROUNDS MANAGEMENT LIMITED,27/06/2022 00:00,31/07/2022 00:00,P04-2023,
CEO,LVLC SERVICE CHARGE,PREMISES RELATED EXPENDITURE,SCHEDULED GROUND MAINTENANCE,2111,GLENDALE GROUNDS MANAGEMENT LI,11/07/2022 00:00,264812,364.26,GL0214,GLENDALE GROUNDS MANAGEMENT LIMITED,27/06/2022 00:00,31/07/2022 00:00,P04-2023,
P&V,MYDDELTON HOUSE,PREMISES RELATED EXPENDITURE,CONTRACT CLEANING,2120,P117626-SERVICE-Contract Cleaning,04/07/2022 00:00,264682,2335.32,BR0632,BRITANNIA SERVICES GROUP LTD,27/06/2022 00:00,31/07/2022 00:00,P04-2023,
P&V,MYDDELTON HOUSE,PREMISES RELATED EXPENDITURE,CONTRACT CLEANING,2120,P117626-SERVICE-Contract Cleaning,31/07/2022 00:00,265551,2335.32,BR0632,BRITANNIA SERVICES GROUP LTD,27/06/2022 00:00,31/07/2022 00:00,P04-2023,
,LEE VALLEY WATERWORKS CENTRE,PREMISES RELATED EXPENDITURE,CONTRACT CLEANING,2120,P118242-SERVICE-Cleaning WaterWorks Centre,04/07/2022 00:00,264680,379.2,BR0632,BRITANNIA SERVICES GROUP LTD,27/06/2022 00:00,31/07/2022 00:00,P04-2023,
,LEE VALLEY WATERWORKS CENTRE,PREMISES RELATED EXPENDITURE,CONTRACT CLEANING,2120,P118242-SERVICE-Cleaning WaterWorks Centre,31/07/2022 00:00,265553,758.4,BR0632,BRITANNIA SERVICES GROUP LTD,27/06/2022 00:00,31/07/2022 00:00,P04-2023,
,LEE VALLEY CAMPSITE,PREMISES RELATED EXPENDITURE,CONTRACT CLEANING,2120,P118631-SERVICE-Skip collection JUNE 22,11/07/2022 00:00,264821,633.53,CL0037,VEOLIA ES (UK) LTD,27/06/2022 00:00,31/07/2022 00:00,P04-2023,
,LEE VALLEY CAMPSITE,PREMISES RELATED EXPENDITURE,CONTRACT CLEANING,2120,P118628-SERVICE-site cleaning june 22,20/07/2022 00:00,264950,3023,LI0305,LIMPIAR CLEANING,27/06/2022 00:00,31/07/2022 00:00,P04-2023,
,LEE VALLEY CAMPSITE,PREMISES RELATED EXPENDITURE,CONTRACT CLEANING,2120,P118742-SERVICE-26/07/22 - 25/08/22,25/07/2022 00:00,265000,84.71,IN0012,INITIAL WASHROOM HYGIENE,27/06/2022 00:00,31/07/2022 00:00,P04-2023,
,LEE VALLEY CARAVAN PARK,PREMISES RELATED EXPENDITURE,CONTRACT CLEANING,2120,P118617-SERVICE-Linnen cleaning,11/07/2022 00:00,264668,750.81,JO0168,JOHNSONS STALBRIDGE LINEN SERVICES,27/06/2022 00:00,31/07/2022 00:00,P04-2023,
,LEE VALLEY CARAVAN PARK,PREMISES RELATED EXPENDITURE,CONTRACT CLEANING,2120,P118619-SERVICE-Linnen cleaning,11/07/2022 00:00,264669,363.75,JO0168,JOHNSONS STALBRIDGE LINEN SERVICES,27/06/2022 00:00,31/07/2022 00:00,P04-2023,
,LEE VALLEY CARAVAN PARK,PREMISES RELATED EXPENDITURE,CONTRACT CLEANING,2120,P118625-SERVICE-Daily cleaning,19/07/2022 00:00,264951,3041,LI0305,LIMPIAR CLEANING,27/06/2022 00:00,31/07/2022 00:00,P04-2023,
,LEE VALLEY CARAVAN PARK,PREMISES RELATED EXPENDITURE,CONTRACT CLEANING,2120,P118727-SERVICE-Monthly hygiene checks,19/07/2022 00:00,265182,93.28,IN0012,INITIAL WASHROOM HYGIENE,27/06/2022 00:00,31/07/2022 00:00,P04-2023,
P&V,NORTH AREA RANGERS,PREMISES RELATED EXPENDITURE,CONTRACT CLEANING,2120,P118094-SERVICE-Cleaning,13/07/2022 00:00,264681,179.64,BR0632,BRITANNIA SERVICES GROUP LTD,27/06/2022 00:00,31/07/2022 00:00,P04-2023,
P&V,NORTH AREA RANGERS,PREMISES RELATED EXPENDITURE,CONTRACT CLEANING,2120,GLENDALE GROUNDS MANAGEMENT LI,05/07/2022 00:00,264703,395.98,GL0214,GLENDALE GROUNDS MANAGEMENT LIMITED,27/06/2022 00:00,31/07/2022 00:00,P04-2023,
P&V,WILDLIFE DISCOVERY CENTRE,PREMISES RELATED EXPENDITURE,CONTRACT CLEANING,2120,P118094-SERVICE-Cleaning,31/07/2022 00:00,265554,359.28,BR0632,BRITANNIA SERVICES GROUP LTD,27/06/2022 00:00,31/07/2022 00:00,P04-2023,
P&V,GUNPOWDER PARK,PREMISES RELATED EXPENDITURE,CONTRACT CLEANING,2120,GLENDALE GROUNDS MANAGEMENT LI,05/07/2022 00:00,264703,542.17,GL0214,GLENDALE GROUNDS MANAGEMENT LIMITED,27/06/2022 00:00,31/07/2022 00:00,P04-2023,
P&V,RIVER LEE COUNTRY PARK,PREMISES RELATED EXPENDITURE,CONTRACT CLEANING,2120,GLENDALE GROUNDS MANAGEMENT LI,05/07/2022 00:00,264703,1084.34,GL0214,GLENDALE GROUNDS MANAGEMENT LIMITED,27/06/2022 00:00,31/07/2022 00:00,P04-2023,
P&V,MYDDLETON HSE HERITAGE CENTRE,PREMISES RELATED EXPENDITURE,CLEANING CONTRACT,2121,P118226-SERVICE-Cleaning Bowles Tea Room (Visitor Centre),04/07/2022 00:00,264683,778.44,BR0632,BRITANNIA SERVICES GROUP LTD,27/06/2022 00:00,31/07/2022 00:00,P04-2023,
P&V,MYDDLETON HSE HERITAGE CENTRE,PREMISES RELATED EXPENDITURE,CLEANING CONTRACT,2121,P118226-SERVICE-Cleaning Bowles Tea Room (Visitor Centre),31/07/2022 00:00,265552,778.44,BR0632,BRITANNIA SERVICES GROUP LTD,27/06/2022 00:00,31/07/2022 00:00,P04-2023,
,LEE VALLEY MARINA STANSTEAD,PREMISES RELATED EXPENDITURE,GM MAIN CONTRACT SCHEDULED,2141,GLENDALE GROUNDS MANAGEMENT LI,05/07/2022 00:00,264703,378.42,GL0214,GLENDALE GROUNDS MANAGEMENT LIMITED,27/06/2022 00:00,31/07/2022 00:00,P04-2023,
,LEE VALLEY MARINA STANSTEAD,PREMISES RELATED EXPENDITURE,GM MAIN CONTRACT SCHEDULED,2141,GLENDALE GROUNDS MANAGEMENT LI,11/07/2022 00:00,264812,280.23,GL0214,GLENDALE GROUNDS MANAGEMENT LIMITED,27/06/2022 00:00,31/07/2022 00:00,P04-2023,
,LEE VALLEY WATERWORKS CENTRE,PREMISES RELATED EXPENDITURE,GM MAIN CONTRACT SCHEDULED,2141,GLENDALE GROUNDS MANAGEMENT LI,05/07/2022 00:00,264703,260.88,GL0214,GLENDALE GROUNDS MANAGEMENT LIMITED,27/06/2022 00:00,31/07/2022 00:00,P04-2023,
,LEE VALLEY WATERWORKS CENTRE,PREMISES RELATED EXPENDITURE,GM MAIN CONTRACT SCHEDULED,2141,GLENDALE GROUNDS MANAGEMENT LI,05/07/2022 00:00,264703,595.05,GL0214,GLENDALE GROUNDS MANAGEMENT LIMITED,27/06/2022 00:00,31/07/2022 00:00,P04-2023,
,LEE VALLEY WATERWORKS CENTRE,PREMISES RELATED EXPENDITURE,GM MAIN CONTRACT SCHEDULED,2141,GLENDALE GROUNDS MANAGEMENT LI,11/07/2022 00:00,264812,374.02,GL0214,GLENDALE GROUNDS MANAGEMENT LIMITED,27/06/2022 00:00,31/07/2022 00:00,P04-2023,
,LEE VALLEY FARM HAYES HILL,PREMISES RELATED EXPENDITURE,GM MAIN CONTRACT SCHEDULED,2141,GLENDALE GROUNDS MANAGEMENT LI,05/07/2022 00:00,264703,306,GL0214,GLENDALE GROUNDS MANAGEMENT LIMITED,27/06/2022 00:00,31/07/2022 00:00,P04-2023,
,LEE VALLEY FARM HAYES HILL,PREMISES RELATED EXPENDITURE,GM MAIN CONTRACT SCHEDULED,2141,GLENDALE GROUNDS MANAGEMENT LI,11/07/2022 00:00,264812,121.47,GL0214,GLENDALE GROUNDS MANAGEMENT LIMITED,27/06/2022 00:00,31/07/2022 00:00,P04-2023,
P&V,EAST INDIA DOCK AND BOW CREEK,PREMISES RELATED EXPENDITURE,GM MAIN CONTRACT SCHEDULED,2141,GLENDALE GROUNDS MANAGEMENT LI,05/07/2022 00:00,264703,834.36,GL0214,GLENDALE GROUNDS MANAGEMENT LIMITED,27/06/2022 00:00,31/07/2022 00:00,P04-2023,
P&V,EAST INDIA DOCK AND BOW CREEK,PREMISES RELATED EXPENDITURE,GM MAIN CONTRACT SCHEDULED,2141,GLENDALE GROUNDS MANAGEMENT LI,05/07/2022 00:00,264703,931.76,GL0214,GLENDALE GROUNDS MANAGEMENT LIMITED,27/06/2022 00:00,31/07/2022 00:00,P04-2023,
P&V,EAST INDIA DOCK AND BOW CREEK,PREMISES RELATED EXPENDITURE,GM MAIN CONTRACT SCHEDULED,2141,GLENDALE GROUNDS MANAGEMENT LI,11/07/2022 00:00,264812,883.9,GL0214,GLENDALE GROUNDS MANAGEMENT LIMITED,27/06/2022 00:00,31/07/2022 00:00,P04-2023,
P&V,NORTH AREA RANGERS,PREMISES RELATED EXPENDITURE,GM MAIN CONTRACT SCHEDULED,2141,GLENDALE GROUNDS MANAGEMENT LI,05/07/2022 00:00,264703,5610.98,GL0214,GLENDALE GROUNDS MANAGEMENT LIMITED,27/06/2022 00:00,31/07/2022 00:00,P04-2023,
P&V,NORTH AREA RANGERS,PREMISES RELATED EXPENDITURE,GM MAIN CONTRACT SCHEDULED,2141,GLENDALE GROUNDS MANAGEMENT LI,11/07/2022 00:00,264812,2009.56,GL0214,GLENDALE GROUNDS MANAGEMENT LIMITED,27/06/2022 00:00,31/07/2022 00:00,P04-2023,
P&V,SOUTH AREA RANGERS,PREMISES RELATED EXPENDITURE,GM MAIN CONTRACT SCHEDULED,2141,GLENDALE GROUNDS MANAGEMENT LI,05/07/2022 00:00,264703,6408.88,GL0214,GLENDALE GROUNDS MANAGEMENT LIMITED,27/06/2022 00:00,31/07/2022 00:00,P04-2023,
P&V,SOUTH AREA RANGERS,PREMISES RELATED EXPENDITURE,GM MAIN CONTRACT SCHEDULED,2141,GLENDALE GROUNDS MANAGEMENT LI,05/07/2022 00:00,264703,745.41,GL0214,GLENDALE GROUNDS MANAGEMENT LIMITED,27/06/2022 00:00,31/07/2022 00:00,P04-2023,
P&V,SOUTH AREA RANGERS,PREMISES RELATED EXPENDITURE,GM MAIN CONTRACT SCHEDULED,2141,GLENDALE GROUNDS MANAGEMENT LI,11/07/2022 00:00,264812,3033.19,GL0214,GLENDALE GROUNDS MANAGEMENT LIMITED,27/06/2022 00:00,31/07/2022 00:00,P04-2023,
P&V,ABBEY GARDENS,PREMISES RELATED EXPENDITURE,GM MAIN CONTRACT SCHEDULED,2141,GLENDALE GROUNDS MANAGEMENT LI,05/07/2022 00:00,264703,2842.32,GL0214,GLENDALE GROUNDS MANAGEMENT LIMITED,27/06/2022 00:00,31/07/2022 00:00,P04-2023,
P&V,ABBEY GARDENS,PREMISES RELATED EXPENDITURE,GM MAIN CONTRACT SCHEDULED,2141,GLENDALE GROUNDS MANAGEMENT LI,11/07/2022 00:00,264812,686.48,GL0214,GLENDALE GROUNDS MANAGEMENT LIMITED,27/06/2022 00:00,31/07/2022 00:00,P04-2023,
P&V,GUNPOWDER PARK,PREMISES RELATED EXPENDITURE,GM MAIN CONTRACT SCHEDULED,2141,GLENDALE GROUNDS MANAGEMENT LI,05/07/2022 00:00,264703,2798.45,GL0214,GLENDALE GROUNDS MANAGEMENT LIMITED,27/06/2022 00:00,31/07/2022 00:00,P04-2023,
P&V,GUNPOWDER PARK,PREMISES RELATED EXPENDITURE,GM MAIN CONTRACT SCHEDULED,2141,GLENDALE GROUNDS MANAGEMENT LI,11/07/2022 00:00,264812,1372.72,GL0214,GLENDALE GROUNDS MANAGEMENT LIMITED,27/06/2022 00:00,31/07/2022 00:00,P04-2023,
P&V,RIVER LEE COUNTRY PARK,PREMISES RELATED EXPENDITURE,GM MAIN CONTRACT SCHEDULED,2141,GLENDALE GROUNDS MANAGEMENT LI,05/07/2022 00:00,264703,2608.92,GL0214,GLENDALE GROUNDS MANAGEMENT LIMITED,27/06/2022 00:00,31/07/2022 00:00,P04-2023,
P&V,RIVER LEE COUNTRY PARK,PREMISES RELATED EXPENDITURE,GM MAIN CONTRACT SCHEDULED,2141,GLENDALE GROUNDS MANAGEMENT LI,05/07/2022 00:00,264703,16359.56,GL0214,GLENDALE GROUNDS MANAGEMENT LIMITED,27/06/2022 00:00,31/07/2022 00:00,P04-2023,
P&V,RIVER LEE COUNTRY PARK,PREMISES RELATED EXPENDITURE,GM MAIN CONTRACT SCHEDULED,2141,GLENDALE GROUNDS MANAGEMENT LI,11/07/2022 00:00,264812,9129.01,GL0214,GLENDALE GROUNDS MANAGEMENT LIMITED,27/06/2022 00:00,31/07/2022 00:00,P04-2023,
,LEE VALLEY VELOPARK,PREMISES RELATED EXPENDITURE,GM MAIN CONTRACT SCHEDULED,2141,GLENDALE GROUNDS MANAGEMENT LI,05/07/2022 00:00,264703,7087.23,GL0214,GLENDALE GROUNDS MANAGEMENT LIMITED,27/06/2022 00:00,31/07/2022 00:00,P04-2023,
,LEE VALLEY VELOPARK,PREMISES RELATED EXPENDITURE,GM MAIN CONTRACT SCHEDULED,2141,GLENDALE GROUNDS MANAGEMENT LI,11/07/2022 00:00,264812,535.11,GL0214,GLENDALE GROUNDS MANAGEMENT LIMITED,27/06/2022 00:00,31/07/2022 00:00,P04-2023,
,LV HOCKEY AND TENNIS CENTRE,PREMISES RELATED EXPENDITURE,GM MAIN CONTRACT SCHEDULED,2141,GLENDALE GROUNDS MANAGEMENT LI,05/07/2022 00:00,264703,4358.07,GL0214,GLENDALE GROUNDS MANAGEMENT LIMITED,27/06/2022 00:00,31/07/2022 00:00,P04-2023,
,LV HOCKEY AND TENNIS CENTRE,PREMISES RELATED EXPENDITURE,GM MAIN CONTRACT SCHEDULED,2141,GLENDALE GROUNDS MANAGEMENT LI,11/07/2022 00:00,264812,214.27,GL0214,GLENDALE GROUNDS MANAGEMENT LIMITED,27/06/2022 00:00,31/07/2022 00:00,P04-2023,
P&V,THREE MILLS,PREMISES RELATED EXPENDITURE,GM MAIN CONTRACT SCHEDULED,2141,GLENDALE GROUNDS MANAGEMENT LI,05/07/2022 00:00,264703,1593.99,GL0214,GLENDALE GROUNDS MANAGEMENT LIMITED,27/06/2022 00:00,31/07/2022 00:00,P04-2023,
P&V,THREE MILLS,PREMISES RELATED EXPENDITURE,GM MAIN CONTRACT SCHEDULED,2141,GLENDALE GROUNDS MANAGEMENT LI,11/07/2022 00:00,264812,583.96,GL0214,GLENDALE GROUNDS MANAGEMENT LIMITED,27/06/2022 00:00,31/07/2022 00:00,P04-2023,
,LEE VALLEY RIDING CENTRE,PREMISES RELATED EXPENDITURE,GM MAIN CONTRACT SCHEDULED,2141,GLENDALE GROUNDS MANAGEMENT LI,05/07/2022 00:00,264703,462.16,GL0214,GLENDALE GROUNDS MANAGEMENT LIMITED,27/06/2022 00:00,31/07/2022 00:00,P04-2023,
,LEE VALLEY RIDING CENTRE,PREMISES RELATED EXPENDITURE,GM MAIN CONTRACT SCHEDULED,2141,GLENDALE GROUNDS MANAGEMENT LI,11/07/2022 00:00,264812,193.36,GL0214,GLENDALE GROUNDS MANAGEMENT LIMITED,27/06/2022 00:00,31/07/2022 00:00,P04-2023,
,LEE VALLEY ICE CENTRE,PREMISES RELATED EXPENDITURE,GM MAIN CONTRACT SCHEDULED,2141,GLENDALE GROUNDS MANAGEMENT LI,05/07/2022 00:00,264703,329.82,GL0214,GLENDALE GROUNDS MANAGEMENT LIMITED,27/06/2022 00:00,31/07/2022 00:00,P04-2023,
P&V,FORMER LV LIDO SITE,PREMISES RELATED EXPENDITURE,GM MAIN CONTRACT SCHEDULED,2141,GLENDALE GROUNDS MANAGEMENT LI,05/07/2022 00:00,264703,1091.9,GL0214,GLENDALE GROUNDS MANAGEMENT LIMITED,27/06/2022 00:00,31/07/2022 00:00,P04-2023,
P&V,FORMER LV LIDO SITE,PREMISES RELATED EXPENDITURE,GM MAIN CONTRACT SCHEDULED,2141,GLENDALE GROUNDS MANAGEMENT LI,11/07/2022 00:00,264812,402.89,GL0214,GLENDALE GROUNDS MANAGEMENT LIMITED,27/06/2022 00:00,31/07/2022 00:00,P04-2023,
,LEE VALLEY ATHLETICS CENTRE,PREMISES RELATED EXPENDITURE,GM MAIN CONTRACT SCHEDULED,2141,GLENDALE GROUNDS MANAGEMENT LI,05/07/2022 00:00,264703,655.21,GL0214,GLENDALE GROUNDS MANAGEMENT LIMITED,27/06/2022 00:00,31/07/2022 00:00,P04-2023,
,LEE VALLEY ATHLETICS CENTRE,PREMISES RELATED EXPENDITURE,GM MAIN CONTRACT SCHEDULED,2141,GLENDALE GROUNDS MANAGEMENT LI,11/07/2022 00:00,264812,420.47,GL0214,GLENDALE GROUNDS MANAGEMENT LIMITED,27/06/2022 00:00,31/07/2022 00:00,P04-2023,
,LEE VALLEY WHITE WATER CENTRE,PREMISES RELATED EXPENDITURE,GM MAIN CONTRACT SCHEDULED,2141,GLENDALE GROUNDS MANAGEMENT LI,05/07/2022 00:00,264703,2602.94,GL0214,GLENDALE GROUNDS MANAGEMENT LIMITED,27/06/2022 00:00,31/07/2022 00:00,P04-2023,
,LEE VALLEY WHITE WATER CENTRE,PREMISES RELATED EXPENDITURE,GM MAIN CONTRACT SCHEDULED,2141,GLENDALE GROUNDS MANAGEMENT LI,11/07/2022 00:00,264812,1500.41,GL0214,GLENDALE GROUNDS MANAGEMENT LIMITED,27/06/2022 00:00,31/07/2022 00:00,P04-2023,
,LEE VALLEY WATERWORKS CENTRE,PREMISES RELATED EXPENDITURE,GM HORTICULTURE SCHEDULED,2143,GLENDALE GROUNDS MANAGEMENT LI,05/07/2022 00:00,264703,166.85,GL0214,GLENDALE GROUNDS MANAGEMENT LIMITED,27/06/2022 00:00,31/07/2022 00:00,P04-2023,
P&V,NORTH AREA RANGERS,PREMISES RELATED EXPENDITURE,GM HORTICULTURE SCHEDULED,2143,GLENDALE GROUNDS MANAGEMENT LI,05/07/2022 00:00,264703,248.06,GL0214,GLENDALE GROUNDS MANAGEMENT LIMITED,27/06/2022 00:00,31/07/2022 00:00,P04-2023,
P&V,SOUTH AREA RANGERS,PREMISES RELATED EXPENDITURE,GM HORTICULTURE SCHEDULED,2143,GLENDALE GROUNDS MANAGEMENT LI,05/07/2022 00:00,264703,142.22,GL0214,GLENDALE GROUNDS MANAGEMENT LIMITED,27/06/2022 00:00,31/07/2022 00:00,P04-2023,
P&V,ABBEY GARDENS,PREMISES RELATED EXPENDITURE,GM HORTICULTURE SCHEDULED,2143,GLENDALE GROUNDS MANAGEMENT LI,05/07/2022 00:00,264703,1938.16,GL0214,GLENDALE GROUNDS MANAGEMENT LIMITED,27/06/2022 00:00,31/07/2022 00:00,P04-2023,
P&V,GUNPOWDER PARK,PREMISES RELATED EXPENDITURE,GM HORTICULTURE SCHEDULED,2143,GLENDALE GROUNDS MANAGEMENT LI,05/07/2022 00:00,264703,254.42,GL0214,GLENDALE GROUNDS MANAGEMENT LIMITED,27/06/2022 00:00,31/07/2022 00:00,P04-2023,
P&V,RIVER LEE COUNTRY PARK,PREMISES RELATED EXPENDITURE,GM HORTICULTURE SCHEDULED,2143,GLENDALE GROUNDS MANAGEMENT LI,05/07/2022 00:00,264703,132.03,GL0214,GLENDALE GROUNDS MANAGEMENT LIMITED,27/06/2022 00:00,31/07/2022 00:00,P04-2023,
,LEE VALLEY VELOPARK,PREMISES RELATED EXPENDITURE,GM HORTICULTURE SCHEDULED,2143,GLENDALE GROUNDS MANAGEMENT LI,05/07/2022 00:00,264703,1131.69,GL0214,GLENDALE GROUNDS MANAGEMENT LIMITED,27/06/2022 00:00,31/07/2022 00:00,P04-2023,
,LV HOCKEY AND TENNIS CENTRE,PREMISES RELATED EXPENDITURE,GM HORTICULTURE SCHEDULED,2143,GLENDALE GROUNDS MANAGEMENT LI,05/07/2022 00:00,264703,1629.71,GL0214,GLENDALE GROUNDS MANAGEMENT LIMITED,27/06/2022 00:00,31/07/2022 00:00,P04-2023,
P&V,THREE MILLS,PREMISES RELATED EXPENDITURE,GM HORTICULTURE SCHEDULED,2143,GLENDALE GROUNDS MANAGEMENT LI,05/07/2022 00:00,264703,52.89,GL0214,GLENDALE GROUNDS MANAGEMENT LIMITED,27/06/2022 00:00,31/07/2022 00:00,P04-2023,
,LEE VALLEY RIDING CENTRE,PREMISES RELATED EXPENDITURE,GM HORTICULTURE SCHEDULED,2143,GLENDALE GROUNDS MANAGEMENT LI,05/07/2022 00:00,264703,13.22,GL0214,GLENDALE GROUNDS MANAGEMENT LIMITED,27/06/2022 00:00,31/07/2022 00:00,P04-2023,
P&V,FORMER LV LIDO SITE,PREMISES RELATED EXPENDITURE,GM HORTICULTURE SCHEDULED,2143,GLENDALE GROUNDS MANAGEMENT LI,05/07/2022 00:00,264703,12.61,GL0214,GLENDALE GROUNDS MANAGEMENT LIMITED,27/06/2022 00:00,31/07/2022 00:00,P04-2023,
,LEE VALLEY WHITE WATER CENTRE,PREMISES RELATED EXPENDITURE,GM HORTICULTURE SCHEDULED,2143,GLENDALE GROUNDS MANAGEMENT LI,05/07/2022 00:00,264703,28.88,GL0214,GLENDALE GROUNDS MANAGEMENT LIMITED,27/06/2022 00:00,31/07/2022 00:00,P04-2023,
P&V,GUNPOWDER PARK,PREMISES RELATED EXPENDITURE,GM ARBORICULTURE UNSCHEDULED,2146,P118549-SERVICE-Tree Works at Gunpowder Park,04/07/2022 00:00,264708,200,PA0222,PARKIN & PARKER TREE SPECIALISTS,27/06/2022 00:00,31/07/2022 00:00,P04-2023,
P&V,GUNPOWDER PARK,PREMISES RELATED EXPENDITURE,GM ARBORICULTURE UNSCHEDULED,2146,P118573-SERVICE-Tree Works at Gunpowder Park,13/07/2022 00:00,264990,300,PA0222,PARKIN & PARKER TREE SPECIALISTS,27/06/2022 00:00,31/07/2022 00:00,P04-2023,
P&V,SOUTH AREA RANGERS,PREMISES RELATED EXPENDITURE,GM NON MAIN CONT UNSCHEDULED,2147,P118613-SERVICE-RORO Skip - Velo Park,11/07/2022 00:00,264670,665.72,GB0239,GBN SERVICES LTD,27/06/2022 00:00,31/07/2022 00:00,P04-2023,
P&V,SOUTH AREA RANGERS,PREMISES RELATED EXPENDITURE,GM NON MAIN CONT UNSCHEDULED,2147,P118692-SERVICE-RORO Skip - Velo Park,19/07/2022 00:00,265011,481.58,GB0239,GBN SERVICES LTD,27/06/2022 00:00,31/07/2022 00:00,P04-2023,
P&V,SOUTH AREA RANGERS,PREMISES RELATED EXPENDITURE,GM NON MAIN CONT UNSCHEDULED,2147,P118827-SERVICE-Removal of Living Wall at Queen Elizabeth Oly,31/07/2022 00:00,265596,5800,JO0019,R G JOYCE,27/06/2022 00:00,31/07/2022 00:00,P04-2023,
,LEE VALLEY MARINA SPRINGFIELD,PREMISES RELATED EXPENDITURE,GENERAL WASTE,2211,"P117556-SERVICE-General Waste & Recyling for April,May,June",11/07/2022 00:00,264824,1177.5,CL0037,VEOLIA ES (UK) LTD,27/06/2022 00:00,31/07/2022 00:00,P04-2023,
,LEE VALLEY MARINA STANSTEAD,PREMISES RELATED EXPENDITURE,GENERAL WASTE,2211,P117691-SERVICE-Annual useage Veolia -bins 4 Rye and Stan Mar,11/07/2022 00:00,264818,13.47,CL0037,VEOLIA ES (UK) LTD,27/06/2022 00:00,31/07/2022 00:00,P04-2023,
,LEE VALLEY MARINA STANSTEAD,PREMISES RELATED EXPENDITURE,GENERAL WASTE,2211,P117691-SERVICE-Annual useage Veolia -bins 4 Rye and Stan Mar,12/07/2022 00:00,264819,672,CL0037,VEOLIA ES (UK) LTD,27/06/2022 00:00,31/07/2022 00:00,P04-2023,
,LEE VALLEY MARINA STANSTEAD,PREMISES RELATED EXPENDITURE,GENERAL WASTE,2211,P117691-SERVICE-Annual useage Veolia -bins 4 Rye and Stan Mar,11/07/2022 00:00,264820,204.24,CL0037,VEOLIA ES (UK) LTD,27/06/2022 00:00,31/07/2022 00:00,P04-2023,
P&V,LEE VALLEY FARM HOLYFIELDHALL,PREMISES RELATED EXPENDITURE,GENERAL WASTE,2211,P118642-SERVICE-Waste for Incineration,13/07/2022 00:00,264997,334.99,BY0049,BYWATERS (LEYTON) LTD,27/06/2022 00:00,31/07/2022 00:00,P04-2023,
,LEE VALLEY CARAVAN PARK,PREMISES RELATED EXPENDITURE,GENERAL WASTE,2211,P118623-SERVICE-Monthly waste collection,11/07/2022 00:00,264822,653.71,CL0037,VEOLIA ES (UK) LTD,27/06/2022 00:00,31/07/2022 00:00,P04-2023,
P&V,SOUTH AREA RANGERS,PREMISES RELATED EXPENDITURE,GENERAL WASTE,2211,P117695-SERVICE-Skip at WaterWorks Centre,25/07/2022 00:00,265213,308,GB0239,GBN SERVICES LTD,27/06/2022 00:00,31/07/2022 00:00,P04-2023,
P&V,SOUTH AREA RANGERS,PREMISES RELATED EXPENDITURE,GENERAL WASTE,2211,P118824-SERVICE-Litter Clearance at Waterworks Field,31/07/2022 00:00,265595,600,JO0019,R G JOYCE,27/06/2022 00:00,31/07/2022 00:00,P04-2023,
P&V,RIVER LEE COUNTRY PARK,PREMISES RELATED EXPENDITURE,GENERAL WASTE,2211,P117498-SERVICE-12yd General Rubbish Skip at Holyfield Hall F,05/07/2022 00:00,264723,308,GB0239,GBN SERVICES LTD,27/06/2022 00:00,31/07/2022 00:00,P04-2023,
P&V,RIVER LEE COUNTRY PARK,PREMISES RELATED EXPENDITURE,GENERAL WASTE,2211,P117498-SERVICE-12yd General Rubbish Skip at Holyfield Hall F,25/07/2022 00:00,265199,308,GB0239,GBN SERVICES LTD,27/06/2022 00:00,31/07/2022 00:00,P04-2023,
P&V,RIVER LEE COUNTRY PARK,PREMISES RELATED EXPENDITURE,GENERAL WASTE,2211,P117498-SERVICE-12yd General Rubbish Skip at Holyfield Hall F,25/07/2022 00:00,265332,308,GB0239,GBN SERVICES LTD,27/06/2022 00:00,31/07/2022 00:00,P04-2023,
,LEE VALLEY VELOPARK,PREMISES RELATED EXPENDITURE,GENERAL WASTE,2211,P117340-SERVICE-waste removal,06/07/2022 00:00,264797,568.98,CL0037,VEOLIA ES (UK) LTD,27/06/2022 00:00,31/07/2022 00:00,P04-2023,
,LEE VALLEY VELOPARK,PREMISES RELATED EXPENDITURE,GENERAL WASTE,2211,P117340-SERVICE-waste removal,06/07/2022 00:00,264798,-568.98,CL0037,VEOLIA ES (UK) LTD,27/06/2022 00:00,31/07/2022 00:00,P04-2023,
,LEE VALLEY VELOPARK,PREMISES RELATED EXPENDITURE,GENERAL WASTE,2211,P117340-SERVICE-waste removal,06/07/2022 00:00,264801,658.24,CL0037,VEOLIA ES (UK) LTD,27/06/2022 00:00,31/07/2022 00:00,P04-2023,
,LEE VALLEY VELOPARK,PREMISES RELATED EXPENDITURE,GENERAL WASTE,2211,P117340-SERVICE-waste removal,06/07/2022 00:00,264802,-658.24,CL0037,VEOLIA ES (UK) LTD,27/06/2022 00:00,31/07/2022 00:00,P04-2023,
,LEE VALLEY VELOPARK,PREMISES RELATED EXPENDITURE,GENERAL WASTE,2211,P116392-SERVICE-Sanitary Waste and Products,19/07/2022 00:00,265134,-285.27,PE0015,PHS GROUP PLC,27/06/2022 00:00,31/07/2022 00:00,P04-2023,
,LEE VALLEY VELOPARK,PREMISES RELATED EXPENDITURE,GENERAL WASTE,2211,P115506-SERVICE-Waste Disosal and Sanitary Products,19/07/2022 00:00,265134,-37.83,PE0015,PHS GROUP PLC,27/06/2022 00:00,31/07/2022 00:00,P04-2023,
,LEE VALLEY VELOPARK,PREMISES RELATED EXPENDITURE,GENERAL WASTE,2211,P115971-SERVICE-Waste Collection and Products,19/07/2022 00:00,265134,-285.27,PE0015,PHS GROUP PLC,27/06/2022 00:00,31/07/2022 00:00,P04-2023,
,LEE VALLEY VELOPARK,PREMISES RELATED EXPENDITURE,GENERAL WASTE,2211,P116392-SERVICE-Sanitary Waste and Products,19/07/2022 00:00,265135,285.77,PE0015,PHS GROUP PLC,27/06/2022 00:00,31/07/2022 00:00,P04-2023,
,LEE VALLEY VELOPARK,PREMISES RELATED EXPENDITURE,GENERAL WASTE,2211,P116392-SERVICE-Sanitary Waste and Products,19/07/2022 00:00,265136,247.93,PE0015,PHS GROUP PLC,27/06/2022 00:00,31/07/2022 00:00,P04-2023,
,LEE VALLEY VELOPARK,PREMISES RELATED EXPENDITURE,GENERAL WASTE,2211,P115971-SERVICE-Waste Collection and Products,19/07/2022 00:00,265136,37.84,PE0015,PHS GROUP PLC,27/06/2022 00:00,31/07/2022 00:00,P04-2023,
,LV HOCKEY AND TENNIS CENTRE,PREMISES RELATED EXPENDITURE,GENERAL WASTE,2211,P113890-SERVICE-waste removal and duty of care,06/07/2022 00:00,264799,298.26,CL0037,VEOLIA ES (UK) LTD,27/06/2022 00:00,31/07/2022 00:00,P04-2023,
,LV HOCKEY AND TENNIS CENTRE,PREMISES RELATED EXPENDITURE,GENERAL WASTE,2211,P113890-SERVICE-waste removal and duty of care,06/07/2022 00:00,264800,-298.26,CL0037,VEOLIA ES (UK) LTD,27/06/2022 00:00,31/07/2022 00:00,P04-2023,
,LV HOCKEY AND TENNIS CENTRE,PREMISES RELATED EXPENDITURE,GENERAL WASTE,2211,P117211-SERVICE-Waste Collection,06/07/2022 00:00,264803,212.08,CL0037,VEOLIA ES (UK) LTD,27/06/2022 00:00,31/07/2022 00:00,P04-2023,
,LV HOCKEY AND TENNIS CENTRE,PREMISES RELATED EXPENDITURE,GENERAL WASTE,2211,P117211-SERVICE-Waste Collection,06/07/2022 00:00,264804,-212.08,CL0037,VEOLIA ES (UK) LTD,27/06/2022 00:00,31/07/2022 00:00,P04-2023,
,LV LEISURE CENTRE CAMPSITE,PREMISES RELATED EXPENDITURE,GENERAL WASTE,2211,P118674-SERVICE-Recycling,31/07/2022 00:00,264929,385.92,BY0049,BYWATERS (LEYTON) LTD,27/06/2022 00:00,31/07/2022 00:00,P04-2023,
P&V,MYDDELTON HOUSE,PREMISES RELATED EXPENDITURE,RECYCLING,2214,P117532-SERVICE-Recycling,11/07/2022 00:00,264933,188.82,CA0341,F & R CAWLEY LTD,27/06/2022 00:00,31/07/2022 00:00,P04-2023,
P&V,MYDDELTON HOUSE,PREMISES RELATED EXPENDITURE,BUILDING SERVICE AGREEMENTS,2220,P118785-SERVICE-call our re urinals june 22,26/07/2022 00:00,264284,120,AB0257,ABBEY DRAINS LTD,27/06/2022 00:00,31/07/2022 00:00,P04-2023,
P&V,MYDDELTON HOUSE,PREMISES RELATED EXPENDITURE,BUILDING SERVICE AGREEMENTS,2220,P118307-SERVICE-De-Commission Fire Alarm Link to Abercrombie,05/07/2022 00:00,264721,170,AD0015,ADT FIRE & SECURITY PLC,27/06/2022 00:00,31/07/2022 00:00,P04-2023,
P&V,MYDDELTON HOUSE,PREMISES RELATED EXPENDITURE,BUILDING SERVICE AGREEMENTS,2220,P118773-SERVICE-Sanitary Services,26/07/2022 00:00,265322,58.72,PE0015,PHS GROUP PLC,27/06/2022 00:00,31/07/2022 00:00,P04-2023,
P&V,MYDDELTON HOUSE,PREMISES RELATED EXPENDITURE,BUILDING SERVICE AGREEMENTS,2220,P117526-SERVICE-Santiary Services,31/07/2022 00:00,265527,8.25,PE0015,PHS GROUP PLC,27/06/2022 00:00,31/07/2022 00:00,P04-2023,
P&V,MYDDELTON HOUSE,PREMISES RELATED EXPENDITURE,BUILDING SERVICE AGREEMENTS,2220,P117526-SERVICE-Santiary Services,31/07/2022 00:00,265528,22.52,PE0015,PHS GROUP PLC,27/06/2022 00:00,31/07/2022 00:00,P04-2023,
P&V,MYDDELTON HOUSE,PREMISES RELATED EXPENDITURE,BUILDING SERVICE AGREEMENTS,2220,P118773-SERVICE-Sanitary Services,31/07/2022 00:00,265529,176.3,PE0015,PHS GROUP PLC,27/06/2022 00:00,31/07/2022 00:00,P04-2023,
P&V,MYDDELTON HOUSE,PREMISES RELATED EXPENDITURE,BUILDING SERVICE AGREEMENTS,2220,P118062-SERVICE-Test & Certify 3 x Mansafe Site Wire and 2 x,31/07/2022 00:00,265539,320,OC0009,PTSG PREMIER TECHNICAL SERVICES GROUP,27/06/2022 00:00,31/07/2022 00:00,P04-2023,
P&V,MYDDELTON HOUSE,PREMISES RELATED EXPENDITURE,BUILDING SERVICE AGREEMENTS,2220,P118062-SERVICE-Test & Inspect Fall Arrest Equipment at Mydde,31/07/2022 00:00,265540,401,OC0009,PTSG PREMIER TECHNICAL SERVICES GROUP,27/06/2022 00:00,31/07/2022 00:00,P04-2023,
,LEE VALLEY WATERWORKS CENTRE,PREMISES RELATED EXPENDITURE,BUILDING SERVICE AGREEMENTS,2220,P118693-SERVICE-Engineering Service to Carry out PPM - Jun 22,19/07/2022 00:00,265040,304.36,CO0199,EQUANS FM LIMITED (frmlyENGIE FM LIMITED),27/06/2022 00:00,31/07/2022 00:00,P04-2023,
,LEE VALLEY CAMPSITE,PREMISES RELATED EXPENDITURE,BUILDING SERVICE AGREEMENTS,2220,P118629-SERVICE-alarm battery replacement,11/07/2022 00:00,264814,27.4,AC0012,SCUTUM SOUTH EAST LTD (frmly Active Security),27/06/2022 00:00,31/07/2022 00:00,P04-2023,
P&V,NORTH AREA RANGERS,PREMISES RELATED EXPENDITURE,BUILDING SERVICE AGREEMENTS,2220,P117223-SERVICE-Sanitary Disposal - Old Mill & Meadows Toilet,25/07/2022 00:00,265323,3.5,PE0015,PHS GROUP PLC,27/06/2022 00:00,31/07/2022 00:00,P04-2023,
P&V,GUNPOWDER PARK,PREMISES RELATED EXPENDITURE,BUILDING SERVICE AGREEMENTS,2220,P117222-SERVICE-Sanitary Disposal - Gunpowder Park - Public T,19/07/2022 00:00,263155,16.9,PE0015,PHS GROUP PLC,27/06/2022 00:00,31/07/2022 00:00,P04-2023,
P&V,GUNPOWDER PARK,PREMISES RELATED EXPENDITURE,BUILDING SERVICE AGREEMENTS,2220,P117222-SERVICE-Sanitary Disposal - Gunpowder Park - Public T,19/07/2022 00:00,264149,16.9,PE0015,PHS GROUP PLC,27/06/2022 00:00,31/07/2022 00:00,P04-2023,
P&V,GUNPOWDER PARK,PREMISES RELATED EXPENDITURE,BUILDING SERVICE AGREEMENTS,2220,P117222-SERVICE-Sanitary Disposal - Gunpowder Park - Public T,19/07/2022 00:00,264993,16.9,PE0015,PHS GROUP PLC,27/06/2022 00:00,31/07/2022 00:00,P04-2023,
P&V,GUNPOWDER PARK,PREMISES RELATED EXPENDITURE,BUILDING SERVICE AGREEMENTS,2220,P117222-SERVICE-Sanitary Disposal - Gunpowder Park - Public T,19/07/2022 00:00,265032,-16.9,PE0015,PHS GROUP PLC,27/06/2022 00:00,31/07/2022 00:00,P04-2023,
P&V,GUNPOWDER PARK,PREMISES RELATED EXPENDITURE,BUILDING SERVICE AGREEMENTS,2220,P117222-SERVICE-Sanitary Disposal - Gunpowder Park - Public T,19/07/2022 00:00,265033,-16.9,PE0015,PHS GROUP PLC,27/06/2022 00:00,31/07/2022 00:00,P04-2023,
P&V,GUNPOWDER PARK,PREMISES RELATED EXPENDITURE,BUILDING SERVICE AGREEMENTS,2220,P117222-SERVICE-Sanitary Disposal - Gunpowder Park - Public T,19/07/2022 00:00,265034,-16.9,PE0015,PHS GROUP PLC,27/06/2022 00:00,31/07/2022 00:00,P04-2023,
P&V,GUNPOWDER PARK,PREMISES RELATED EXPENDITURE,BUILDING SERVICE AGREEMENTS,2220,P117222-SERVICE-Sanitary Disposal - Gunpowder Park - Public T,19/07/2022 00:00,265035,10.07,PE0015,PHS GROUP PLC,27/06/2022 00:00,31/07/2022 00:00,P04-2023,
P&V,GUNPOWDER PARK,PREMISES RELATED EXPENDITURE,BUILDING SERVICE AGREEMENTS,2220,P117222-SERVICE-Sanitary Disposal - Gunpowder Park - Public T,19/07/2022 00:00,265037,43.85,PE0015,PHS GROUP PLC,27/06/2022 00:00,31/07/2022 00:00,P04-2023,
P&V,GUNPOWDER PARK,PREMISES RELATED EXPENDITURE,BUILDING SERVICE AGREEMENTS,2220,P116312-SERVICE-Building Servcie Agreement - Gunpowder Park,27/07/2022 00:00,265343,145.96,CO0199,EQUANS FM LIMITED (frmlyENGIE FM LIMITED),27/06/2022 00:00,31/07/2022 00:00,P04-2023,
P&V,GUNPOWDER PARK,PREMISES RELATED EXPENDITURE,BUILDING SERVICE AGREEMENTS,2220,P117221-SERVICE-Sanitary Disposal - Gunpowder Park Office Toi,31/07/2022 00:00,265526,2.7,PE0015,PHS GROUP PLC,27/06/2022 00:00,31/07/2022 00:00,P04-2023,
P&V,RIVER LEE COUNTRY PARK,PREMISES RELATED EXPENDITURE,BUILDING SERVICE AGREEMENTS,2220,P117224-SERVICE-Sanitary Disposal - Fishers Green Toilets,13/07/2022 00:00,264994,11.37,PE0015,PHS GROUP PLC,27/06/2022 00:00,31/07/2022 00:00,P04-2023,
P&V,RIVER LEE COUNTRY PARK,PREMISES RELATED EXPENDITURE,BUILDING SERVICE AGREEMENTS,2220,P117224-SERVICE-Sanitary Disposal - Fishers Green Toilets,19/07/2022 00:00,265036,-11.37,PE0015,PHS GROUP PLC,27/06/2022 00:00,31/07/2022 00:00,P04-2023,
P&V,RIVER LEE COUNTRY PARK,PREMISES RELATED EXPENDITURE,BUILDING SERVICE AGREEMENTS,2220,P117218-SERVICE-Sharps Container - Ranger Farm Office,31/07/2022 00:00,265525,5.88,PE0015,PHS GROUP PLC,27/06/2022 00:00,31/07/2022 00:00,P04-2023,
,LV HOCKEY AND TENNIS CENTRE,PREMISES RELATED EXPENDITURE,BUILDING SERVICE AGREEMENTS,2220,P112264-SERVICE-Care system contract,19/07/2022 00:00,265181,-7.89,AD0015,ADT FIRE & SECURITY PLC,27/06/2022 00:00,31/07/2022 00:00,P04-2023,
,LV LEISURE CENTRE CAMPSITE,PREMISES RELATED EXPENDITURE,BUILDING SERVICE AGREEMENTS,2220,P118665-SERVICE-Code 2 site electrics,31/07/2022 00:00,264584,6745,BR0018,BRADSHAW ELECTRICAL LIMITED,27/06/2022 00:00,31/07/2022 00:00,P04-2023,
,LV LEISURE CENTRE CAMPSITE,PREMISES RELATED EXPENDITURE,BUILDING SERVICE AGREEMENTS,2220,P118672-SERVICE-Electrical hook up points,31/07/2022 00:00,264747,60,BR0018,BRADSHAW ELECTRICAL LIMITED,27/06/2022 00:00,31/07/2022 00:00,P04-2023,
P&V,MYDDELTON HOUSE,PREMISES RELATED EXPENDITURE,BUILDING REPAIRS & MAINTENANCE,2222,P117937-SERVICE-fire risk assessment 22,13/07/2022 00:00,264347,500,RI0181,RD HEALTH & SAFETY LIMITED,27/06/2022 00:00,31/07/2022 00:00,P04-2023,
P&V,MYDDELTON HOUSE,PREMISES RELATED EXPENDITURE,BUILDING REPAIRS & MAINTENANCE,2222,P117937-SERVICE-fire risk assessment 22,12/07/2022 00:00,264764,-500,RI0181,RD HEALTH & SAFETY LIMITED,27/06/2022 00:00,31/07/2022 00:00,P04-2023,
P&V,MYDDELTON HOUSE,PREMISES RELATED EXPENDITURE,BUILDING REPAIRS & MAINTENANCE,2222,P118326-SERVICE-Replace Mains Water Solenoid Valve in Main Ho,19/07/2022 00:00,265159,398.06,GI0137,R & P GIBBS LIMITED,27/06/2022 00:00,31/07/2022 00:00,P04-2023,
P&V,MYDDELTON HOUSE,PREMISES RELATED EXPENDITURE,BUILDING REPAIRS & MAINTENANCE,2222,P118506-SERVICE-W/C Replacment in Bungalow,19/07/2022 00:00,265160,632,GI0137,R & P GIBBS LIMITED,27/06/2022 00:00,31/07/2022 00:00,P04-2023,
P&V,MYDDELTON HOUSE,PREMISES RELATED EXPENDITURE,BUILDING REPAIRS & MAINTENANCE,2222,P118507-SERVICE-Remove Cistern with Absestos,19/07/2022 00:00,265161,395,GI0137,R & P GIBBS LIMITED,27/06/2022 00:00,31/07/2022 00:00,P04-2023,
P&V,MYDDELTON HOUSE,PREMISES RELATED EXPENDITURE,BUILDING REPAIRS & MAINTENANCE,2222,P118887-SERVICE-Various Works at Myddelton House,31/07/2022 00:00,265640,561.75,GI0137,R & P GIBBS LIMITED,27/06/2022 00:00,31/07/2022 00:00,P04-2023,
CEO,RESIDENTIAL ACCOMMODATION,PREMISES RELATED EXPENDITURE,BUILDING REPAIRS & MAINTENANCE,2222,P118170-SERVICE-Refurbishment of Roselea Bungalow,13/07/2022 00:00,263743,7158.33,CA0165,CASTLES,27/06/2022 00:00,31/07/2022 00:00,P04-2023,
CEO,RESIDENTIAL ACCOMMODATION,PREMISES RELATED EXPENDITURE,BUILDING REPAIRS & MAINTENANCE,2222,P118602-SERVICE-Pest Control - Roselea,11/07/2022 00:00,264840,300,CA0165,CASTLES,27/06/2022 00:00,31/07/2022 00:00,P04-2023,
CEO,RESIDENTIAL ACCOMMODATION,PREMISES RELATED EXPENDITURE,BUILDING REPAIRS & MAINTENANCE,2222,P118603-SERVICE-Roselea - Replace Front Door Lock,11/07/2022 00:00,264841,113.71,CA0165,CASTLES,27/06/2022 00:00,31/07/2022 00:00,P04-2023,
CEO,RESIDENTIAL ACCOMMODATION,PREMISES RELATED EXPENDITURE,BUILDING REPAIRS & MAINTENANCE,2222,P118604-SERVICE-Pest Control - 7 Picketts Lock Lane,11/07/2022 00:00,264842,110,CA0165,CASTLES,27/06/2022 00:00,31/07/2022 00:00,P04-2023,
CEO,RESIDENTIAL ACCOMMODATION,PREMISES RELATED EXPENDITURE,BUILDING REPAIRS & MAINTENANCE,2222,P118605-SERVICE-9 Picketts Lock Lane Storage Heaters Work,11/07/2022 00:00,264843,1740,CA0165,CASTLES,27/06/2022 00:00,31/07/2022 00:00,P04-2023,
CEO,RESIDENTIAL ACCOMMODATION,PREMISES RELATED EXPENDITURE,BUILDING REPAIRS & MAINTENANCE,2222,P118741-SERVICE-2 Bungalow - Replace Extractor in Bathroom,25/07/2022 00:00,265194,100,WA0315,PAUL WALLACE ESTATE AGENTS,27/06/2022 00:00,31/07/2022 00:00,P04-2023,
CEO,COMMERCIAL ACCOMMODATION,PREMISES RELATED EXPENDITURE,BUILDING REPAIRS & MAINTENANCE,2222,P117857-SERVICE-Concrete Blocks Wharf road,04/07/2022 00:00,264608,60,NA0171,NAIVETTE SERVICES LTD,27/06/2022 00:00,31/07/2022 00:00,P04-2023,
CEO,COMMERCIAL ACCOMMODATION,PREMISES RELATED EXPENDITURE,BUILDING REPAIRS & MAINTENANCE,2222,P118737-SERVICE-Man & Van Services to Move Tennant and Handli,20/07/2022 00:00,265217,2195,RO0355,REMOVAL REMEDY LTD,27/06/2022 00:00,31/07/2022 00:00,P04-2023,
CEO,COMMERCIAL ACCOMMODATION,PREMISES RELATED EXPENDITURE,BUILDING REPAIRS & MAINTENANCE,2222,P117857-SERVICE-Concrete Blocks Wharf road,31/07/2022 00:00,265530,62,NA0171,NAIVETTE SERVICES LTD,27/06/2022 00:00,31/07/2022 00:00,P04-2023,
P&V,"ASSET PROTECTION, MAINT, DEVEL",PREMISES RELATED EXPENDITURE,BUILDING REPAIRS & MAINTENANCE,2222,P118399-SERVICE-Rye House Gatehouse - Suoply and Fit Replacem,26/07/2022 00:00,265359,115,TO0639,TOWNS-END DOUBLE GLAZING LTD,27/06/2022 00:00,31/07/2022 00:00,P04-2023,
,LEE VALLEY MARINA SPRINGFIELD,PREMISES RELATED EXPENDITURE,BUILDING REPAIRS & MAINTENANCE,2222,P118269-SERVICE-To supply items as requested,04/07/2022 00:00,264693,22.27,BQ0164,TRADE UK ACCOUNT,27/06/2022 00:00,31/07/2022 00:00,P04-2023,
P&V,LEE VALLEY FARM HOLYFIELDHALL,PREMISES RELATED EXPENDITURE,BUILDING REPAIRS & MAINTENANCE,2222,P118781-SERVICE-Service Contract,27/07/2022 00:00,265163,485,PS0429,PSL AUTOMATION,27/06/2022 00:00,31/07/2022 00:00,P04-2023,
P&V,LEE VALLEY FARM HOLYFIELDHALL,PREMISES RELATED EXPENDITURE,BUILDING REPAIRS & MAINTENANCE,2222,P117595-SERVICE-Building Repairs,26/07/2022 00:00,265180,148.67,JE0011,SAINT-GOBAIN BUILDING DISTRIBUTION,27/06/2022 00:00,31/07/2022 00:00,P04-2023,
P&V,LEE VALLEY FARM HOLYFIELDHALL,PREMISES RELATED EXPENDITURE,BUILDING REPAIRS & MAINTENANCE,2222,P118843-SERVICE-Borehole Service,31/07/2022 00:00,265627,1026.46,PU0442,PUMPING SOLUTIONS (UK) LTD,27/06/2022 00:00,31/07/2022 00:00,P04-2023,
,LEE VALLEY CAMPSITE,PREMISES RELATED EXPENDITURE,BUILDING REPAIRS & MAINTENANCE,2222,P118484-SERVICE-Tree Works Sewardstone Capmsite,13/07/2022 00:00,264991,1000,PA0222,PARKIN & PARKER TREE SPECIALISTS,27/06/2022 00:00,31/07/2022 00:00,P04-2023,
,LEE VALLEY CARAVAN PARK,PREMISES RELATED EXPENDITURE,BUILDING REPAIRS & MAINTENANCE,2222,P118735-SERVICE-Attend site for faulty pumps,20/07/2022 00:00,265138,380,CO0550,CONVERT WATER LTD,27/06/2022 00:00,31/07/2022 00:00,P04-2023,
,LEE VALLEY CARAVAN PARK,PREMISES RELATED EXPENDITURE,BUILDING REPAIRS & MAINTENANCE,2222,P118734-SERVICE-Install 2 new pumps,20/07/2022 00:00,265146,3330,CO0550,CONVERT WATER LTD,27/06/2022 00:00,31/07/2022 00:00,P04-2023,
P&V,GUNPOWDER PARK,PREMISES RELATED EXPENDITURE,BUILDING REPAIRS & MAINTENANCE,2222,REACT 2 IT (BUILDING & REFURBI,27/07/2022 00:00,265382,118,RE0094,REACT 2 IT (BUILDING & REFURBISHMENT) LTD,27/06/2022 00:00,31/07/2022 00:00,P04-2023,
P&V,GUNPOWDER PARK,PREMISES RELATED EXPENDITURE,BUILDING REPAIRS & MAINTENANCE,2222,REACT 2 IT (BUILDING & REFURBI,27/07/2022 00:00,265382,2,RE0094,REACT 2 IT (BUILDING & REFURBISHMENT) LTD,27/06/2022 00:00,31/07/2022 00:00,P04-2023,
P&V,GUNPOWDER PARK,PREMISES RELATED EXPENDITURE,BUILDING REPAIRS & MAINTENANCE,2222,P118762-SERVICE-Repair Toilet Cistern at Gunpowder Park,27/07/2022 00:00,265382,120,RE0094,REACT 2 IT (BUILDING & REFURBISHMENT) LTD,27/06/2022 00:00,31/07/2022 00:00,P04-2023,
P&V,GUNPOWDER PARK,PREMISES RELATED EXPENDITURE,BUILDING REPAIRS & MAINTENANCE,2222,REACT 2 IT (BUILDING & REFURBI,27/07/2022 00:00,265382,-120,RE0094,REACT 2 IT (BUILDING & REFURBISHMENT) LTD,27/06/2022 00:00,31/07/2022 00:00,P04-2023,
P&V,RIVER LEE COUNTRY PARK,PREMISES RELATED EXPENDITURE,BUILDING REPAIRS & MAINTENANCE,2222,P118754-SERVICE-Call Out at FG Toilets,25/07/2022 00:00,264917,98,KE0023,KENDALL & SONS LIMITED,27/06/2022 00:00,31/07/2022 00:00,P04-2023,
,LEE VALLEY VELOPARK,PREMISES RELATED EXPENDITURE,BUILDING REPAIRS & MAINTENANCE,2222,P116345-SERVICE-Mounted Power Meter,04/07/2022 00:00,264531,5786.4,OM0135,OMNI INSTRUMENTS LTD,27/06/2022 00:00,31/07/2022 00:00,P04-2023,
,LEE VALLEY VELOPARK,PREMISES RELATED EXPENDITURE,BUILDING REPAIRS & MAINTENANCE,2222,P115138-SERVICE-Louvre Maintenance,04/07/2022 00:00,264667,3990,SC0470,SCS GROUP,27/06/2022 00:00,31/07/2022 00:00,P04-2023,
,LEE VALLEY VELOPARK,PREMISES RELATED EXPENDITURE,BUILDING REPAIRS & MAINTENANCE,2222,P117216-SERVICE-Hoist Service,19/07/2022 00:00,264952,115,CA0589,"CARE SHOP, A DIVISION OF BUNZL HEALTHCARE",27/06/2022 00:00,31/07/2022 00:00,P04-2023,
CEO,LVLC SERVICE CHARGE,PREMISES RELATED EXPENDITURE,BUILDING REPAIRS & MAINTENANCE,2222,P118049-SERVICE-Picketts Lock Automation of Road Barrier to P,11/07/2022 00:00,263963,10391.11,PS0429,PSL AUTOMATION,27/06/2022 00:00,31/07/2022 00:00,P04-2023,
CEO,LVLC SERVICE CHARGE,PREMISES RELATED EXPENDITURE,BUILDING REPAIRS & MAINTENANCE,2222,P118601-SERVICE-LVAC Barrier Supply,11/07/2022 00:00,264585,720,BR0018,BRADSHAW ELECTRICAL LIMITED,27/06/2022 00:00,31/07/2022 00:00,P04-2023,
CEO,LVLC SERVICE CHARGE,PREMISES RELATED EXPENDITURE,BUILDING REPAIRS & MAINTENANCE,2222,P117653-SERVICE-Contract Sweep,11/07/2022 00:00,264663,150,SE0374,SELECT SWEEPER HIRE LTD,27/06/2022 00:00,31/07/2022 00:00,P04-2023,
P&V,NORTH AREA RANGERS,SUPPLIES AND SERVICES,FENCES/GATES ETC.,2231,P116823-SERVICE-Fence/Bridge Works - Silvermeade,19/07/2022 00:00,265111,2565,MA0188,MAYDENCROFT LTD,27/06/2022 00:00,31/07/2022 00:00,P04-2023,
P&V,NORTH AREA RANGERS,SUPPLIES AND SERVICES,FENCES/GATES ETC.,2231,P116823-SERVICE-Fence/Bridge Works - Silvermeade,19/07/2022 00:00,265111,1980,MA0188,MAYDENCROFT LTD,27/06/2022 00:00,31/07/2022 00:00,P04-2023,
P&V,NORTH AREA RANGERS,SUPPLIES AND SERVICES,FENCES/GATES ETC.,2231,P116823-SERVICE-Fence/Bridge Works - Silvermeade,19/07/2022 00:00,265111,375,MA0188,MAYDENCROFT LTD,27/06/2022 00:00,31/07/2022 00:00,P04-2023,
CEO,RESIDENTIAL ACCOMMODATION,EXPENDITURE FROM REPAIRS FUND,EXPENDITURE FROM REPAIRS FUND,2240,P118554-SERVICE-Roselea Refurb - Flooring,19/07/2022 00:00,265013,2947.5,CA0165,CASTLES,27/06/2022 00:00,31/07/2022 00:00,P04-2023,
,LEE VALLEY RIDING CENTRE,EXPENDITURE FROM REPAIRS FUND,EXPENDITURE FROM REPAIRS FUND,2240,P117247-SERVICE-clean up prime and paint,19/07/2022 00:00,265041,1695,LO0465,LONDON GATE SOLUTIONS LTD,27/06/2022 00:00,31/07/2022 00:00,P04-2023,
,LEE VALLEY RIDING CENTRE,EXPENDITURE FROM REPAIRS FUND,EXPENDITURE FROM REPAIRS FUND,2240,P117247-SERVICE-supply of soft closer for pedestrian gate,19/07/2022 00:00,265041,316,LO0465,LONDON GATE SOLUTIONS LTD,27/06/2022 00:00,31/07/2022 00:00,P04-2023,
,LEE VALLEY RIDING CENTRE,EXPENDITURE FROM REPAIRS FUND,EXPENDITURE FROM REPAIRS FUND,2240,P117247-SERVICE-supply of x3 new slide bolts with frames,19/07/2022 00:00,265041,844,LO0465,LONDON GATE SOLUTIONS LTD,27/06/2022 00:00,31/07/2022 00:00,P04-2023,
,LEE VALLEY RIDING CENTRE,EXPENDITURE FROM REPAIRS FUND,EXPENDITURE FROM REPAIRS FUND,2240,P117247-SERVICE-supply x2 ground bolts,19/07/2022 00:00,265041,292,LO0465,LONDON GATE SOLUTIONS LTD,27/06/2022 00:00,31/07/2022 00:00,P04-2023,
,LEE VALLEY RIDING CENTRE,EXPENDITURE FROM REPAIRS FUND,EXPENDITURE FROM REPAIRS FUND,2240,P117247-SERVICE-supply x 4 no pedestrian signs,19/07/2022 00:00,265041,112,LO0465,LONDON GATE SOLUTIONS LTD,27/06/2022 00:00,31/07/2022 00:00,P04-2023,
,LEE VALLEY RIDING CENTRE,EXPENDITURE FROM REPAIRS FUND,EXPENDITURE FROM REPAIRS FUND,2240,P117247-SERVICE-supply x 2 finger guards,19/07/2022 00:00,265041,342,LO0465,LONDON GATE SOLUTIONS LTD,27/06/2022 00:00,31/07/2022 00:00,P04-2023,
,LEE VALLEY RIDING CENTRE,EXPENDITURE FROM REPAIRS FUND,EXPENDITURE FROM REPAIRS FUND,2240,P117247-SERVICE-supply x 2 safety ribs and caps,19/07/2022 00:00,265041,32,LO0465,LONDON GATE SOLUTIONS LTD,27/06/2022 00:00,31/07/2022 00:00,P04-2023,
,LEE VALLEY RIDING CENTRE,EXPENDITURE FROM REPAIRS FUND,EXPENDITURE FROM REPAIRS FUND,2240,P117247-SERVICE-supply of new steel 5 bar gates in black,19/07/2022 00:00,265041,2730,LO0465,LONDON GATE SOLUTIONS LTD,27/06/2022 00:00,31/07/2022 00:00,P04-2023,
,LEE VALLEY RIDING CENTRE,EXPENDITURE FROM REPAIRS FUND,EXPENDITURE FROM REPAIRS FUND,2240,P117247-SERVICE-extra cost for galvanising 5 bar gate,19/07/2022 00:00,265041,980,LO0465,LONDON GATE SOLUTIONS LTD,27/06/2022 00:00,31/07/2022 00:00,P04-2023,
,LEE VALLEY RIDING CENTRE,EXPENDITURE FROM REPAIRS FUND,EXPENDITURE FROM REPAIRS FUND,2240,P117247-SERVICE-installation materials for remdial works,19/07/2022 00:00,265041,2446,LO0465,LONDON GATE SOLUTIONS LTD,27/06/2022 00:00,31/07/2022 00:00,P04-2023,
,LEE VALLEY RIDING CENTRE,EXPENDITURE FROM REPAIRS FUND,EXPENDITURE FROM REPAIRS FUND,2240,P117247-SERVICE-12 month service and maintenance contract,19/07/2022 00:00,265041,860,LO0465,LONDON GATE SOLUTIONS LTD,27/06/2022 00:00,31/07/2022 00:00,P04-2023,
CEO,COMMERCIAL ACCOMMODATION,PREMISES RELATED EXPENDITURE,EAST HALE ALLOTMENTS,2261,P117652-SERVICE-Allotment Bins,11/07/2022 00:00,264825,136.47,CL0037,VEOLIA ES (UK) LTD,27/06/2022 00:00,31/07/2022 00:00,P04-2023,
P&V,MYDDELTON HOUSE,PREMISES RELATED EXPENDITURE,ENERGY COSTS (ELECTRICITY),2332,KENT COUNTY COUNCIL (KCS),19/07/2022 00:00,265143,1401.31,KE0007,KENT COUNTY COUNCIL (KCS),27/06/2022 00:00,31/07/2022 00:00,P04-2023,
CEO,RESIDENTIAL ACCOMMODATION,PREMISES RELATED EXPENDITURE,ENERGY COSTS (ELECTRICITY),2332,BULB ENERGY LIMITED,19/07/2022 00:00,262738,199.35,BU0646,BULB ENERGY LIMITED,27/06/2022 00:00,31/07/2022 00:00,P04-2023,
CEO,RESIDENTIAL ACCOMMODATION,PREMISES RELATED EXPENDITURE,ENERGY COSTS (ELECTRICITY),2332,BULB ENERGY LIMITED,19/07/2022 00:00,263496,183.52,BU0646,BULB ENERGY LIMITED,27/06/2022 00:00,31/07/2022 00:00,P04-2023,
CEO,RESIDENTIAL ACCOMMODATION,PREMISES RELATED EXPENDITURE,ENERGY COSTS (ELECTRICITY),2332,BULB ENERGY LIMITED,19/07/2022 00:00,264482,163.11,BU0646,BULB ENERGY LIMITED,27/06/2022 00:00,31/07/2022 00:00,P04-2023,
CEO,RESIDENTIAL ACCOMMODATION,PREMISES RELATED EXPENDITURE,ENERGY COSTS (ELECTRICITY),2332,E-ON NEXT ENERGY LTD,11/07/2022 00:00,264722,10.94,EO0398,E-ON NEXT ENERGY LTD,27/06/2022 00:00,31/07/2022 00:00,P04-2023,
CEO,RESIDENTIAL ACCOMMODATION,PREMISES RELATED EXPENDITURE,ENERGY COSTS (ELECTRICITY),2332,BULB ENERGY LIMITED,19/07/2022 00:00,265039,547.12,BU0646,BULB ENERGY LIMITED,27/06/2022 00:00,31/07/2022 00:00,P04-2023,
CEO,RESIDENTIAL ACCOMMODATION,PREMISES RELATED EXPENDITURE,ENERGY COSTS (ELECTRICITY),2332,BULB ENERGY LIMITED,19/07/2022 00:00,265125,-199.35,BU0646,BULB ENERGY LIMITED,27/06/2022 00:00,31/07/2022 00:00,P04-2023,
CEO,RESIDENTIAL ACCOMMODATION,PREMISES RELATED EXPENDITURE,ENERGY COSTS (ELECTRICITY),2332,BULB ENERGY LIMITED,19/07/2022 00:00,265126,-183.52,BU0646,BULB ENERGY LIMITED,27/06/2022 00:00,31/07/2022 00:00,P04-2023,
CEO,RESIDENTIAL ACCOMMODATION,PREMISES RELATED EXPENDITURE,ENERGY COSTS (ELECTRICITY),2332,BULB ENERGY LIMITED,19/07/2022 00:00,265127,-163.11,BU0646,BULB ENERGY LIMITED,27/06/2022 00:00,31/07/2022 00:00,P04-2023,
CEO,COMMERCIAL ACCOMMODATION,PREMISES RELATED EXPENDITURE,ENERGY COSTS (ELECTRICITY),2332,E-ON NEXT ENERGY LTD,13/07/2022 00:00,264938,52.06,EO0398,E-ON NEXT ENERGY LTD,27/06/2022 00:00,31/07/2022 00:00,P04-2023,
CEO,COMMERCIAL ACCOMMODATION,PREMISES RELATED EXPENDITURE,ENERGY COSTS (ELECTRICITY),2332,E-ON NEXT ENERGY LTD,13/07/2022 00:00,264939,23.33,EO0398,E-ON NEXT ENERGY LTD,27/06/2022 00:00,31/07/2022 00:00,P04-2023,
CEO,COMMERCIAL ACCOMMODATION,PREMISES RELATED EXPENDITURE,ENERGY COSTS (ELECTRICITY),2332,E-ON NEXT ENERGY LTD,13/07/2022 00:00,264966,9.39,EO0398,E-ON NEXT ENERGY LTD,27/06/2022 00:00,31/07/2022 00:00,P04-2023,
CEO,COMMERCIAL ACCOMMODATION,PREMISES RELATED EXPENDITURE,ENERGY COSTS (ELECTRICITY),2332,E-ON NEXT ENERGY LTD,18/07/2022 00:00,265184,-13.44,EO0398,E-ON NEXT ENERGY LTD,27/06/2022 00:00,31/07/2022 00:00,P04-2023,
,LEE VALLEY MARINA SPRINGFIELD,PREMISES RELATED EXPENDITURE,ENERGY COSTS (ELECTRICITY),2332,KENT COUNTY COUNCIL (KCS),19/07/2022 00:00,265142,1893.05,KE0007,KENT COUNTY COUNCIL (KCS),27/06/2022 00:00,31/07/2022 00:00,P04-2023,
,LEE VALLEY CAMPSITE,PREMISES RELATED EXPENDITURE,ENERGY COSTS (ELECTRICITY),2332,KENT COUNTY COUNCIL (KCS),25/07/2022 00:00,265140,1300.46,KE0007,KENT COUNTY COUNCIL (KCS),27/06/2022 00:00,31/07/2022 00:00,P04-2023,
,LEE VALLEY CAMPSITE,PREMISES RELATED EXPENDITURE,ENERGY COSTS (ELECTRICITY),2332,KENT COUNTY COUNCIL (KCS),25/07/2022 00:00,265144,1545.38,KE0007,KENT COUNTY COUNCIL (KCS),27/06/2022 00:00,31/07/2022 00:00,P04-2023,
,LEE VALLEY CARAVAN PARK,PREMISES RELATED EXPENDITURE,ENERGY COSTS (ELECTRICITY),2332,KENT COUNTY COUNCIL (KCS),20/07/2022 00:00,265141,5533.09,KE0007,KENT COUNTY COUNCIL (KCS),27/06/2022 00:00,31/07/2022 00:00,P04-2023,
P&V,GUNPOWDER PARK,PREMISES RELATED EXPENDITURE,ENERGY COSTS (ELECTRICITY),2332,KENT COUNTY COUNCIL (KCS),25/07/2022 00:00,265139,334.21,KE0007,KENT COUNTY COUNCIL (KCS),27/06/2022 00:00,31/07/2022 00:00,P04-2023,
,LEE VALLEY VELOPARK,PREMISES RELATED EXPENDITURE,ENERGY COSTS (ELECTRICITY),2332,P118576-SERVICE-HEAT SUPPLY CHARGES FEB 22,19/07/2022 00:00,265115,2037.2,LO0410,(MAIN) LONDON LEGACY DEVELOPMENT CORPORATION,27/06/2022 00:00,31/07/2022 00:00,P04-2023,
,LEE VALLEY VELOPARK,PREMISES RELATED EXPENDITURE,ENERGY COSTS (ELECTRICITY),2332,P118576-SERVICE-HEAT SUPPLY CHARGES MAR 22,19/07/2022 00:00,265115,1785.45,LO0410,(MAIN) LONDON LEGACY DEVELOPMENT CORPORATION,27/06/2022 00:00,31/07/2022 00:00,P04-2023,
,LEE VALLEY VELOPARK,PREMISES RELATED EXPENDITURE,ENERGY COSTS (ELECTRICITY),2332,P118576-SERVICE-HEAT SUPPLY CHARGES JAN 22,19/07/2022 00:00,265115,3439.22,LO0410,(MAIN) LONDON LEGACY DEVELOPMENT CORPORATION,27/06/2022 00:00,31/07/2022 00:00,P04-2023,
,LEE VALLEY VELOPARK,PREMISES RELATED EXPENDITURE,ENERGY COSTS (ELECTRICITY),2332,P118576-SERVICE-FIXED HEAT CHARGES,19/07/2022 00:00,265115,13662.9,LO0410,(MAIN) LONDON LEGACY DEVELOPMENT CORPORATION,27/06/2022 00:00,31/07/2022 00:00,P04-2023,
,LV HOCKEY AND TENNIS CENTRE,PREMISES RELATED EXPENDITURE,ENERGY COSTS (ELECTRICITY),2332,P118577-SERVICE-FIXED HEAT CHARGES,19/07/2022 00:00,265114,7191,LO0410,(MAIN) LONDON LEGACY DEVELOPMENT CORPORATION,27/06/2022 00:00,31/07/2022 00:00,P04-2023,
,LV HOCKEY AND TENNIS CENTRE,PREMISES RELATED EXPENDITURE,ENERGY COSTS (ELECTRICITY),2332,P118577-SERVICE-HEAT SUPPLY CHARGES MAR 22,19/07/2022 00:00,265114,1185.91,LO0410,(MAIN) LONDON LEGACY DEVELOPMENT CORPORATION,27/06/2022 00:00,31/07/2022 00:00,P04-2023,
,LV HOCKEY AND TENNIS CENTRE,PREMISES RELATED EXPENDITURE,ENERGY COSTS (ELECTRICITY),2332,P118577-SERVICE-HEAT SUPPLY CHARGES FEB 22,19/07/2022 00:00,265114,1341.61,LO0410,(MAIN) LONDON LEGACY DEVELOPMENT CORPORATION,27/06/2022 00:00,31/07/2022 00:00,P04-2023,
,LV HOCKEY AND TENNIS CENTRE,PREMISES RELATED EXPENDITURE,ENERGY COSTS (ELECTRICITY),2332,P118577-SERVICE-HEAT SUPPLY CHARGES JAN 22,19/07/2022 00:00,265114,1476,LO0410,(MAIN) LONDON LEGACY DEVELOPMENT CORPORATION,27/06/2022 00:00,31/07/2022 00:00,P04-2023,
P&V,MYDDELTON HOUSE,PREMISES RELATED EXPENDITURE,ENERGY COSTS (GAS),2333,KENT COUNTY COUNCIL (KCS),18/07/2022 00:00,265016,284.54,KE0007,KENT COUNTY COUNCIL (KCS),27/06/2022 00:00,31/07/2022 00:00,P04-2023,
CEO,RESIDENTIAL ACCOMMODATION,PREMISES RELATED EXPENDITURE,ENERGY COSTS (GAS),2333,BRITISH GAS BUSINESS,11/07/2022 00:00,264481,9.45,BR0030,BRITISH GAS TRADING LTD,27/06/2022 00:00,31/07/2022 00:00,P04-2023,
CEO,RESIDENTIAL ACCOMMODATION,PREMISES RELATED EXPENDITURE,ENERGY COSTS (GAS),2333,BRITISH GAS BUSINESS,27/07/2022 00:00,265357,9.15,BR0030,BRITISH GAS TRADING LTD,27/06/2022 00:00,31/07/2022 00:00,P04-2023,
CEO,RESIDENTIAL ACCOMMODATION,PREMISES RELATED EXPENDITURE,ENERGY COSTS (GAS),2333,BRITISH GAS BUSINESS,27/07/2022 00:00,265357,13,BR0030,BRITISH GAS TRADING LTD,27/06/2022 00:00,31/07/2022 00:00,P04-2023,
,LEE VALLEY MARINA SPRINGFIELD,PREMISES RELATED EXPENDITURE,ENERGY COSTS (GAS),2333,KENT COUNTY COUNCIL (KCS),18/07/2022 00:00,264980,99.81,KE0007,KENT COUNTY COUNCIL (KCS),27/06/2022 00:00,31/07/2022 00:00,P04-2023,
,LEE VALLEY MARINA STANSTEAD,PREMISES RELATED EXPENDITURE,ENERGY COSTS (GAS),2333,KENT COUNTY COUNCIL (KCS),18/07/2022 00:00,264977,74.14,KE0007,KENT COUNTY COUNCIL (KCS),27/06/2022 00:00,31/07/2022 00:00,P04-2023,
,LEE VALLEY MARINA STANSTEAD,PREMISES RELATED EXPENDITURE,ENERGY COSTS (GAS),2333,KENT COUNTY COUNCIL (KCS),18/07/2022 00:00,264981,91.26,KE0007,KENT COUNTY COUNCIL (KCS),27/06/2022 00:00,31/07/2022 00:00,P04-2023,
,LEE VALLEY WATERWORKS CENTRE,PREMISES RELATED EXPENDITURE,ENERGY COSTS (GAS),2333,KENT COUNTY COUNCIL (KCS),18/07/2022 00:00,264976,222.01,KE0007,KENT COUNTY COUNCIL (KCS),27/06/2022 00:00,31/07/2022 00:00,P04-2023,
,LEE VALLEY CAMPSITE,PREMISES RELATED EXPENDITURE,ENERGY COSTS (GAS),2333,KENT COUNTY COUNCIL (KCS),25/07/2022 00:00,264978,257.72,KE0007,KENT COUNTY COUNCIL (KCS),27/06/2022 00:00,31/07/2022 00:00,P04-2023,
,LEE VALLEY CARAVAN PARK,PREMISES RELATED EXPENDITURE,ENERGY COSTS (GAS),2333,P118723-SERVICE-propane delivery,19/07/2022 00:00,264968,254.1,AV0327,AVANTI GAS LIMITED,27/06/2022 00:00,31/07/2022 00:00,P04-2023,
,LEE VALLEY CARAVAN PARK,PREMISES RELATED EXPENDITURE,ENERGY COSTS (GAS),2333,P118728-SERVICE-Gas delivery,19/07/2022 00:00,265124,1077.44,AV0327,AVANTI GAS LIMITED,27/06/2022 00:00,31/07/2022 00:00,P04-2023,
P&V,GUNPOWDER PARK,PREMISES RELATED EXPENDITURE,ENERGY COSTS (GAS),2333,KENT COUNTY COUNCIL (KCS),18/07/2022 00:00,265017,45.29,KE0007,KENT COUNTY COUNCIL (KCS),27/06/2022 00:00,31/07/2022 00:00,P04-2023,
,LV LEISURE CENTRE CAMPSITE,PREMISES RELATED EXPENDITURE,ENERGY COSTS (GAS),2333,KENT COUNTY COUNCIL (KCS),13/07/2022 00:00,264979,518.79,KE0007,KENT COUNTY COUNCIL (KCS),27/06/2022 00:00,31/07/2022 00:00,P04-2023,
P&V,KING GEORGE RESERVOIR SOUTH,PREMISES RELATED EXPENDITURE,RENT (EXTERNAL),2442,THAMES WATER UTILITIES LIMITED,11/07/2022 00:00,264373,3375,TH0020,THAMES WATER UTILITIES LIMITED,27/06/2022 00:00,31/07/2022 00:00,P04-2023,
CEO,RESIDENTIAL ACCOMMODATION,PREMISES RELATED EXPENDITURE,PROPERTY MANAGEMT/LETTING FEES,2447,P118599-SERVICE-Landlord Fees - 1 Connaugt Close,11/07/2022 00:00,264500,1980,CA0165,CASTLES,27/06/2022 00:00,31/07/2022 00:00,P04-2023,
CEO,RESIDENTIAL ACCOMMODATION,PREMISES RELATED EXPENDITURE,PROPERTY MANAGEMT/LETTING FEES,2447,P118600-SERVICE-Landlord Warranty - 1 Connaught Close,11/07/2022 00:00,264501,336.6,CA0165,CASTLES,27/06/2022 00:00,31/07/2022 00:00,P04-2023,
CEO,RESIDENTIAL ACCOMMODATION,PREMISES RELATED EXPENDITURE,PROPERTY MANAGEMT/LETTING FEES,2447,P118819-SERVICE-Landlord Warranty - 9 Picketts Lock Lane,31/07/2022 00:00,265333,265.2,CA0165,CASTLES,27/06/2022 00:00,31/07/2022 00:00,P04-2023,
CEO,RESIDENTIAL ACCOMMODATION,PREMISES RELATED EXPENDITURE,PROPERTY MANAGEMT/LETTING FEES,2447,P118820-SERVICE-Landlord Fees - 9 Picketts Lock Lane,31/07/2022 00:00,265334,1560,CA0165,CASTLES,27/06/2022 00:00,31/07/2022 00:00,P04-2023,
CEO,RESIDENTIAL ACCOMMODATION,PREMISES RELATED EXPENDITURE,PROPERTY MANAGEMT/LETTING FEES,2447,P118822-SERVICE-Landlord Fees - Roselea,31/07/2022 00:00,265335,1134,CA0165,CASTLES,27/06/2022 00:00,31/07/2022 00:00,P04-2023,
CEO,RESIDENTIAL ACCOMMODATION,PREMISES RELATED EXPENDITURE,PROPERTY MANAGEMT/LETTING FEES,2447,P118823-SERVICE-Landlord Warranty - Roselea,31/07/2022 00:00,265336,270.9,CA0165,CASTLES,27/06/2022 00:00,31/07/2022 00:00,P04-2023,
,LEE VALLEY MARINA STANSTEAD,PREMISES RELATED EXPENDITURE,WATER,2555,CASTLE WATER LIMITED,06/07/2022 00:00,264769,132.64,CA0625,CASTLE WATER LIMITED,27/06/2022 00:00,31/07/2022 00:00,P04-2023,
,LEE VALLEY MARINA STANSTEAD,PREMISES RELATED EXPENDITURE,WATER,2555,CASTLE WATER LIMITED,06/07/2022 00:00,264769,124.08,CA0625,CASTLE WATER LIMITED,27/06/2022 00:00,31/07/2022 00:00,P04-2023,
,LEE VALLEY MARINA STANSTEAD,PREMISES RELATED EXPENDITURE,WATER,2555,CASTLE WATER LIMITED,27/07/2022 00:00,265398,137.27,CA0625,CASTLE WATER LIMITED,27/06/2022 00:00,31/07/2022 00:00,P04-2023,
,LEE VALLEY MARINA STANSTEAD,PREMISES RELATED EXPENDITURE,WATER,2555,CASTLE WATER LIMITED,27/07/2022 00:00,265398,128.42,CA0625,CASTLE WATER LIMITED,27/06/2022 00:00,31/07/2022 00:00,P04-2023,
,LEE VALLEY WATERWORKS CENTRE,PREMISES RELATED EXPENDITURE,WATER,2555,CASTLE WATER LIMITED,11/07/2022 00:00,264767,94.69,CA0625,CASTLE WATER LIMITED,27/06/2022 00:00,31/07/2022 00:00,P04-2023,
,LEE VALLEY WATERWORKS CENTRE,PREMISES RELATED EXPENDITURE,WATER,2555,CASTLE WATER LIMITED,27/07/2022 00:00,265399,98.96,CA0625,CASTLE WATER LIMITED,27/06/2022 00:00,31/07/2022 00:00,P04-2023,
P&V,LEE VALLEY FARM HOLYFIELDHALL,PREMISES RELATED EXPENDITURE,WATER,2555,CASTLE WATER LIMITED,25/07/2022 00:00,262424,2888.74,CA0625,CASTLE WATER LIMITED,27/06/2022 00:00,31/07/2022 00:00,P04-2023,
P&V,LEE VALLEY FARM HOLYFIELDHALL,PREMISES RELATED EXPENDITURE,WATER,2555,CASTLE WATER LIMITED,25/07/2022 00:00,264547,71.96,CA0625,CASTLE WATER LIMITED,27/06/2022 00:00,31/07/2022 00:00,P04-2023,
P&V,LEE VALLEY FARM HOLYFIELDHALL,PREMISES RELATED EXPENDITURE,WATER,2555,CASTLE WATER LIMITED,25/07/2022 00:00,265223,-71.96,CA0625,CASTLE WATER LIMITED,27/06/2022 00:00,31/07/2022 00:00,P04-2023,
P&V,LEE VALLEY FARM HOLYFIELDHALL,PREMISES RELATED EXPENDITURE,WATER,2555,CASTLE WATER LIMITED,25/07/2022 00:00,265224,-2888.74,CA0625,CASTLE WATER LIMITED,27/06/2022 00:00,31/07/2022 00:00,P04-2023,
P&V,LEE VALLEY FARM HOLYFIELDHALL,PREMISES RELATED EXPENDITURE,WATER,2555,CASTLE WATER LIMITED,31/07/2022 00:00,265412,6194.66,CA0625,CASTLE WATER LIMITED,27/06/2022 00:00,31/07/2022 00:00,P04-2023,
,LEE VALLEY CAMPSITE,PREMISES RELATED EXPENDITURE,WATER,2555,CASTLE WATER LIMITED,11/07/2022 00:00,264770,868.86,CA0625,CASTLE WATER LIMITED,27/06/2022 00:00,31/07/2022 00:00,P04-2023,
,LEE VALLEY CAMPSITE,PREMISES RELATED EXPENDITURE,WATER,2555,CASTLE WATER LIMITED,11/07/2022 00:00,264770,1313.74,CA0625,CASTLE WATER LIMITED,27/06/2022 00:00,31/07/2022 00:00,P04-2023,
,LEE VALLEY CAMPSITE,PREMISES RELATED EXPENDITURE,WATER,2555,CASTLE WATER LIMITED,31/07/2022 00:00,265400,1610.93,CA0625,CASTLE WATER LIMITED,27/06/2022 00:00,31/07/2022 00:00,P04-2023,
,LEE VALLEY CARAVAN PARK,PREMISES RELATED EXPENDITURE,WATER,2555,CASTLE WATER LIMITED,11/07/2022 00:00,264768,1841.09,CA0625,CASTLE WATER LIMITED,27/06/2022 00:00,31/07/2022 00:00,P04-2023,
,LEE VALLEY CARAVAN PARK,PREMISES RELATED EXPENDITURE,WATER,2555,CASTLE WATER LIMITED,11/07/2022 00:00,264768,2808.8,CA0625,CASTLE WATER LIMITED,27/06/2022 00:00,31/07/2022 00:00,P04-2023,
,LEE VALLEY ICE CENTRE,PREMISES RELATED EXPENDITURE,WATER,2555,CASTLE WATER LIMITED,05/07/2022 00:00,259578,11893.74,CA0625,CASTLE WATER LIMITED,27/06/2022 00:00,31/07/2022 00:00,P04-2023,
,LEE VALLEY ICE CENTRE,PREMISES RELATED EXPENDITURE,WATER,2555,CASTLE WATER LIMITED,05/07/2022 00:00,261170,191.4,CA0625,CASTLE WATER LIMITED,27/06/2022 00:00,31/07/2022 00:00,P04-2023,
,LEE VALLEY ICE CENTRE,PREMISES RELATED EXPENDITURE,WATER,2555,CASTLE WATER LIMITED,05/07/2022 00:00,261818,40.32,CA0625,CASTLE WATER LIMITED,27/06/2022 00:00,31/07/2022 00:00,P04-2023,
,LEE VALLEY ICE CENTRE,PREMISES RELATED EXPENDITURE,WATER,2555,CASTLE WATER LIMITED,05/07/2022 00:00,262740,53.76,CA0625,CASTLE WATER LIMITED,27/06/2022 00:00,31/07/2022 00:00,P04-2023,
,LEE VALLEY ICE CENTRE,PREMISES RELATED EXPENDITURE,WATER,2555,CASTLE WATER LIMITED,05/07/2022 00:00,263969,6702.19,CA0625,CASTLE WATER LIMITED,27/06/2022 00:00,31/07/2022 00:00,P04-2023,
,LEE VALLEY ICE CENTRE,PREMISES RELATED EXPENDITURE,WATER,2555,CASTLE WATER LIMITED,05/07/2022 00:00,264350,21.51,CA0625,CASTLE WATER LIMITED,27/06/2022 00:00,31/07/2022 00:00,P04-2023,
,LEE VALLEY ICE CENTRE,PREMISES RELATED EXPENDITURE,WATER,2555,CASTLE WATER LIMITED,05/07/2022 00:00,264714,-6702.19,CA0625,CASTLE WATER LIMITED,27/06/2022 00:00,31/07/2022 00:00,P04-2023,
,LEE VALLEY ICE CENTRE,PREMISES RELATED EXPENDITURE,WATER,2555,CASTLE WATER LIMITED,05/07/2022 00:00,264715,-11893.74,CA0625,CASTLE WATER LIMITED,27/06/2022 00:00,31/07/2022 00:00,P04-2023,
,LEE VALLEY ICE CENTRE,PREMISES RELATED EXPENDITURE,WATER,2555,CASTLE WATER LIMITED,05/07/2022 00:00,264716,-21.51,CA0625,CASTLE WATER LIMITED,27/06/2022 00:00,31/07/2022 00:00,P04-2023,
,LEE VALLEY ICE CENTRE,PREMISES RELATED EXPENDITURE,WATER,2555,CASTLE WATER LIMITED,05/07/2022 00:00,264717,-40.32,CA0625,CASTLE WATER LIMITED,27/06/2022 00:00,31/07/2022 00:00,P04-2023,
,LEE VALLEY ICE CENTRE,PREMISES RELATED EXPENDITURE,WATER,2555,CASTLE WATER LIMITED,05/07/2022 00:00,264718,-53.76,CA0625,CASTLE WATER LIMITED,27/06/2022 00:00,31/07/2022 00:00,P04-2023,
,LEE VALLEY ICE CENTRE,PREMISES RELATED EXPENDITURE,WATER,2555,CASTLE WATER LIMITED,05/07/2022 00:00,264719,-191.4,CA0625,CASTLE WATER LIMITED,27/06/2022 00:00,31/07/2022 00:00,P04-2023,
,LEE VALLEY ICE CENTRE,PREMISES RELATED EXPENDITURE,WATER,2555,CASTLE WATER LIMITED,18/07/2022 00:00,265145,-2361.19,CA0625,CASTLE WATER LIMITED,27/06/2022 00:00,31/07/2022 00:00,P04-2023,
,LV LEISURE CENTRE CAMPSITE,PREMISES RELATED EXPENDITURE,WATER,2555,CASTLE WATER LIMITED,12/07/2022 00:00,264964,735.97,CA0625,CASTLE WATER LIMITED,27/06/2022 00:00,31/07/2022 00:00,P04-2023,
,LV LEISURE CENTRE CAMPSITE,PREMISES RELATED EXPENDITURE,WATER,2555,CASTLE WATER LIMITED,12/07/2022 00:00,264964,656.87,CA0625,CASTLE WATER LIMITED,27/06/2022 00:00,31/07/2022 00:00,P04-2023,
,LV LEISURE CENTRE CAMPSITE,PREMISES RELATED EXPENDITURE,WATER,2555,CASTLE WATER LIMITED,12/07/2022 00:00,264965,32.34,CA0625,CASTLE WATER LIMITED,27/06/2022 00:00,31/07/2022 00:00,P04-2023,
,LV LEISURE CENTRE CAMPSITE,PREMISES RELATED EXPENDITURE,WATER,2555,CASTLE WATER LIMITED,12/07/2022 00:00,264965,32.49,CA0625,CASTLE WATER LIMITED,27/06/2022 00:00,31/07/2022 00:00,P04-2023,
P&V,MYDDELTON HOUSE,PREMISES RELATED EXPENDITURE,CLEANING & DOMESTIC SUPPLIES,2666,P118748-SERVICE-HS248 Refuse Sacks Medium Duty x 3,31/07/2022 00:00,265331,44.71,HY0043,HYGIENE SYSTEMS LTD,27/06/2022 00:00,31/07/2022 00:00,P04-2023,
P&V,MYDDELTON HOUSE,PREMISES RELATED EXPENDITURE,CLEANING & DOMESTIC SUPPLIES,2666,P118748-SERVICE-OL407A Clover Rinse Aid 1 x 5ltr,31/07/2022 00:00,265331,6.84,HY0043,HYGIENE SYSTEMS LTD,27/06/2022 00:00,31/07/2022 00:00,P04-2023,
P&V,MYDDELTON HOUSE,PREMISES RELATED EXPENDITURE,CLEANING & DOMESTIC SUPPLIES,2666,P118748-SERVICE-HSNW573036 Clean & Clever 3 in 1 Dishwasher T,31/07/2022 00:00,265331,39.3,HY0043,HYGIENE SYSTEMS LTD,27/06/2022 00:00,31/07/2022 00:00,P04-2023,
P&V,MYDDELTON HOUSE,PREMISES RELATED EXPENDITURE,CLEANING & DOMESTIC SUPPLIES,2666,P118748-SERVICE-JAS72 Disherwasher Salt x 2,31/07/2022 00:00,265331,13.26,HY0043,HYGIENE SYSTEMS LTD,27/06/2022 00:00,31/07/2022 00:00,P04-2023,
,LEE VALLEY MARINA SPRINGFIELD,PREMISES RELATED EXPENDITURE,CLEANING & DOMESTIC SUPPLIES,2666,"P117558-SERVICE-Site Cleaning for April,May,June 22",19/07/2022 00:00,265164,972.31,MA0015,MAYFAIR CLEANING COMPANY LIMITED,27/06/2022 00:00,31/07/2022 00:00,P04-2023,
,LEE VALLEY MARINA SPRINGFIELD,PREMISES RELATED EXPENDITURE,CLEANING & DOMESTIC SUPPLIES,2666,"P117558-SERVICE-Site Cleaning for April,May,June 22",19/07/2022 00:00,265165,972.31,MA0015,MAYFAIR CLEANING COMPANY LIMITED,27/06/2022 00:00,31/07/2022 00:00,P04-2023,
,LEE VALLEY MARINA SPRINGFIELD,PREMISES RELATED EXPENDITURE,CLEANING & DOMESTIC SUPPLIES,2666,"P117560-SERVICE-Sanitary Disposal/Dust Mats,Eco Shield",25/07/2022 00:00,265324,191.64,PE0015,PHS GROUP PLC,27/06/2022 00:00,31/07/2022 00:00,P04-2023,
,LEE VALLEY CAMPSITE,PREMISES RELATED EXPENDITURE,CLEANING & DOMESTIC SUPPLIES,2666,P118559-SERVICE-cleaning materials,05/07/2022 00:00,263473,132.79,HY0043,HYGIENE SYSTEMS LTD,27/06/2022 00:00,31/07/2022 00:00,P04-2023,
,LEE VALLEY CARAVAN PARK,PREMISES RELATED EXPENDITURE,CLEANING & DOMESTIC SUPPLIES,2666,P118545-SERVICE-Door Stickers - Cleaners,05/07/2022 00:00,264694,15,SL0528,SLAM SIGNS LTD,27/06/2022 00:00,31/07/2022 00:00,P04-2023,
,LEE VALLEY CARAVAN PARK,PREMISES RELATED EXPENDITURE,CLEANING & DOMESTIC SUPPLIES,2666,P118705-SERVICE-Various cleaning products,25/07/2022 00:00,265206,416.89,HY0043,HYGIENE SYSTEMS LTD,27/06/2022 00:00,31/07/2022 00:00,P04-2023,
P&V,RIVER LEE COUNTRY PARK,PREMISES RELATED EXPENDITURE,CLEANING & DOMESTIC SUPPLIES,2666,P118092-SERVICE-PS8511 - 1x Microfibre Cloths Blue Pk10,04/07/2022 00:00,264078,9.75,TH0008,JKL SOLUTIONS LTD,27/06/2022 00:00,31/07/2022 00:00,P04-2023,
P&V,RIVER LEE COUNTRY PARK,PREMISES RELATED EXPENDITURE,CLEANING & DOMESTIC SUPPLIES,2666,P118092-SERVICE-2W04586 - 1x Sanitiser Spray 750ml Pk6,04/07/2022 00:00,264078,17.25,TH0008,JKL SOLUTIONS LTD,27/06/2022 00:00,31/07/2022 00:00,P04-2023,
P&V,RIVER LEE COUNTRY PARK,PREMISES RELATED EXPENDITURE,CLEANING & DOMESTIC SUPPLIES,2666,P118092-SERVICE-2W31829 -1x 70 Percent Alcohol Hand Sanitiser,04/07/2022 00:00,264078,21.31,TH0008,JKL SOLUTIONS LTD,27/06/2022 00:00,31/07/2022 00:00,P04-2023,
P&V,RIVER LEE COUNTRY PARK,PREMISES RELATED EXPENDITURE,CLEANING & DOMESTIC SUPPLIES,2666,P118092-SERVICE-71163CP - 6x Disinfectant Hand and Surface Wi,04/07/2022 00:00,264078,61.32,TH0008,JKL SOLUTIONS LTD,27/06/2022 00:00,31/07/2022 00:00,P04-2023,
P&V,RIVER LEE COUNTRY PARK,PREMISES RELATED EXPENDITURE,CLEANING & DOMESTIC SUPPLIES,2666,P118092-SERVICE-GLOVEX100 - 1x  Vinyl Glove Size XL Box 100,04/07/2022 00:00,264078,9.99,TH0008,JKL SOLUTIONS LTD,27/06/2022 00:00,31/07/2022 00:00,P04-2023,
P&V,RIVER LEE COUNTRY PARK,PREMISES RELATED EXPENDITURE,CLEANING & DOMESTIC SUPPLIES,2666,P118092-SERVICE-GLOVEM100 - 1x Powder Free Vinyl Gloves Size,04/07/2022 00:00,264078,9.99,TH0008,JKL SOLUTIONS LTD,27/06/2022 00:00,31/07/2022 00:00,P04-2023,
P&V,RIVER LEE COUNTRY PARK,PREMISES RELATED EXPENDITURE,CLEANING & DOMESTIC SUPPLIES,2666,P118092-SERVICE-CPD34619 - 1x Carex Handwash 250ml Pk6,04/07/2022 00:00,264078,11.28,TH0008,JKL SOLUTIONS LTD,27/06/2022 00:00,31/07/2022 00:00,P04-2023,
P&V,ALMOST WILD CAMPSITE,PREMISES RELATED EXPENDITURE,CLEANING & DOMESTIC SUPPLIES,2666,"P118588-SERVICE-Toilet rolls, Oven Cleaner, Black bags AMW",11/07/2022 00:00,264956,233.52,HY0043,HYGIENE SYSTEMS LTD,27/06/2022 00:00,31/07/2022 00:00,P04-2023,
,LV HOCKEY AND TENNIS CENTRE,PREMISES RELATED EXPENDITURE,CLEANING & DOMESTIC SUPPLIES,2666,P113781-SERVICE-Hygiene prducts August - Dec 2021,19/07/2022 00:00,265131,-795.52,PE0015,PHS GROUP PLC,27/06/2022 00:00,31/07/2022 00:00,P04-2023,
,LV HOCKEY AND TENNIS CENTRE,PREMISES RELATED EXPENDITURE,CLEANING & DOMESTIC SUPPLIES,2666,P113781-SERVICE-Hygiene prducts August - Dec 2021,19/07/2022 00:00,265132,374.22,PE0015,PHS GROUP PLC,27/06/2022 00:00,31/07/2022 00:00,P04-2023,
,LV HOCKEY AND TENNIS CENTRE,PREMISES RELATED EXPENDITURE,CLEANING & DOMESTIC SUPPLIES,2666,P113781-SERVICE-Hygiene prducts August - Dec 2021,19/07/2022 00:00,265133,374.22,PE0015,PHS GROUP PLC,27/06/2022 00:00,31/07/2022 00:00,P04-2023,
,LV LEISURE CENTRE CAMPSITE,PREMISES RELATED EXPENDITURE,CLEANING & DOMESTIC SUPPLIES,2666,P118480-SERVICE-Toilet brushes cleaning products,12/07/2022 00:00,264586,45.68,HY0043,HYGIENE SYSTEMS LTD,27/06/2022 00:00,31/07/2022 00:00,P04-2023,
P&V,LEE VALLEY FARM HOLYFIELDHALL,TRANSPORT RELATED EXPENDITURE,TRANSPORT RUNNING EXPENSES,3333,P111461-SERVICE-Machinery Spares,06/07/2022 00:00,264679,-363,SP0034,SPALDINGS (UK) LIMITED,27/06/2022 00:00,31/07/2022 00:00,P04-2023,
P&V,LEE VALLEY FARM HOLYFIELDHALL,TRANSPORT RELATED EXPENDITURE,TRANSPORT RUNNING EXPENSES,3333,P117678-SERVICE-Chains & Drives,06/07/2022 00:00,264690,25.68,BE0066,BEARINGS AND DRIVES,27/06/2022 00:00,31/07/2022 00:00,P04-2023,
P&V,LEE VALLEY FARM HOLYFIELDHALL,TRANSPORT RELATED EXPENDITURE,TRANSPORT RUNNING EXPENSES,3333,P117678-SERVICE-Chains & Drives,06/07/2022 00:00,264691,22.72,BE0066,BEARINGS AND DRIVES,27/06/2022 00:00,31/07/2022 00:00,P04-2023,
P&V,LEE VALLEY FARM HOLYFIELDHALL,TRANSPORT RELATED EXPENDITURE,TRANSPORT RUNNING EXPENSES,3333,P117605-SERVICE-Machinery Spares,06/07/2022 00:00,264702,128.55,SP0034,SPALDINGS (UK) LIMITED,27/06/2022 00:00,31/07/2022 00:00,P04-2023,
P&V,LEE VALLEY FARM HOLYFIELDHALL,TRANSPORT RELATED EXPENDITURE,TRANSPORT RUNNING EXPENSES,3333,P117596-SERVICE-Puncture Repair,06/07/2022 00:00,264705,65,KB0006,KB TYRES LTD,27/06/2022 00:00,31/07/2022 00:00,P04-2023,
P&V,LEE VALLEY FARM HOLYFIELDHALL,TRANSPORT RELATED EXPENDITURE,TRANSPORT RUNNING EXPENSES,3333,P117965-SERVICE-Fuel & Def Filter,19/07/2022 00:00,264962,-76.39,CH0719,CHANDLERS (FARM EQUIPMENT) LTD,27/06/2022 00:00,31/07/2022 00:00,P04-2023,
P&V,LEE VALLEY FARM HOLYFIELDHALL,TRANSPORT RELATED EXPENDITURE,TRANSPORT RUNNING EXPENSES,3333,P118368-SERVICE-Mirror Glass/Def Filter,19/07/2022 00:00,264963,-76.39,CH0719,CHANDLERS (FARM EQUIPMENT) LTD,27/06/2022 00:00,31/07/2022 00:00,P04-2023,
P&V,LEE VALLEY FARM HOLYFIELDHALL,TRANSPORT RELATED EXPENDITURE,TRANSPORT RUNNING EXPENSES,3333,P118711-SERVICE-Repair Fault,19/07/2022 00:00,265002,188.47,OL0059,OLIVER LANDPOWER LIMITED,27/06/2022 00:00,31/07/2022 00:00,P04-2023,
P&V,LEE VALLEY FARM HOLYFIELDHALL,TRANSPORT RELATED EXPENDITURE,TRANSPORT RUNNING EXPENSES,3333,P117598-SERVICE-Tractor Spares,19/07/2022 00:00,265003,175.2,RW0257,R. W. CRAWFORD AGRICULTURAL MACHINERY LTD,27/06/2022 00:00,31/07/2022 00:00,P04-2023,
P&V,LEE VALLEY FARM HOLYFIELDHALL,TRANSPORT RELATED EXPENDITURE,TRANSPORT RUNNING EXPENSES,3333,P117597-SERVICE-Hose Repairs/Sundries,19/07/2022 00:00,265018,143.36,HU0003,ALLIANCE AUTOMOTIVE UK CV LIMITED T/A,27/06/2022 00:00,31/07/2022 00:00,P04-2023,
P&V,LEE VALLEY FARM HOLYFIELDHALL,TRANSPORT RELATED EXPENDITURE,TRANSPORT RUNNING EXPENSES,3333,P118708-SERVICE-Re-weld Inside Tube,19/07/2022 00:00,265162,50,MO0487,MOBILE WELDING SERVICES,27/06/2022 00:00,31/07/2022 00:00,P04-2023,
P&V,LEE VALLEY FARM HOLYFIELDHALL,TRANSPORT RELATED EXPENDITURE,TRANSPORT RUNNING EXPENSES,3333,P117598-SERVICE-Tractor Spares,31/07/2022 00:00,265362,633.99,RW0257,R. W. CRAWFORD AGRICULTURAL MACHINERY LTD,27/06/2022 00:00,31/07/2022 00:00,P04-2023,
P&V,LEE VALLEY FARM HOLYFIELDHALL,TRANSPORT RELATED EXPENDITURE,TRANSPORT RUNNING EXPENSES,3333,P118846-SERVICE-Spayer Test/Fuel Surcharge,31/07/2022 00:00,265402,230,SP0036,SPRAYTEC LTD,27/06/2022 00:00,31/07/2022 00:00,P04-2023,
P&V,LEE VALLEY FARM HOLYFIELDHALL,TRANSPORT RELATED EXPENDITURE,TRANSPORT RUNNING EXPENSES,3333,P118847-SERVICE-Parts,31/07/2022 00:00,265403,238.19,OL0059,OLIVER LANDPOWER LIMITED,27/06/2022 00:00,31/07/2022 00:00,P04-2023,
P&V,LEE VALLEY FARM HOLYFIELDHALL,TRANSPORT RELATED EXPENDITURE,TRANSPORT RUNNING EXPENSES,3333,P117601-SERVICE-Tractor Spares,31/07/2022 00:00,265408,261.04,OL0001,OLIVER AGRICULTURE LTD,27/06/2022 00:00,31/07/2022 00:00,P04-2023,
P&V,LEE VALLEY FARM HOLYFIELDHALL,TRANSPORT RELATED EXPENDITURE,TRANSPORT RUNNING EXPENSES,3333,P117572-SERVICE-Parts,31/07/2022 00:00,265537,45,GR0022,GROUP COMPONENTS LIMITED,27/06/2022 00:00,31/07/2022 00:00,P04-2023,
P&V,LEE VALLEY FARM HOLYFIELDHALL,TRANSPORT RELATED EXPENDITURE,TRANSPORT RUNNING EXPENSES,3333,P118883-SERVICE-Diesel,31/07/2022 00:00,265566,5301.75,TE0052,CERTAS ENERGY UK LIMITED,27/06/2022 00:00,31/07/2022 00:00,P04-2023,
P&V,LEE VALLEY FARM HOLYFIELDHALL,TRANSPORT RELATED EXPENDITURE,TRANSPORT RUNNING EXPENSES,3333,P117598-SERVICE-Tractor Spares,31/07/2022 00:00,265597,29.18,RW0257,R. W. CRAWFORD AGRICULTURAL MACHINERY LTD,27/06/2022 00:00,31/07/2022 00:00,P04-2023,
,LV CAMPSITE CARAVAN SALES,TRANSPORT RELATED EXPENDITURE,TRANSPORT RUNNING EXPENSES,3333,P117621-SERVICE-Transport for Peaky Pods,19/07/2022 00:00,264809,8780.6,LO0459,LONDON LODGES UK,27/06/2022 00:00,31/07/2022 00:00,P04-2023,
,LV CAMPSITE CARAVAN SALES,TRANSPORT RELATED EXPENDITURE,TRANSPORT RUNNING EXPENSES,3333,P118511-SERVICE-transport for caraby langham to dobbs weir,27/07/2022 00:00,265395,2100,LO0459,LONDON LODGES UK,27/06/2022 00:00,31/07/2022 00:00,P04-2023,
P&V,FISHERIES MANAGEMENT,TRANSPORT RELATED EXPENDITURE,VEHICLE FUEL,3335,ALLSTAR BUSINESS SOLUTIONS LTD,04/07/2022 00:00,264697,46,AR0035,ALLSTAR BUSINESS SOLUTIONS LTD,27/06/2022 00:00,31/07/2022 00:00,P04-2023,
P&V,FISHERIES MANAGEMENT,TRANSPORT RELATED EXPENDITURE,VEHICLE FUEL,3335,ALLSTAR BUSINESS SOLUTIONS LTD,31/07/2022 00:00,265598,181.23,AR0035,ALLSTAR BUSINESS SOLUTIONS LTD,27/06/2022 00:00,31/07/2022 00:00,P04-2023,
,LEE VALLEY MARINA SPRINGFIELD,TRANSPORT RELATED EXPENDITURE,VEHICLE FUEL,3335,ALLSTAR BUSINESS SOLUTIONS LTD,04/07/2022 00:00,264697,23,AR0035,ALLSTAR BUSINESS SOLUTIONS LTD,27/06/2022 00:00,31/07/2022 00:00,P04-2023,
,LEE VALLEY MARINA STANSTEAD,TRANSPORT RELATED EXPENDITURE,VEHICLE FUEL,3335,ALLSTAR BUSINESS SOLUTIONS LTD,04/07/2022 00:00,264697,144.9,AR0035,ALLSTAR BUSINESS SOLUTIONS LTD,27/06/2022 00:00,31/07/2022 00:00,P04-2023,
,LEE VALLEY MARINA STANSTEAD,TRANSPORT RELATED EXPENDITURE,VEHICLE FUEL,3335,ALLSTAR BUSINESS SOLUTIONS LTD,31/07/2022 00:00,265598,284.17,AR0035,ALLSTAR BUSINESS SOLUTIONS LTD,27/06/2022 00:00,31/07/2022 00:00,P04-2023,
P&V,LEE VALLEY FARM HOLYFIELDHALL,TRANSPORT RELATED EXPENDITURE,VEHICLE FUEL,3335,ALLSTAR BUSINESS SOLUTIONS LTD,04/07/2022 00:00,264697,391.02,AR0035,ALLSTAR BUSINESS SOLUTIONS LTD,27/06/2022 00:00,31/07/2022 00:00,P04-2023,
P&V,LEE VALLEY FARM HOLYFIELDHALL,TRANSPORT RELATED EXPENDITURE,VEHICLE FUEL,3335,ALLSTAR BUSINESS SOLUTIONS LTD,31/07/2022 00:00,265598,287.72,AR0035,ALLSTAR BUSINESS SOLUTIONS LTD,27/06/2022 00:00,31/07/2022 00:00,P04-2023,
,LEE VALLEY CAMPSITE,TRANSPORT RELATED EXPENDITURE,VEHICLE FUEL,3335,ALLSTAR BUSINESS SOLUTIONS LTD,04/07/2022 00:00,264697,198.73,AR0035,ALLSTAR BUSINESS SOLUTIONS LTD,27/06/2022 00:00,31/07/2022 00:00,P04-2023,
,LEE VALLEY CAMPSITE,TRANSPORT RELATED EXPENDITURE,VEHICLE FUEL,3335,ALLSTAR BUSINESS SOLUTIONS LTD,31/07/2022 00:00,265598,70.02,AR0035,ALLSTAR BUSINESS SOLUTIONS LTD,27/06/2022 00:00,31/07/2022 00:00,P04-2023,
,LEE VALLEY CARAVAN PARK,TRANSPORT RELATED EXPENDITURE,VEHICLE FUEL,3335,ALLSTAR BUSINESS SOLUTIONS LTD,04/07/2022 00:00,264697,80.55,AR0035,ALLSTAR BUSINESS SOLUTIONS LTD,27/06/2022 00:00,31/07/2022 00:00,P04-2023,
,LEE VALLEY CARAVAN PARK,TRANSPORT RELATED EXPENDITURE,VEHICLE FUEL,3335,ALLSTAR BUSINESS SOLUTIONS LTD,31/07/2022 00:00,265598,414.39,AR0035,ALLSTAR BUSINESS SOLUTIONS LTD,27/06/2022 00:00,31/07/2022 00:00,P04-2023,
P&V,MYDDELTON HOUSE GARDENS,TRANSPORT RELATED EXPENDITURE,VEHICLE FUEL,3335,ALLSTAR BUSINESS SOLUTIONS LTD,04/07/2022 00:00,264697,23,AR0035,ALLSTAR BUSINESS SOLUTIONS LTD,27/06/2022 00:00,31/07/2022 00:00,P04-2023,
P&V,MYDDELTON HOUSE GARDENS,TRANSPORT RELATED EXPENDITURE,VEHICLE FUEL,3335,ALLSTAR BUSINESS SOLUTIONS LTD,31/07/2022 00:00,265598,80.21,AR0035,ALLSTAR BUSINESS SOLUTIONS LTD,27/06/2022 00:00,31/07/2022 00:00,P04-2023,
P&V,SOUTH AREA RANGERS,TRANSPORT RELATED EXPENDITURE,VEHICLE FUEL,3335,ALLSTAR BUSINESS SOLUTIONS LTD,04/07/2022 00:00,264697,546.15,AR0035,ALLSTAR BUSINESS SOLUTIONS LTD,27/06/2022 00:00,31/07/2022 00:00,P04-2023,
P&V,SOUTH AREA RANGERS,TRANSPORT RELATED EXPENDITURE,VEHICLE FUEL,3335,ALLSTAR BUSINESS SOLUTIONS LTD,31/07/2022 00:00,265598,832.31,AR0035,ALLSTAR BUSINESS SOLUTIONS LTD,27/06/2022 00:00,31/07/2022 00:00,P04-2023,
P&V,RIVER LEE COUNTRY PARK,TRANSPORT RELATED EXPENDITURE,VEHICLE FUEL,3335,ALLSTAR BUSINESS SOLUTIONS LTD,04/07/2022 00:00,264697,567.86,AR0035,ALLSTAR BUSINESS SOLUTIONS LTD,27/06/2022 00:00,31/07/2022 00:00,P04-2023,
P&V,RIVER LEE COUNTRY PARK,TRANSPORT RELATED EXPENDITURE,VEHICLE FUEL,3335,ALLSTAR BUSINESS SOLUTIONS LTD,31/07/2022 00:00,265598,64.79,AR0035,ALLSTAR BUSINESS SOLUTIONS LTD,27/06/2022 00:00,31/07/2022 00:00,P04-2023,
P&V,RIVER LEE COUNTRY PARK,TRANSPORT RELATED EXPENDITURE,VEHICLE FUEL,3335,ALLSTAR BUSINESS SOLUTIONS LTD,31/07/2022 00:00,265598,473.49,AR0035,ALLSTAR BUSINESS SOLUTIONS LTD,27/06/2022 00:00,31/07/2022 00:00,P04-2023,
,LV LEISURE CENTRE CAMPSITE,TRANSPORT RELATED EXPENDITURE,VEHICLE FUEL,3335,ALLSTAR BUSINESS SOLUTIONS LTD,04/07/2022 00:00,264697,66.88,AR0035,ALLSTAR BUSINESS SOLUTIONS LTD,27/06/2022 00:00,31/07/2022 00:00,P04-2023,
,LV LEISURE CENTRE CAMPSITE,TRANSPORT RELATED EXPENDITURE,VEHICLE FUEL,3335,ALLSTAR BUSINESS SOLUTIONS LTD,04/07/2022 00:00,264697,23,AR0035,ALLSTAR BUSINESS SOLUTIONS LTD,27/06/2022 00:00,31/07/2022 00:00,P04-2023,
,LV LEISURE CENTRE GOLF COURSE,TRANSPORT RELATED EXPENDITURE,VEHICLE FUEL,3335,P118333-SERVICE-Increase paymen fort invoice,27/07/2022 00:00,264356,106.52,HA0400,WATSON FUELS,27/06/2022 00:00,31/07/2022 00:00,P04-2023,
,LV LEISURE CENTRE GOLF COURSE,TRANSPORT RELATED EXPENDITURE,VEHICLE FUEL,3335,P118333-SERVICE-1800 litres of red diesel,27/07/2022 00:00,264356,1884.96,HA0400,WATSON FUELS,27/06/2022 00:00,31/07/2022 00:00,P04-2023,
P&V,SOUTH AREA RANGERS,TRANSPORT RELATED EXPENDITURE,VEHICLE REPAIRS & MAINTENANCE,3338,P115763-SERVICE-Replacement Chipper Tyre,11/07/2022 00:00,264854,49,AD0016,ADVANCE TYRE SERVICE,27/06/2022 00:00,31/07/2022 00:00,P04-2023,
P&V,RIVER LEE COUNTRY PARK,TRANSPORT RELATED EXPENDITURE,VEHICLE REPAIRS & MAINTENANCE,3338,P116230-SERVICE-3x Tyres - GK65 UTF,11/07/2022 00:00,264852,204,AD0016,ADVANCE TYRE SERVICE,27/06/2022 00:00,31/07/2022 00:00,P04-2023,
P&V,RIVER LEE COUNTRY PARK,TRANSPORT RELATED EXPENDITURE,VEHICLE REPAIRS & MAINTENANCE,3338,P118073-SERVICE-New Tyre - Isuzu GK65 MMU,11/07/2022 00:00,264853,85,AD0016,ADVANCE TYRE SERVICE,27/06/2022 00:00,31/07/2022 00:00,P04-2023,
,LEE VALLEY MARINA SPRINGFIELD,SUPPLIES AND SERVICES,EQUIPMENT & MATERIALS,4111,P118684-SERVICE-Workshop supplies (gas etc),25/07/2022 00:00,265197,386.39,EL0281,ELTHAM WELDING SUPPLIES LIMITED,27/06/2022 00:00,31/07/2022 00:00,P04-2023,
,LEE VALLEY MARINA SPRINGFIELD,SUPPLIES AND SERVICES,EQUIPMENT & MATERIALS,4111,P118685-SERVICE-Anodes for workshop,25/07/2022 00:00,265202,1166.7,MI0200,MIDLAND CHANDLERS LIMITED,27/06/2022 00:00,31/07/2022 00:00,P04-2023,
,LEE VALLEY MARINA STANSTEAD,SUPPLIES AND SERVICES,EQUIPMENT & MATERIALS,4111,P118394-SERVICE-hazard pole and chains,06/07/2022 00:00,264560,156.87,TH0008,JKL SOLUTIONS LTD,27/06/2022 00:00,31/07/2022 00:00,P04-2023,
,LEE VALLEY MARINA STANSTEAD,SUPPLIES AND SERVICES,EQUIPMENT & MATERIALS,4111,"P118490-SERVICE-brushes, grease+gun, batt charger etc",06/07/2022 00:00,264568,141.04,SC0057,SCREWFIX DIRECT LTD,27/06/2022 00:00,31/07/2022 00:00,P04-2023,
,LEE VALLEY MARINA STANSTEAD,SUPPLIES AND SERVICES,EQUIPMENT & MATERIALS,4111,P118720-SERVICE-twisted knot wire ends - workshop,25/07/2022 00:00,265210,24.67,SC0057,SCREWFIX DIRECT LTD,27/06/2022 00:00,31/07/2022 00:00,P04-2023,
,STANSTEAD RECHARGEABLE WORKS,SUPPLIES AND SERVICES,EQUIPMENT & MATERIALS,4111,P118430-SERVICE-blacking,04/07/2022 00:00,264488,1928.8,SM0658,SML PAINTS AND COATINGS,27/06/2022 00:00,31/07/2022 00:00,P04-2023,
,STANSTEAD RECHARGEABLE WORKS,SUPPLIES AND SERVICES,EQUIPMENT & MATERIALS,4111,P118525-SERVICE-anodes,27/07/2022 00:00,264677,1920.75,MI0200,MIDLAND CHANDLERS LIMITED,27/06/2022 00:00,31/07/2022 00:00,P04-2023,
,STANSTEAD RECHARGEABLE WORKS,SUPPLIES AND SERVICES,EQUIPMENT & MATERIALS,4111,P118694-SERVICE-compression couplling and crane plug,19/07/2022 00:00,265117,7.88,HO0349,HOMETREND SUPPLIES LTD,27/06/2022 00:00,31/07/2022 00:00,P04-2023,
,LEE VALLEY CAMPSITE,SUPPLIES AND SERVICES,EQUIPMENT & MATERIALS,4111,P118747-SERVICE-Fire blanket,25/07/2022 00:00,265207,32.1,FI0215,VALUE  PRODUCTS LTD,27/06/2022 00:00,31/07/2022 00:00,P04-2023,
,LEE VALLEY CAMPSITE,SUPPLIES AND SERVICES,EQUIPMENT & MATERIALS,4111,P118842-SERVICE-2 Ironing boards for Sewardstone Peaky Pods,31/07/2022 00:00,265574,117.32,AM0406,AMAZON PAYMENTS UK LIMITED,27/06/2022 00:00,31/07/2022 00:00,P04-2023,
,LEE VALLEY CARAVAN PARK,SUPPLIES AND SERVICES,EQUIPMENT & MATERIALS,4111,"P118615-SERVICE-antifreeze, wood filler, silicone",11/07/2022 00:00,264611,59.48,SC0057,SCREWFIX DIRECT LTD,27/06/2022 00:00,31/07/2022 00:00,P04-2023,
,LEE VALLEY CARAVAN PARK,SUPPLIES AND SERVICES,EQUIPMENT & MATERIALS,4111,P118516-SERVICE-Wood to repair Play area,11/07/2022 00:00,264829,195,LE0012,LEASIDE TIMBER & BUILDERS MERCHANTS LTD,27/06/2022 00:00,31/07/2022 00:00,P04-2023,
,LEE VALLEY CARAVAN PARK,SUPPLIES AND SERVICES,EQUIPMENT & MATERIALS,4111,"P118725-SERVICE-Saw blade, screws and paint",19/07/2022 00:00,265006,57.78,SC0057,SCREWFIX DIRECT LTD,27/06/2022 00:00,31/07/2022 00:00,P04-2023,
,LEE VALLEY CARAVAN PARK,SUPPLIES AND SERVICES,EQUIPMENT & MATERIALS,4111,P118777-SERVICE-Electrical Works Tent Field,26/07/2022 00:00,265314,195,BR0018,BRADSHAW ELECTRICAL LIMITED,27/06/2022 00:00,31/07/2022 00:00,P04-2023,
P&V,MYDDELTON HOUSE GARDENS,SUPPLIES AND SERVICES,EQUIPMENT & MATERIALS,4111,P118648-SERVICE-FLAGPOLE JULY 22,26/07/2022 00:00,265112,287.4,FL0266,FLAGPOLE EXPRESS,27/06/2022 00:00,31/07/2022 00:00,P04-2023,
P&V,MYDDLETON HSE HERITAGE CENTRE,SUPPLIES AND SERVICES,EQUIPMENT & MATERIALS,4111,TESCO-TEASPOONS,13/07/2022 00:00,264983,6.67,FI0001,DIRECTOR OF FINANCE - CASH,27/06/2022 00:00,31/07/2022 00:00,P04-2023,
P&V,MYDDLETON HSE HERITAGE CENTRE,SUPPLIES AND SERVICES,EQUIPMENT & MATERIALS,4111,TESCO-BAG,13/07/2022 00:00,264983,0.17,FI0001,DIRECTOR OF FINANCE - CASH,27/06/2022 00:00,31/07/2022 00:00,P04-2023,
P&V,MYDDLETON HSE HERITAGE CENTRE,SUPPLIES AND SERVICES,EQUIPMENT & MATERIALS,4111,SAMPOUN-CONTAINERS,13/07/2022 00:00,264983,1.67,FI0001,DIRECTOR OF FINANCE - CASH,27/06/2022 00:00,31/07/2022 00:00,P04-2023,
P&V,MYDDLETON HSE HERITAGE CENTRE,SUPPLIES AND SERVICES,EQUIPMENT & MATERIALS,4111,LIDL-BAG,13/07/2022 00:00,264983,0.46,FI0001,DIRECTOR OF FINANCE - CASH,27/06/2022 00:00,31/07/2022 00:00,P04-2023,
P&V,NORTH AREA RANGERS,SUPPLIES AND SERVICES,EQUIPMENT & MATERIALS,4111,P117538-SERVICE-Equipment & Materials as and when required,12/07/2022 00:00,264958,17.84,JE0011,SAINT-GOBAIN BUILDING DISTRIBUTION,27/06/2022 00:00,31/07/2022 00:00,P04-2023,
P&V,NORTH AREA RANGERS,SUPPLIES AND SERVICES,EQUIPMENT & MATERIALS,4111,P117538-SERVICE-Equipment & Materials as and when required,25/07/2022 00:00,265179,19.98,JE0011,SAINT-GOBAIN BUILDING DISTRIBUTION,27/06/2022 00:00,31/07/2022 00:00,P04-2023,
P&V,SOUTH AREA RANGERS,SUPPLIES AND SERVICES,EQUIPMENT & MATERIALS,4111,P118798-SERVICE-3x Dampstick 8 Pack,27/07/2022 00:00,265410,410.5,PR0413,PROTECTIVE PACKAGING LIMITED,27/06/2022 00:00,31/07/2022 00:00,P04-2023,
P&V,GUNPOWDER PARK,SUPPLIES AND SERVICES,EQUIPMENT & MATERIALS,4111,P118698-SERVICE-10x 746625 - Black Refuse Bags - Extar Heavy,25/07/2022 00:00,265191,336.8,GR0020,GREENHAM TRADING LIMITED,27/06/2022 00:00,31/07/2022 00:00,P04-2023,
P&V,RIVER LEE COUNTRY PARK,SUPPLIES AND SERVICES,EQUIPMENT & MATERIALS,4111,P117701-SERVICE-Air Rifle Case,04/07/2022 00:00,264609,20.28,MA0125,MAY OF LONDON (GUNMAKERS) LTD,27/06/2022 00:00,31/07/2022 00:00,P04-2023,
P&V,RIVER LEE COUNTRY PARK,SUPPLIES AND SERVICES,EQUIPMENT & MATERIALS,4111,P118524-SERVICE-30x Nitrile Palm Gloves - 303029080,04/07/2022 00:00,264706,89.1,GR0020,GREENHAM TRADING LIMITED,27/06/2022 00:00,31/07/2022 00:00,P04-2023,
P&V,RIVER LEE COUNTRY PARK,SUPPLIES AND SERVICES,EQUIPMENT & MATERIALS,4111,P118719-SERVICE-1x Fuel Store,27/07/2022 00:00,265361,769,RI0223,RICHARDSON SHELVING,27/06/2022 00:00,31/07/2022 00:00,P04-2023,
P&V,ALMOST WILD CAMPSITE,SUPPLIES AND SERVICES,EQUIPMENT & MATERIALS,4111,P118457-SERVICE-Assemble Furniture in Safari Tent AMW,26/07/2022 00:00,265316,150,MO0041,CAPSER,27/06/2022 00:00,31/07/2022 00:00,P04-2023,
P&V,ALMOST WILD CAMPSITE,SUPPLIES AND SERVICES,EQUIPMENT & MATERIALS,4111,CAPSER,26/07/2022 00:00,265317,-500,MO0041,CAPSER,27/06/2022 00:00,31/07/2022 00:00,P04-2023,
P&V,ALMOST WILD CAMPSITE,SUPPLIES AND SERVICES,EQUIPMENT & MATERIALS,4111,CAPSER,26/07/2022 00:00,265317,250,MO0041,CAPSER,27/06/2022 00:00,31/07/2022 00:00,P04-2023,
P&V,ALMOST WILD CAMPSITE,SUPPLIES AND SERVICES,EQUIPMENT & MATERIALS,4111,CAPSER,26/07/2022 00:00,265317,250,MO0041,CAPSER,27/06/2022 00:00,31/07/2022 00:00,P04-2023,
P&V,ALMOST WILD CAMPSITE,SUPPLIES AND SERVICES,EQUIPMENT & MATERIALS,4111,P118458-SERVICE-Deliver and set up cabin (office) AMW,26/07/2022 00:00,265317,500,MO0041,CAPSER,27/06/2022 00:00,31/07/2022 00:00,P04-2023,
,LV LEISURE CENTRE CAMPSITE,SUPPLIES AND SERVICES,EQUIPMENT & MATERIALS,4111,P118664-SERVICE-Equipment maintenancce,31/07/2022 00:00,264484,113.94,SC0057,SCREWFIX DIRECT LTD,27/06/2022 00:00,31/07/2022 00:00,P04-2023,
,LV LEISURE CENTRE CAMPSITE,SUPPLIES AND SERVICES,EQUIPMENT & MATERIALS,4111,SCREWFIX DIRECT LTD,31/07/2022 00:00,264484,-113.94,SC0057,SCREWFIX DIRECT LTD,27/06/2022 00:00,31/07/2022 00:00,P04-2023,
,LV LEISURE CENTRE CAMPSITE,SUPPLIES AND SERVICES,EQUIPMENT & MATERIALS,4111,SCREWFIX DIRECT LTD,31/07/2022 00:00,264484,46.99,SC0057,SCREWFIX DIRECT LTD,27/06/2022 00:00,31/07/2022 00:00,P04-2023,
,LV LEISURE CENTRE CAMPSITE,SUPPLIES AND SERVICES,EQUIPMENT & MATERIALS,4111,SCREWFIX DIRECT LTD,31/07/2022 00:00,264484,66.95,SC0057,SCREWFIX DIRECT LTD,27/06/2022 00:00,31/07/2022 00:00,P04-2023,
,LV LEISURE CENTRE CAMPSITE,SUPPLIES AND SERVICES,EQUIPMENT & MATERIALS,4111,P118581-SERVICE-HSL Cleaning Supplies,13/07/2022 00:00,264957,454.28,HY0043,HYGIENE SYSTEMS LTD,27/06/2022 00:00,31/07/2022 00:00,P04-2023,
,LV LEISURE CENTRE GOLF COURSE,SUPPLIES AND SERVICES,EQUIPMENT & MATERIALS,4111,P118192-SERVICE-Increase PO to cover invoice,19/07/2022 00:00,263733,100.84,LE0279,REESINK TURFCARE UK LIMITED,27/06/2022 00:00,31/07/2022 00:00,P04-2023,
,LV LEISURE CENTRE GOLF COURSE,SUPPLIES AND SERVICES,EQUIPMENT & MATERIALS,4111,P118192-SERVICE-Increase PO to cover invoice,19/07/2022 00:00,263733,169.92,LE0279,REESINK TURFCARE UK LIMITED,27/06/2022 00:00,31/07/2022 00:00,P04-2023,
,LV LEISURE CENTRE GOLF COURSE,SUPPLIES AND SERVICES,EQUIPMENT & MATERIALS,4111,P118192-SERVICE-golf equipment for machines,19/07/2022 00:00,263733,718.04,LE0279,REESINK TURFCARE UK LIMITED,27/06/2022 00:00,31/07/2022 00:00,P04-2023,
,LV LEISURE CENTRE GOLF COURSE,SUPPLIES AND SERVICES,EQUIPMENT & MATERIALS,4111,P118510-SERVICE-PARTS BUSHES,20/07/2022 00:00,264810,44.58,DO0027,ERNEST DOE & SONS LTD,27/06/2022 00:00,31/07/2022 00:00,P04-2023,
CEO,RESIDENTIAL ACCOMMODATION,SUPPLIES AND SERVICES,EQUIPMENT MAINTENANCE,4112,CHAMBERLAIN OF LONDON,27/07/2022 00:00,265345,250,LO0128,CHAMBERLAIN OF LONDON,27/06/2022 00:00,31/07/2022 00:00,P04-2023,
CEO,COMMERCIAL ACCOMMODATION,SUPPLIES AND SERVICES,EQUIPMENT MAINTENANCE,4112,CHAMBERLAIN OF LONDON,27/07/2022 00:00,265346,10,LO0128,CHAMBERLAIN OF LONDON,27/06/2022 00:00,31/07/2022 00:00,P04-2023,
CEO,COMMERCIAL ACCOMMODATION,SUPPLIES AND SERVICES,EQUIPMENT MAINTENANCE,4112,CHAMBERLAIN OF LONDON,27/07/2022 00:00,265347,10,LO0128,CHAMBERLAIN OF LONDON,27/06/2022 00:00,31/07/2022 00:00,P04-2023,
,LEE VALLEY CAMPSITE,SUPPLIES AND SERVICES,EQUIPMENT MAINTENANCE,4112,P118558-SERVICE-Washing machine repair,04/07/2022 00:00,264671,175,AL0434,ALLSOP & FRANCIS,27/06/2022 00:00,31/07/2022 00:00,P04-2023,
,LEE VALLEY CAMPSITE,SUPPLIES AND SERVICES,EQUIPMENT MAINTENANCE,4112,P118557-SERVICE-Lock repairs CC7 & CC8,04/07/2022 00:00,264689,98,BA0005,BARNET LOCK  & SECURITY LTD,27/06/2022 00:00,31/07/2022 00:00,P04-2023,
,LEE VALLEY CAMPSITE,SUPPLIES AND SERVICES,EQUIPMENT MAINTENANCE,4112,P118775-SERVICE-TV  INSTALLATION PEAKYS,31/07/2022 00:00,265374,766.35,AS0343,ASCENT AERIALS,27/06/2022 00:00,31/07/2022 00:00,P04-2023,
,LEE VALLEY CAMPSITE,SUPPLIES AND SERVICES,EQUIPMENT MAINTENANCE,4112,P118774-SERVICE-2 mower repairs,31/07/2022 00:00,265396,219,GE0440,GTEC'S,27/06/2022 00:00,31/07/2022 00:00,P04-2023,
,LV CAMPSITE CARAVAN SALES,SUPPLIES AND SERVICES,EQUIPMENT MAINTENANCE,4112,P118556-SERVICE-HH41 New Electric supply,06/07/2022 00:00,264582,295,BR0018,BRADSHAW ELECTRICAL LIMITED,27/06/2022 00:00,31/07/2022 00:00,P04-2023,
,LEE VALLEY CARAVAN PARK,SUPPLIES AND SERVICES,EQUIPMENT MAINTENANCE,4112,P118608-SERVICE-power failure to wifi tent field lamp post,11/07/2022 00:00,264524,70,BR0018,BRADSHAW ELECTRICAL LIMITED,27/06/2022 00:00,31/07/2022 00:00,P04-2023,
,LEE VALLEY CARAVAN PARK,SUPPLIES AND SERVICES,EQUIPMENT MAINTENANCE,4112,P118469-SERVICE-Replace gearbox bearings Kubota,11/07/2022 00:00,264536,2138.2,GE0440,GTEC'S,27/06/2022 00:00,31/07/2022 00:00,P04-2023,
,LEE VALLEY CARAVAN PARK,SUPPLIES AND SERVICES,EQUIPMENT MAINTENANCE,4112,P118489-SERVICE-Reparis to Kubota F3680,11/07/2022 00:00,264537,453.43,GE0440,GTEC'S,27/06/2022 00:00,31/07/2022 00:00,P04-2023,
,LEE VALLEY CARAVAN PARK,SUPPLIES AND SERVICES,EQUIPMENT MAINTENANCE,4112,P118621-SERVICE-Campsite socket repair,11/07/2022 00:00,264749,730,BR0018,BRADSHAW ELECTRICAL LIMITED,27/06/2022 00:00,31/07/2022 00:00,P04-2023,
,LEE VALLEY CARAVAN PARK,SUPPLIES AND SERVICES,EQUIPMENT MAINTENANCE,4112,P118622-SERVICE-Call out to static tripping,11/07/2022 00:00,264751,120,BR0018,BRADSHAW ELECTRICAL LIMITED,27/06/2022 00:00,31/07/2022 00:00,P04-2023,
,LEE VALLEY CARAVAN PARK,SUPPLIES AND SERVICES,EQUIPMENT MAINTENANCE,4112,P118564-SERVICE-Call out to fix 2nd Barrier Arm,19/07/2022 00:00,265121,345,AU0245,AUTO-MATE SYSTEMS LIMITED,27/06/2022 00:00,31/07/2022 00:00,P04-2023,
,LEE VALLEY CARAVAN PARK,SUPPLIES AND SERVICES,EQUIPMENT MAINTENANCE,4112,P118503-SERVICE-Exchange and replace fire extinguishers/,26/07/2022 00:00,265338,1977.07,TJ0009,T.J.FIRE & SECURITY,27/06/2022 00:00,31/07/2022 00:00,P04-2023,
,LEE VALLEY CARAVAN PARK,SUPPLIES AND SERVICES,EQUIPMENT MAINTENANCE,4112,P118503-SERVICE-Exchange and replace fire extinguishers/,27/07/2022 00:00,265375,184.22,TJ0009,T.J.FIRE & SECURITY,27/06/2022 00:00,31/07/2022 00:00,P04-2023,
P&V,ABBEY GARDENS,SUPPLIES AND SERVICES,EQUIPMENT MAINTENANCE,4112,P118799-SERVICE-Replace Light at WAG,26/07/2022 00:00,265312,110,BR0018,BRADSHAW ELECTRICAL LIMITED,27/06/2022 00:00,31/07/2022 00:00,P04-2023,
P&V,RIVER LEE COUNTRY PARK,SUPPLIES AND SERVICES,EQUIPMENT MAINTENANCE,4112,P117701-SERVICE-Air Rifle Service,04/07/2022 00:00,264609,104.17,MA0125,MAY OF LONDON (GUNMAKERS) LTD,27/06/2022 00:00,31/07/2022 00:00,P04-2023,
,LV LEISURE CENTRE CAMPSITE,SUPPLIES AND SERVICES,EQUIPMENT MAINTENANCE,4112,P118464-SERVICE-Serviced isuki,12/07/2022 00:00,264808,386.78,GE0440,GTEC'S,27/06/2022 00:00,31/07/2022 00:00,P04-2023,
,LV LEISURE CENTRE CAMPSITE,SUPPLIES AND SERVICES,EQUIPMENT MAINTENANCE,4112,P118544-SERVICE-Iseki pins,12/07/2022 00:00,264811,61.58,DO0027,ERNEST DOE & SONS LTD,27/06/2022 00:00,31/07/2022 00:00,P04-2023,
,LV LEISURE CENTRE GOLF COURSE,SUPPLIES AND SERVICES,EQUIPMENT MAINTENANCE,4112,P118813-SERVICE-faulty decoders and coils,31/07/2022 00:00,264606,792.74,SJ0635,SJS IRRIGATION,27/06/2022 00:00,31/07/2022 00:00,P04-2023,
,LV LEISURE CENTRE GOLF COURSE,SUPPLIES AND SERVICES,EQUIPMENT MAINTENANCE,4112,P118729-SERVICE-Nathaniel repairs golf,31/07/2022 00:00,265344,533.95,GE0440,GTEC'S,27/06/2022 00:00,31/07/2022 00:00,P04-2023,
R&B,INFORMATION TECHNOLOGY,SUPPLIES AND SERVICES,IT CORE SYSTEMS,4113,P118598-SERVICE-CIPHR Payroll August 22,11/07/2022 00:00,264761,542.44,CI0721,CIPHR,27/06/2022 00:00,31/07/2022 00:00,P04-2023,
R&B,INFORMATION TECHNOLOGY,SUPPLIES AND SERVICES,IT CORE SYSTEMS,4113,P118745-SERVICE-Monthly Fees 15 July 2022,25/07/2022 00:00,265203,351,CO0440,VERIFONE SERVICES UK & IRELAND LTD,27/06/2022 00:00,31/07/2022 00:00,P04-2023,
R&B,INFORMATION TECHNOLOGY,SUPPLIES AND SERVICES,IT NETWORK & TELECOMS COSTS,4114,P118606-SERVICE-MPLS for all sites July 22,11/07/2022 00:00,264756,9605.86,PP0200,PPSNET LIMITED,27/06/2022 00:00,31/07/2022 00:00,P04-2023,
R&B,INFORMATION TECHNOLOGY,SUPPLIES AND SERVICES,IT NETWORK & TELECOMS COSTS,4114,P117871-SERVICE-Monthly SIP Apr 22-Mar 23,11/07/2022 00:00,264759,147.07,FR0131,VOICEFLEX LTD,27/06/2022 00:00,31/07/2022 00:00,P04-2023,
,LEE VALLEY CARAVAN PARK,SUPPLIES AND SERVICES,IT NETWORK & TELECOMS COSTS,4114,MY O2,31/07/2022 00:00,265531,60.3,O20134,MY O2,27/06/2022 00:00,31/07/2022 00:00,P04-2023,
,LEE VALLEY CARAVAN PARK,SUPPLIES AND SERVICES,EQUIPMENT HIRE,4115,P118620-SERVICE-Cultivator hire,11/07/2022 00:00,264787,191.98,ED0011,EDWARDS PLANT & TOOL HIRE LIMITED,27/06/2022 00:00,31/07/2022 00:00,P04-2023,
R&B,HUMAN RESOURCES,SUPPLIES AND SERVICES,IT HARDWARE & SOFTWARE COSTS,4116,P118836-SERVICE-Acrobat Pro,31/07/2022 00:00,265568,150.08,BY0531,BYTES SOFTWARE SERVICES LIMITED,27/06/2022 00:00,31/07/2022 00:00,P04-2023,
P&V,MYDDELTON HOUSE,SUPPLIES AND SERVICES,IT HARDWARE & SOFTWARE COSTS,4116,ZEN INTERNET LTD,11/07/2022 00:00,264827,42,ZE0007,ZEN INTERNET LTD,27/06/2022 00:00,31/07/2022 00:00,P04-2023,
P&V,MYDDELTON HOUSE,SUPPLIES AND SERVICES,IT HARDWARE & SOFTWARE COSTS,4116,ZEN INTERNET LTD,18/07/2022 00:00,265007,42,ZE0007,ZEN INTERNET LTD,27/06/2022 00:00,31/07/2022 00:00,P04-2023,
P&V,MYDDELTON HOUSE,SUPPLIES AND SERVICES,IT HARDWARE & SOFTWARE COSTS,4116,ZEN INTERNET LTD,31/07/2022 00:00,265417,29.5,ZE0007,ZEN INTERNET LTD,27/06/2022 00:00,31/07/2022 00:00,P04-2023,
CEO,PR/COMMUNICATIONS,SUPPLIES AND SERVICES,IT HARDWARE & SOFTWARE COSTS,4116,P118836-SERVICE-Photoshop,31/07/2022 00:00,265568,304.56,BY0531,BYTES SOFTWARE SERVICES LIMITED,27/06/2022 00:00,31/07/2022 00:00,P04-2023,
CEO,PR/COMMUNICATIONS,SUPPLIES AND SERVICES,IT HARDWARE & SOFTWARE COSTS,4116,P118836-SERVICE-Creative Cloud,31/07/2022 00:00,265568,712.8,BY0531,BYTES SOFTWARE SERVICES LIMITED,27/06/2022 00:00,31/07/2022 00:00,P04-2023,
CEO,PR/COMMUNICATIONS,SUPPLIES AND SERVICES,IT HARDWARE & SOFTWARE COSTS,4116,P118836-SERVICE-Creative Cloud,31/07/2022 00:00,265568,712.8,BY0531,BYTES SOFTWARE SERVICES LIMITED,27/06/2022 00:00,31/07/2022 00:00,P04-2023,
CEO,REGENERATION & PLANNING,SUPPLIES AND SERVICES,IT HARDWARE & SOFTWARE COSTS,4116,P118836-SERVICE-Acrobat Pro,31/07/2022 00:00,265568,150.08,BY0531,BYTES SOFTWARE SERVICES LIMITED,27/06/2022 00:00,31/07/2022 00:00,P04-2023,
CEO,REGENERATION & PLANNING,SUPPLIES AND SERVICES,IT HARDWARE & SOFTWARE COSTS,4116,P118836-SERVICE-Acrobat Pro,31/07/2022 00:00,265568,150.08,BY0531,BYTES SOFTWARE SERVICES LIMITED,27/06/2022 00:00,31/07/2022 00:00,P04-2023,
R&B,INFORMATION TECHNOLOGY,SUPPLIES AND SERVICES,IT HARDWARE & SOFTWARE COSTS,4116,P118836-SERVICE- Acrobat Pro - 150.08 & Photoshop  - 304.56,31/07/2022 00:00,265568,454.64,BY0531,BYTES SOFTWARE SERVICES LIMITED,27/06/2022 00:00,31/07/2022 00:00,P04-2023,
R&B,INFORMATION TECHNOLOGY,SUPPLIES AND SERVICES,IT HARDWARE & SOFTWARE COSTS,4116,P118836-SERVICE-Acrobat Pro,31/07/2022 00:00,265568,150.08,BY0531,BYTES SOFTWARE SERVICES LIMITED,27/06/2022 00:00,31/07/2022 00:00,P04-2023,
R&B,INFORMATION TECHNOLOGY,SUPPLIES AND SERVICES,IT HARDWARE & SOFTWARE COSTS,4116,P118836-SERVICE-Acrobat Pro,31/07/2022 00:00,265568,150.08,BY0531,BYTES SOFTWARE SERVICES LIMITED,27/06/2022 00:00,31/07/2022 00:00,P04-2023,
R&B,INFORMATION TECHNOLOGY,SUPPLIES AND SERVICES,IT HARDWARE & SOFTWARE COSTS,4116,P118836-SERVICE-Acrobat Pro,31/07/2022 00:00,265568,150.08,BY0531,BYTES SOFTWARE SERVICES LIMITED,27/06/2022 00:00,31/07/2022 00:00,P04-2023,
R&B,INFORMATION TECHNOLOGY,SUPPLIES AND SERVICES,IT HARDWARE & SOFTWARE COSTS,4116,"P118836-SERVICE-13 Acrobat Pro, 3 Photoshop & 2 Creative Clou",31/07/2022 00:00,265568,454.64,BY0531,BYTES SOFTWARE SERVICES LIMITED,27/06/2022 00:00,31/07/2022 00:00,P04-2023,
,LEE VALLEY MARINA SPRINGFIELD,SUPPLIES AND SERVICES,IT HARDWARE & SOFTWARE COSTS,4116,P118633-SERVICE-Annual Service Maintenance Fee July,19/07/2022 00:00,264924,139.26,WI0209,WI FI SPARK LIMITED,27/06/2022 00:00,31/07/2022 00:00,P04-2023,
,LEE VALLEY MARINA SPRINGFIELD,SUPPLIES AND SERVICES,IT HARDWARE & SOFTWARE COSTS,4116,ZEN INTERNET LTD,18/07/2022 00:00,265008,38,ZE0007,ZEN INTERNET LTD,27/06/2022 00:00,31/07/2022 00:00,P04-2023,
,LEE VALLEY MARINA STANSTEAD,SUPPLIES AND SERVICES,IT HARDWARE & SOFTWARE COSTS,4116,ZEN INTERNET LTD,18/07/2022 00:00,265024,31.32,ZE0007,ZEN INTERNET LTD,27/06/2022 00:00,31/07/2022 00:00,P04-2023,
,LEE VALLEY WATERWORKS CENTRE,SUPPLIES AND SERVICES,IT HARDWARE & SOFTWARE COSTS,4116,P118633-SERVICE-Annual Service Maintenance Fee July Stanstead,19/07/2022 00:00,264924,218.36,WI0209,WI FI SPARK LIMITED,27/06/2022 00:00,31/07/2022 00:00,P04-2023,
,LEE VALLEY CAMPSITE,SUPPLIES AND SERVICES,IT HARDWARE & SOFTWARE COSTS,4116,P118633-SERVICE-Annual Service Maintenance Fee July,19/07/2022 00:00,264924,218.92,WI0209,WI FI SPARK LIMITED,27/06/2022 00:00,31/07/2022 00:00,P04-2023,
,LEE VALLEY CARAVAN PARK,SUPPLIES AND SERVICES,IT HARDWARE & SOFTWARE COSTS,4116,P118633-SERVICE-Annual Service Maintenance Fee July,19/07/2022 00:00,264924,310.65,WI0209,WI FI SPARK LIMITED,27/06/2022 00:00,31/07/2022 00:00,P04-2023,
P&V,POLICY & PERFORMANCE (L&E),SUPPLIES AND SERVICES,IT HARDWARE & SOFTWARE COSTS,4116,P118836-SERVICE-Acrobat Pro,31/07/2022 00:00,265568,150.08,BY0531,BYTES SOFTWARE SERVICES LIMITED,27/06/2022 00:00,31/07/2022 00:00,P04-2023,
P&V,POLICY & PERFORMANCE (L&E),SUPPLIES AND SERVICES,IT HARDWARE & SOFTWARE COSTS,4116,P118836-SERVICE-Acrobat Pro,31/07/2022 00:00,265568,150.08,BY0531,BYTES SOFTWARE SERVICES LIMITED,27/06/2022 00:00,31/07/2022 00:00,P04-2023,
P&V,EVENTS MANAGEMENT (PR),SUPPLIES AND SERVICES,IT HARDWARE & SOFTWARE COSTS,4116,P118836-SERVICE-Acrobat Pro,31/07/2022 00:00,265568,150.08,BY0531,BYTES SOFTWARE SERVICES LIMITED,27/06/2022 00:00,31/07/2022 00:00,P04-2023,
P&V,EVENTS MANAGEMENT (PR),SUPPLIES AND SERVICES,IT HARDWARE & SOFTWARE COSTS,4116,P118836-SERVICE-Acrobat Pro,31/07/2022 00:00,265568,150.08,BY0531,BYTES SOFTWARE SERVICES LIMITED,27/06/2022 00:00,31/07/2022 00:00,P04-2023,
,LV LEISURE CENTRE CAMPSITE,SUPPLIES AND SERVICES,IT HARDWARE & SOFTWARE COSTS,4116,P118633-SERVICE-Annual Service Maintenance Fee July,19/07/2022 00:00,264924,163.42,WI0209,WI FI SPARK LIMITED,27/06/2022 00:00,31/07/2022 00:00,P04-2023,
,LV LEISURE CENTRE CAMPSITE,SUPPLIES AND SERVICES,IT HARDWARE & SOFTWARE COSTS,4116,P118836-SERVICE-Acrobat Pro,31/07/2022 00:00,265568,150.08,BY0531,BYTES SOFTWARE SERVICES LIMITED,27/06/2022 00:00,31/07/2022 00:00,P04-2023,
,LEE VALLEY MARINA SPRINGFIELD,SUPPLIES AND SERVICES,IT MAINTENANCE AGREEMENTS,4119,P118594-SERVICE-Support & Data June 22,11/07/2022 00:00,264830,75.19,CY0653,CYBERTILL,27/06/2022 00:00,31/07/2022 00:00,P04-2023,
,LEE VALLEY MARINA STANSTEAD,SUPPLIES AND SERVICES,IT MAINTENANCE AGREEMENTS,4119,P118594-SERVICE-Support & Data June 22,11/07/2022 00:00,264830,75.2,CY0653,CYBERTILL,27/06/2022 00:00,31/07/2022 00:00,P04-2023,
,LEE VALLEY CAMPSITE,SUPPLIES AND SERVICES,IT MAINTENANCE AGREEMENTS,4119,P117645-SERVICE-Monthly Subscription May 22 - Oct 22,25/07/2022 00:00,265119,145.5,NE0218,NETGUIDES LIMITED,27/06/2022 00:00,31/07/2022 00:00,P04-2023,
,LEE VALLEY CARAVAN PARK,SUPPLIES AND SERVICES,IT MAINTENANCE AGREEMENTS,4119,P117645-SERVICE-Monthly Subscriptions May 22 - Oct 22 - Dobbs,25/07/2022 00:00,265119,145.5,NE0218,NETGUIDES LIMITED,27/06/2022 00:00,31/07/2022 00:00,P04-2023,
P&V,ALMOST WILD CAMPSITE,SUPPLIES AND SERVICES,IT MAINTENANCE AGREEMENTS,4119,P117645-SERVICE-Monthly Subscription May 22 - Oct 22,25/07/2022 00:00,265119,145.5,NE0218,NETGUIDES LIMITED,27/06/2022 00:00,31/07/2022 00:00,P04-2023,
,LV LEISURE CENTRE CAMPSITE,SUPPLIES AND SERVICES,IT MAINTENANCE AGREEMENTS,4119,P117645-SERVICE-Monthly Subscription May 22 - Oct 22 - Edmont,25/07/2022 00:00,265119,145.5,NE0218,NETGUIDES LIMITED,27/06/2022 00:00,31/07/2022 00:00,P04-2023,
,LV LEISURE CENTRE GOLF COURSE,SUPPLIES AND SERVICES,IT MAINTENANCE AGREEMENTS,4119,P118586-SERVICE-Digitickets Services June 2022,11/07/2022 00:00,264757,594.53,DI0304,DIGITAL TICKETING SYSTEMS LTD (DIGITICKETS),27/06/2022 00:00,31/07/2022 00:00,P04-2023,
,LEE VALLEY CAMPSITE,EXPENDITURE FROM RENEWALS FUND,EXPENDITURE FROM RENEWALS FUND,4121,P117839-SERVICE-Yearly Static code 3,11/07/2022 00:00,264583,455,BR0018,BRADSHAW ELECTRICAL LIMITED,27/06/2022 00:00,31/07/2022 00:00,P04-2023,
,LEE VALLEY CAMPSITE,EXPENDITURE FROM RENEWALS FUND,EXPENDITURE FROM RENEWALS FUND,4121,P117839-SERVICE-Code 2 Electrical works,11/07/2022 00:00,264583,1950,BR0018,BRADSHAW ELECTRICAL LIMITED,27/06/2022 00:00,31/07/2022 00:00,P04-2023,
,LEE VALLEY CAMPSITE,EXPENDITURE FROM RENEWALS FUND,EXPENDITURE FROM RENEWALS FUND,4121,P117839-SERVICE-Yearly Static code 2,11/07/2022 00:00,264583,2580,BR0018,BRADSHAW ELECTRICAL LIMITED,27/06/2022 00:00,31/07/2022 00:00,P04-2023,
,LEE VALLEY CAMPSITE,EXPENDITURE FROM RENEWALS FUND,EXPENDITURE FROM RENEWALS FUND,4121,P117839-SERVICE-Yearly touring  code 3,11/07/2022 00:00,264583,40,BR0018,BRADSHAW ELECTRICAL LIMITED,27/06/2022 00:00,31/07/2022 00:00,P04-2023,
P&V,MYDDELTON HOUSE GARDENS,SUPPLIES AND SERVICES,MATERIALS (COUNTERS),4123,P118377-SERVICE-sign for VC painting,04/07/2022 00:00,264503,20,SI0024,SIGNS EXPRESS (HARLOW),27/06/2022 00:00,31/07/2022 00:00,P04-2023,
P&V,SOUTH AREA RANGERS,SUPPLIES AND SERVICES,MATERIALS (COUNTERS),4123,P118574-SERVICE-Replace Visitor Counter Leeside Road,11/07/2022 00:00,264936,1850,HE0418,HEALTHMATIC LTD,27/06/2022 00:00,31/07/2022 00:00,P04-2023,
,LEE VALLEY CAMPSITE,SUPPLIES AND SERVICES,MATERIALS (GROUNDS MAINT),4125,P118749-SERVICE-bark & topsoil for Peaky area,25/07/2022 00:00,265122,1360,TH0051,THOMPSONS OF CREWS HILL LTD,27/06/2022 00:00,31/07/2022 00:00,P04-2023,
,LEE VALLEY CARAVAN PARK,SUPPLIES AND SERVICES,MATERIALS (GROUNDS MAINT),4125,P118616-SERVICE-replace faulty meter plot 17,11/07/2022 00:00,264525,100,BR0018,BRADSHAW ELECTRICAL LIMITED,27/06/2022 00:00,31/07/2022 00:00,P04-2023,
,LEE VALLEY CARAVAN PARK,SUPPLIES AND SERVICES,MATERIALS (GROUNDS MAINT),4125,P118761-SERVICE-Delivery charge,31/07/2022 00:00,265542,10,SL0528,SLAM SIGNS LTD,27/06/2022 00:00,31/07/2022 00:00,P04-2023,
P&V,MYDDELTON HOUSE GARDENS,SUPPLIES AND SERVICES,MATERIALS (GROUNDS MAINT),4125,P118690-SERVICE-wood order,13/07/2022 00:00,264685,28.26,LE0012,LEASIDE TIMBER & BUILDERS MERCHANTS LTD,27/06/2022 00:00,31/07/2022 00:00,P04-2023,
P&V,MYDDELTON HOUSE GARDENS,SUPPLIES AND SERVICES,MATERIALS (GROUNDS MAINT),4125,P117928-SERVICE-cedar stem sort may 22,12/07/2022 00:00,264737,390,VE0004,PRINCIPAL TREES LTD,27/06/2022 00:00,31/07/2022 00:00,P04-2023,
P&V,MYDDELTON HOUSE GARDENS,SUPPLIES AND SERVICES,MATERIALS (GROUNDS MAINT),4125,P117927-SERVICE-removal of fallen sycamore 22,12/07/2022 00:00,264738,975,VE0004,PRINCIPAL TREES LTD,27/06/2022 00:00,31/07/2022 00:00,P04-2023,
,LV LEISURE CENTRE CAMPSITE,SUPPLIES AND SERVICES,MATERIALS (GROUNDS MAINT),4125,P118597-SERVICE-No dogs on golf course sign,25/07/2022 00:00,265130,62,SL0528,SLAM SIGNS LTD,27/06/2022 00:00,31/07/2022 00:00,P04-2023,
,LEE VALLEY MARINA SPRINGFIELD,SUPPLIES AND SERVICES,MATERIALS (TOOLS & PLANT),4127,P118715-SERVICE-New fan belt,19/07/2022 00:00,265187,50,FA0269,FAST FUEL SERVICES,27/06/2022 00:00,31/07/2022 00:00,P04-2023,
,LEE VALLEY MARINA SPRINGFIELD,SUPPLIES AND SERVICES,MATERIALS (TOOLS & PLANT),4127,P118715-SERVICE-Service & Inspection,19/07/2022 00:00,265187,250,FA0269,FAST FUEL SERVICES,27/06/2022 00:00,31/07/2022 00:00,P04-2023,
,SPRINGFIELD RECHARGEABLE WORKS,SUPPLIES AND SERVICES,MATERIALS (ENG OTHER),4130,P118356-SERVICE-To hire 110 ton crane on 28/6/22,19/07/2022 00:00,264927,1400,BA0339,BALDWINS CRANE HIRE LTD,27/06/2022 00:00,31/07/2022 00:00,P04-2023,
,SPRINGFIELD RECHARGEABLE WORKS,SUPPLIES AND SERVICES,MATERIALS (ENG OTHER),4130,P118356-SERVICE-To provide Insurance @ 15%,19/07/2022 00:00,264927,210,BA0339,BALDWINS CRANE HIRE LTD,27/06/2022 00:00,31/07/2022 00:00,P04-2023,
,STANSTEAD RECHARGEABLE WORKS,SUPPLIES AND SERVICES,MATERIALS (ENG OTHER),4130,P118320-SERVICE-BOC 12mth rental green cyclinder,27/07/2022 00:00,264698,129.45,BO0015,BOC LTD,27/06/2022 00:00,31/07/2022 00:00,P04-2023,
,STANSTEAD RECHARGEABLE WORKS,SUPPLIES AND SERVICES,MATERIALS (ENG OTHER),4130,P118320-SERVICE-BOC 12mth rental green cyclinder,25/07/2022 00:00,265200,-129.45,BO0015,BOC LTD,27/06/2022 00:00,31/07/2022 00:00,P04-2023,
,LEE VALLEY CARAVAN PARK,SUPPLIES AND SERVICES,MATERIALS (ENG OTHER),4130,P118732-SERVICE-No Admitance Signs,31/07/2022 00:00,265542,60,SL0528,SLAM SIGNS LTD,27/06/2022 00:00,31/07/2022 00:00,P04-2023,
P&V,LEE VALLEY FARM HOLYFIELDHALL,SUPPLIES AND SERVICES,FEED,4133,P118585-SERVICE-Optima/Prime Rearer,06/07/2022 00:00,264758,3471.52,BO0246,FOR FARMERS UK LTD,27/06/2022 00:00,31/07/2022 00:00,P04-2023,
P&V,LEE VALLEY FARM HOLYFIELDHALL,SUPPLIES AND SERVICES,FEED,4133,P118712-SERVICE-Selcoplus,19/07/2022 00:00,265025,4388.4,BO0246,FOR FARMERS UK LTD,27/06/2022 00:00,31/07/2022 00:00,P04-2023,
P&V,LEE VALLEY FARM HOLYFIELDHALL,SUPPLIES AND SERVICES,FEED,4133,P118780-SERVICE-Nutrimol,26/07/2022 00:00,265204,2511.6,BO0246,FOR FARMERS UK LTD,27/06/2022 00:00,31/07/2022 00:00,P04-2023,
P&V,LEE VALLEY FARM HOLYFIELDHALL,SUPPLIES AND SERVICES,SPRAYS,4136,P118644-SERVICE-Thistlex/Leystar,11/07/2022 00:00,264844,499.6,HA0013,HARLOW AGRICULTURAL MERCHANTS,27/06/2022 00:00,31/07/2022 00:00,P04-2023,
P&V,LEE VALLEY FARM HOLYFIELDHALL,SUPPLIES AND SERVICES,SPRAYS,4136,P118844-SERVICE-Sprays,31/07/2022 00:00,265365,5045.2,HA0013,HARLOW AGRICULTURAL MERCHANTS,27/06/2022 00:00,31/07/2022 00:00,P04-2023,
P&V,LEE VALLEY FARM HOLYFIELDHALL,SUPPLIES AND SERVICES,DAIRY SUNDRIES,4138,P117594-SERVICE-Dairy Sundries,04/07/2022 00:00,264539,22.15,MI0023,MILL DAIRY SERVICES,27/06/2022 00:00,31/07/2022 00:00,P04-2023,
P&V,LEE VALLEY FARM HOLYFIELDHALL,SUPPLIES AND SERVICES,DAIRY SUNDRIES,4138,P118536-SERVICE-Animal Removal,04/07/2022 00:00,264662,125,MA0074,W MARTIN & SON LIMITED,27/06/2022 00:00,31/07/2022 00:00,P04-2023,
P&V,LEE VALLEY FARM HOLYFIELDHALL,SUPPLIES AND SERVICES,DAIRY SUNDRIES,4138,P118583-SERVICE-Gases,06/07/2022 00:00,264695,102.45,BO0015,BOC LTD,27/06/2022 00:00,31/07/2022 00:00,P04-2023,
P&V,LEE VALLEY FARM HOLYFIELDHALL,SUPPLIES AND SERVICES,DAIRY SUNDRIES,4138,P117958-SERVICE-Liquid Nitrogen,06/07/2022 00:00,264699,61.25,GE0005,GENUS BREEDING LTD,27/06/2022 00:00,31/07/2022 00:00,P04-2023,
P&V,LEE VALLEY FARM HOLYFIELDHALL,SUPPLIES AND SERVICES,DAIRY SUNDRIES,4138,P118584-SERVICE-Replace Broken Light,06/07/2022 00:00,264750,65,BR0018,BRADSHAW ELECTRICAL LIMITED,27/06/2022 00:00,31/07/2022 00:00,P04-2023,
P&V,LEE VALLEY FARM HOLYFIELDHALL,SUPPLIES AND SERVICES,DAIRY SUNDRIES,4138,P117594-SERVICE-Dairy Sundries,11/07/2022 00:00,264815,26.65,MI0023,MILL DAIRY SERVICES,27/06/2022 00:00,31/07/2022 00:00,P04-2023,
P&V,LEE VALLEY FARM HOLYFIELDHALL,SUPPLIES AND SERVICES,DAIRY SUNDRIES,4138,P118645-SERVICE-Sidewall Film/Gravel Bags,11/07/2022 00:00,264848,385,AR0460,ARK AGRICULTURE LTD,27/06/2022 00:00,31/07/2022 00:00,P04-2023,
P&V,LEE VALLEY FARM HOLYFIELDHALL,SUPPLIES AND SERVICES,DAIRY SUNDRIES,4138,P117612-SERVICE-Dairy Sundries,11/07/2022 00:00,264849,13.78,FA0099,FARM & COUNTRY SUPPLIES LTD,27/06/2022 00:00,31/07/2022 00:00,P04-2023,
P&V,LEE VALLEY FARM HOLYFIELDHALL,SUPPLIES AND SERVICES,DAIRY SUNDRIES,4138,P118646-SERVICE-Dairy Sundries,11/07/2022 00:00,264850,84.23,FA0099,FARM & COUNTRY SUPPLIES LTD,27/06/2022 00:00,31/07/2022 00:00,P04-2023,
P&V,LEE VALLEY FARM HOLYFIELDHALL,SUPPLIES AND SERVICES,DAIRY SUNDRIES,4138,P117609-SERVICE-Dead Animal Removal,11/07/2022 00:00,264947,54,MA0074,W MARTIN & SON LIMITED,27/06/2022 00:00,31/07/2022 00:00,P04-2023,
P&V,LEE VALLEY FARM HOLYFIELDHALL,SUPPLIES AND SERVICES,DAIRY SUNDRIES,4138,P118709-SERVICE-Magnet,19/07/2022 00:00,264961,50.36,CH0719,CHANDLERS (FARM EQUIPMENT) LTD,27/06/2022 00:00,31/07/2022 00:00,P04-2023,
P&V,LEE VALLEY FARM HOLYFIELDHALL,SUPPLIES AND SERVICES,DAIRY SUNDRIES,4138,P118845-SERVICE-Pearson Liners,31/07/2022 00:00,265381,690.11,MI0023,MILL DAIRY SERVICES,27/06/2022 00:00,31/07/2022 00:00,P04-2023,
P&V,LEE VALLEY FARM HOLYFIELDHALL,SUPPLIES AND SERVICES,DAIRY SUNDRIES,4138,P117599-SERVICE-Slurry Machine Spares,31/07/2022 00:00,265562,343.81,ST0237,STORTH LTD,27/06/2022 00:00,31/07/2022 00:00,P04-2023,
P&V,LEE VALLEY FARM HOLYFIELDHALL,SUPPLIES AND SERVICES,DAIRY SUNDRIES,4138,P118371-SERVICE-Dairy Sundries,31/07/2022 00:00,265572,333.21,MI0023,MILL DAIRY SERVICES,27/06/2022 00:00,31/07/2022 00:00,P04-2023,
P&V,MYDDLETON HSE HERITAGE CENTRE,SUPPLIES AND SERVICES,FOOD AND DRINK PURCHASES,4140,SAINSBURYS-JS WMEAL,13/07/2022 00:00,264983,2.4,FI0001,DIRECTOR OF FINANCE - CASH,27/06/2022 00:00,31/07/2022 00:00,P04-2023,
P&V,MYDDLETON HSE HERITAGE CENTRE,SUPPLIES AND SERVICES,FOOD AND DRINK PURCHASES,4140,LIDL-BREAD LETTUCE,13/07/2022 00:00,264983,1.47,FI0001,DIRECTOR OF FINANCE - CASH,27/06/2022 00:00,31/07/2022 00:00,P04-2023,
P&V,MYDDLETON HSE HERITAGE CENTRE,SUPPLIES AND SERVICES,FOOD AND DRINK PURCHASES,4140,LIDLE BAG,13/07/2022 00:00,264983,0.17,FI0001,DIRECTOR OF FINANCE - CASH,27/06/2022 00:00,31/07/2022 00:00,P04-2023,
P&V,MYDDLETON HSE HERITAGE CENTRE,SUPPLIES AND SERVICES,FOOD AND DRINK PURCHASES,4140,LIDL-BREAD/VEG,13/07/2022 00:00,264983,8.39,FI0001,DIRECTOR OF FINANCE - CASH,27/06/2022 00:00,31/07/2022 00:00,P04-2023,
P&V,MYDDLETON HSE HERITAGE CENTRE,SUPPLIES AND SERVICES,FOOD AND DRINK PURCHASES,4140,LIDL - BREAD,13/07/2022 00:00,264983,1.65,FI0001,DIRECTOR OF FINANCE - CASH,27/06/2022 00:00,31/07/2022 00:00,P04-2023,
P&V,MYDDLETON HSE HERITAGE CENTRE,SUPPLIES AND SERVICES,FOOD AND DRINK PURCHASES,4140,"SIRWANFOOD/TO,TOMATOES",13/07/2022 00:00,264983,6.99,FI0001,DIRECTOR OF FINANCE - CASH,27/06/2022 00:00,31/07/2022 00:00,P04-2023,
P&V,MYDDLETON HSE HERITAGE CENTRE,SUPPLIES AND SERVICES,FOOD AND DRINK PURCHASES,4140,LIDL- BREAD/VEG,13/07/2022 00:00,264983,13.86,FI0001,DIRECTOR OF FINANCE - CASH,27/06/2022 00:00,31/07/2022 00:00,P04-2023,
P&V,MYDDLETON HSE HERITAGE CENTRE,SUPPLIES AND SERVICES,FOOD AND DRINK PURCHASES,4140,ASDA-CUPCAKES,13/07/2022 00:00,264983,5,FI0001,DIRECTOR OF FINANCE - CASH,27/06/2022 00:00,31/07/2022 00:00,P04-2023,
P&V,MYDDLETON HSE HERITAGE CENTRE,SUPPLIES AND SERVICES,FOOD AND DRINK PURCHASES,4140,TESCO -MILK,13/07/2022 00:00,264983,3.45,FI0001,DIRECTOR OF FINANCE - CASH,27/06/2022 00:00,31/07/2022 00:00,P04-2023,
P&V,MYDDLETON HSE HERITAGE CENTRE,SUPPLIES AND SERVICES,FOOD AND DRINK PURCHASES,4140,NISA-MILK/BAG,13/07/2022 00:00,264983,9.95,FI0001,DIRECTOR OF FINANCE - CASH,27/06/2022 00:00,31/07/2022 00:00,P04-2023,
P&V,MYDDLETON HSE HERITAGE CENTRE,SUPPLIES AND SERVICES,FOOD AND DRINK PURCHASES,4140,SAINSBURYS-MILK,13/07/2022 00:00,264983,1.7,FI0001,DIRECTOR OF FINANCE - CASH,27/06/2022 00:00,31/07/2022 00:00,P04-2023,
P&V,MYDDLETON HSE HERITAGE CENTRE,SUPPLIES AND SERVICES,FOOD AND DRINK PURCHASES,4140,LIDL-ONION/TOMATOES,13/07/2022 00:00,264983,2.69,FI0001,DIRECTOR OF FINANCE - CASH,27/06/2022 00:00,31/07/2022 00:00,P04-2023,
P&V,MYDDLETON HSE HERITAGE CENTRE,SUPPLIES AND SERVICES,FOOD AND DRINK PURCHASES,4140,LIDL-TEA (VARIOUS),13/07/2022 00:00,264983,3.35,FI0001,DIRECTOR OF FINANCE - CASH,27/06/2022 00:00,31/07/2022 00:00,P04-2023,
,LV CAMPSITE CARAVAN SALES,SUPPLIES AND SERVICES,CARAVAN PURCHASES,4171,THE UK CARAVAN CENTRE,19/07/2022 00:00,265113,24873.21,UK0086,THE UK CARAVAN CENTRE,27/06/2022 00:00,31/07/2022 00:00,P04-2023,
,LV CAMPSITE CARAVAN SALES,SUPPLIES AND SERVICES,CARAVAN PURCHASES,4171,THE UK CARAVAN CENTRE,19/07/2022 00:00,265113,-32800,UK0086,THE UK CARAVAN CENTRE,27/06/2022 00:00,31/07/2022 00:00,P04-2023,
,LV CAMPSITE CARAVAN SALES,SUPPLIES AND SERVICES,CARAVAN PURCHASES,4171,P118474-SERVICE-Delta Langford New HH,19/07/2022 00:00,265113,32800,UK0086,THE UK CARAVAN CENTRE,27/06/2022 00:00,31/07/2022 00:00,P04-2023,
,LV CAMPSITE CARAVAN SALES,SUPPLIES AND SERVICES,CARAVAN PURCHASES,4171,THE UK CARAVAN CENTRE,19/07/2022 00:00,265113,7926.79,UK0086,THE UK CARAVAN CENTRE,27/06/2022 00:00,31/07/2022 00:00,P04-2023,
,LV CAMPSITE CARAVAN SALES,SUPPLIES AND SERVICES,DECKING PURCHASES,4173,P118553-SERVICE-Decking for Plot 5 Sewardstone,31/07/2022 00:00,265394,9203.6,LO0459,LONDON LODGES UK,27/06/2022 00:00,31/07/2022 00:00,P04-2023,
,LV CAMPSITE CARAVAN SALES,SUPPLIES AND SERVICES,MISCELLANEOUS CARAVAN COSTS,4174,CAPSER,27/07/2022 00:00,265318,-250,MO0041,CAPSER,27/06/2022 00:00,31/07/2022 00:00,P04-2023,
,LV CAMPSITE CARAVAN SALES,SUPPLIES AND SERVICES,MISCELLANEOUS CARAVAN COSTS,4174,CAPSER,27/07/2022 00:00,265318,250,MO0041,CAPSER,27/06/2022 00:00,31/07/2022 00:00,P04-2023,
,LV CAMPSITE CARAVAN SALES,SUPPLIES AND SERVICES,MISCELLANEOUS CARAVAN COSTS,4174,P118533-SERVICE-Stand carvan on plot 10,27/07/2022 00:00,265318,250,MO0041,CAPSER,27/06/2022 00:00,31/07/2022 00:00,P04-2023,
,LV CAMPSITE CARAVAN SALES,SUPPLIES AND SERVICES,MISCELLANEOUS CARAVAN COSTS,4174,P118533-SERVICE-PLOT 10 Remove from carpark to Overspill Area,27/07/2022 00:00,265318,250,MO0041,CAPSER,27/06/2022 00:00,31/07/2022 00:00,P04-2023,
,LV CAMPSITE CARAVAN SALES,SUPPLIES AND SERVICES,MISCELLANEOUS CARAVAN COSTS,4174,CAPSER,27/07/2022 00:00,265319,112,MO0041,CAPSER,27/06/2022 00:00,31/07/2022 00:00,P04-2023,
,LV CAMPSITE CARAVAN SALES,SUPPLIES AND SERVICES,MISCELLANEOUS CARAVAN COSTS,4174,CAPSER,27/07/2022 00:00,265319,138,MO0041,CAPSER,27/06/2022 00:00,31/07/2022 00:00,P04-2023,
,LV CAMPSITE CARAVAN SALES,SUPPLIES AND SERVICES,MISCELLANEOUS CARAVAN COSTS,4174,CAPSER,27/07/2022 00:00,265319,-250,MO0041,CAPSER,27/06/2022 00:00,31/07/2022 00:00,P04-2023,
,LV CAMPSITE CARAVAN SALES,SUPPLIES AND SERVICES,MISCELLANEOUS CARAVAN COSTS,4174,CAPSER,27/07/2022 00:00,265319,1862,MO0041,CAPSER,27/06/2022 00:00,31/07/2022 00:00,P04-2023,
,LV CAMPSITE CARAVAN SALES,SUPPLIES AND SERVICES,MISCELLANEOUS CARAVAN COSTS,4174,CAPSER,27/07/2022 00:00,265319,-1862,MO0041,CAPSER,27/06/2022 00:00,31/07/2022 00:00,P04-2023,
,LV CAMPSITE CARAVAN SALES,SUPPLIES AND SERVICES,MISCELLANEOUS CARAVAN COSTS,4174,P118534-SERVICE-Plot 5 New Base,27/07/2022 00:00,265319,1862,MO0041,CAPSER,27/06/2022 00:00,31/07/2022 00:00,P04-2023,
,LV CAMPSITE CARAVAN SALES,SUPPLIES AND SERVICES,MISCELLANEOUS CARAVAN COSTS,4174,P118534-SERVICE-Plot 5 Plumb New Carvan,27/07/2022 00:00,265319,425,MO0041,CAPSER,27/06/2022 00:00,31/07/2022 00:00,P04-2023,
,LV CAMPSITE CARAVAN SALES,SUPPLIES AND SERVICES,MISCELLANEOUS CARAVAN COSTS,4174,P118534-SERVICE-Plot 5 Site New Caravan,27/07/2022 00:00,265319,250,MO0041,CAPSER,27/06/2022 00:00,31/07/2022 00:00,P04-2023,
,LV CAMPSITE CARAVAN SALES,SUPPLIES AND SERVICES,MISCELLANEOUS CARAVAN COSTS,4174,P118534-SERVICE-Plot 5 Remove Carvan,27/07/2022 00:00,265319,250,MO0041,CAPSER,27/06/2022 00:00,31/07/2022 00:00,P04-2023,
,LV CAMPSITE CARAVAN SALES,SUPPLIES AND SERVICES,MISCELLANEOUS CARAVAN COSTS,4174,CAPSER,27/07/2022 00:00,265320,-250,MO0041,CAPSER,27/06/2022 00:00,31/07/2022 00:00,P04-2023,
,LV CAMPSITE CARAVAN SALES,SUPPLIES AND SERVICES,MISCELLANEOUS CARAVAN COSTS,4174,P118535-SERVICE-Plot 41 Remove Caravan and Skirting,27/07/2022 00:00,265320,350,MO0041,CAPSER,27/06/2022 00:00,31/07/2022 00:00,P04-2023,
,LV CAMPSITE CARAVAN SALES,SUPPLIES AND SERVICES,MISCELLANEOUS CARAVAN COSTS,4174,P118535-SERVICE-Plot 41 Site New Caravan,27/07/2022 00:00,265320,250,MO0041,CAPSER,27/06/2022 00:00,31/07/2022 00:00,P04-2023,
,LV CAMPSITE CARAVAN SALES,SUPPLIES AND SERVICES,MISCELLANEOUS CARAVAN COSTS,4174,CAPSER,27/07/2022 00:00,265320,250,MO0041,CAPSER,27/06/2022 00:00,31/07/2022 00:00,P04-2023,
,LV CAMPSITE CARAVAN SALES,SUPPLIES AND SERVICES,MISCELLANEOUS CARAVAN COSTS,4174,P118535-SERVICE-Plot 41 Plumb New Caravan,27/07/2022 00:00,265320,425,MO0041,CAPSER,27/06/2022 00:00,31/07/2022 00:00,P04-2023,
,LV CAMPSITE CARAVAN SALES,SUPPLIES AND SERVICES,MISCELLANEOUS CARAVAN COSTS,4174,CAPSER,27/07/2022 00:00,265320,100,MO0041,CAPSER,27/06/2022 00:00,31/07/2022 00:00,P04-2023,
,LV CAMPSITE CARAVAN SALES,SUPPLIES AND SERVICES,MISCELLANEOUS CARAVAN COSTS,4174,CAPSER,27/07/2022 00:00,265320,-350,MO0041,CAPSER,27/06/2022 00:00,31/07/2022 00:00,P04-2023,
,LV CAMPSITE CARAVAN SALES,SUPPLIES AND SERVICES,MISCELLANEOUS CARAVAN COSTS,4174,CAPSER,27/07/2022 00:00,265320,250,MO0041,CAPSER,27/06/2022 00:00,31/07/2022 00:00,P04-2023,
,LEE VALLEY MARINA STANSTEAD,SUPPLIES AND SERVICES,CLOTHING & UNIFORMS,4225,DIRECT BOOT & SHOE SUPPLIES,06/07/2022 00:00,264496,285.82,DI0017,DIRECT BOOT & SHOE SUPPLIES,27/06/2022 00:00,31/07/2022 00:00,P04-2023,
,LEE VALLEY MARINA STANSTEAD,SUPPLIES AND SERVICES,CLOTHING & UNIFORMS,4225,P118462-SERVICE-summer uniform stan marina,06/07/2022 00:00,264496,315.82,DI0017,DIRECT BOOT & SHOE SUPPLIES,27/06/2022 00:00,31/07/2022 00:00,P04-2023,
,LEE VALLEY MARINA STANSTEAD,SUPPLIES AND SERVICES,CLOTHING & UNIFORMS,4225,DIRECT BOOT & SHOE SUPPLIES,06/07/2022 00:00,264496,30,DI0017,DIRECT BOOT & SHOE SUPPLIES,27/06/2022 00:00,31/07/2022 00:00,P04-2023,
,LEE VALLEY MARINA STANSTEAD,SUPPLIES AND SERVICES,CLOTHING & UNIFORMS,4225,DIRECT BOOT & SHOE SUPPLIES,06/07/2022 00:00,264496,-315.82,DI0017,DIRECT BOOT & SHOE SUPPLIES,27/06/2022 00:00,31/07/2022 00:00,P04-2023,
P&V,SOUTH AREA RANGERS,SUPPLIES AND SERVICES,CLOTHING & UNIFORMS,4225,P118566-SERVICE-6x Polo Shirts Navy - 22216,25/07/2022 00:00,265178,155.1,EN0283,ENGELBERT STRAUSS LIMITED,27/06/2022 00:00,31/07/2022 00:00,P04-2023,
P&V,SOUTH AREA RANGERS,SUPPLIES AND SERVICES,CLOTHING & UNIFORMS,4225,P118566-SERVICE-3x Fleece Jacket Black - 77410,25/07/2022 00:00,265178,163.05,EN0283,ENGELBERT STRAUSS LIMITED,27/06/2022 00:00,31/07/2022 00:00,P04-2023,
P&V,SOUTH AREA RANGERS,SUPPLIES AND SERVICES,CLOTHING & UNIFORMS,4225,P118566-SERVICE-4x Micro Fleece Black - 89581,25/07/2022 00:00,265178,115.8,EN0283,ENGELBERT STRAUSS LIMITED,27/06/2022 00:00,31/07/2022 00:00,P04-2023,
P&V,RIVER LEE COUNTRY PARK,SUPPLIES AND SERVICES,CLOTHING & UNIFORMS,4225,P118415-SERVICE-Safety Boots,13/07/2022 00:00,264497,33.33,DI0017,DIRECT BOOT & SHOE SUPPLIES,27/06/2022 00:00,31/07/2022 00:00,P04-2023,
P&V,RIVER LEE COUNTRY PARK,SUPPLIES AND SERVICES,CLOTHING & UNIFORMS,4225,P118415-SERVICE-Delivery,13/07/2022 00:00,264497,7.95,DI0017,DIRECT BOOT & SHOE SUPPLIES,27/06/2022 00:00,31/07/2022 00:00,P04-2023,
P&V,RIVER LEE COUNTRY PARK,SUPPLIES AND SERVICES,CLOTHING & UNIFORMS,4225,P118566-SERVICE-1x Service Charge,25/07/2022 00:00,265178,9.9,EN0283,ENGELBERT STRAUSS LIMITED,27/06/2022 00:00,31/07/2022 00:00,P04-2023,
P&V,RIVER LEE COUNTRY PARK,SUPPLIES AND SERVICES,CLOTHING & UNIFORMS,4225,P118566-SERVICE-6x Polo Shirts Navy - 22216,25/07/2022 00:00,265178,155.1,EN0283,ENGELBERT STRAUSS LIMITED,27/06/2022 00:00,31/07/2022 00:00,P04-2023,
P&V,RIVER LEE COUNTRY PARK,SUPPLIES AND SERVICES,CLOTHING & UNIFORMS,4225,P118566-SERVICE-3x 3-in-1 Functional Rain Jacket Black - 7772,25/07/2022 00:00,265178,473.4,EN0283,ENGELBERT STRAUSS LIMITED,27/06/2022 00:00,31/07/2022 00:00,P04-2023,
P&V,RIVER LEE COUNTRY PARK,SUPPLIES AND SERVICES,CLOTHING & UNIFORMS,4225,P118566-SERVICE-2x Cargo Trouser Black - 95485,25/07/2022 00:00,265178,73.8,EN0283,ENGELBERT STRAUSS LIMITED,27/06/2022 00:00,31/07/2022 00:00,P04-2023,
CEO,CHIEF EXECUTIVE,SUPPLIES AND SERVICES,OFFICE EXPENSES,4311,P118681-SERVICE-3 x Black Cartridges HPCH562EE,19/07/2022 00:00,265120,59.76,TH0008,JKL SOLUTIONS LTD,27/06/2022 00:00,31/07/2022 00:00,P04-2023,
CEO,CHIEF EXECUTIVE,SUPPLIES AND SERVICES,OFFICE EXPENSES,4311,P118681-SERVICE-3 x Colour Cartridges HPCH562EE,19/07/2022 00:00,265120,56.34,TH0008,JKL SOLUTIONS LTD,27/06/2022 00:00,31/07/2022 00:00,P04-2023,
,LEE VALLEY MARINA STANSTEAD,SUPPLIES AND SERVICES,OFFICE EXPENSES,4311,"P118518-SERVICE-Stationery (ring binder, pins, dividers)",19/07/2022 00:00,264988,8.2,TH0008,JKL SOLUTIONS LTD,27/06/2022 00:00,31/07/2022 00:00,P04-2023,
,LEE VALLEY MARINA STANSTEAD,SUPPLIES AND SERVICES,OFFICE EXPENSES,4311,P118691-SERVICE-JKL Office Stationery,25/07/2022 00:00,265196,36.47,TH0008,JKL SOLUTIONS LTD,27/06/2022 00:00,31/07/2022 00:00,P04-2023,
,LEE VALLEY CAMPSITE,SUPPLIES AND SERVICES,OFFICE EXPENSES,4311,P118739-SERVICE-till rolls 2 boxes,25/07/2022 00:00,264987,75.26,TH0008,JKL SOLUTIONS LTD,27/06/2022 00:00,31/07/2022 00:00,P04-2023,
P&V,RIVER LEE COUNTRY PARK,SUPPLIES AND SERVICES,OFFICE EXPENSES,4311,P118092-SERVICE-EN05989 - 5x Coloured Pencils Pk12,04/07/2022 00:00,264078,4.3,TH0008,JKL SOLUTIONS LTD,27/06/2022 00:00,31/07/2022 00:00,P04-2023,
P&V,RIVER LEE COUNTRY PARK,SUPPLIES AND SERVICES,OFFICE EXPENSES,4311,P118092-SERVICE-BK80108 - 1x Bostic Blue Tack Pk12,04/07/2022 00:00,264078,19.56,TH0008,JKL SOLUTIONS LTD,27/06/2022 00:00,31/07/2022 00:00,P04-2023,
P&V,RIVER LEE COUNTRY PARK,SUPPLIES AND SERVICES,OFFICE EXPENSES,4311,P118092-SERVICE-18162HA 1x HB Pencils with Rubber Eraser Red,04/07/2022 00:00,264078,1.92,TH0008,JKL SOLUTIONS LTD,27/06/2022 00:00,31/07/2022 00:00,P04-2023,
P&V,RIVER LEE COUNTRY PARK,SUPPLIES AND SERVICES,OFFICE EXPENSES,4311,P118092-SERVICE-BC01072 - 1x Bic Crayons Pk24,04/07/2022 00:00,264078,4.74,TH0008,JKL SOLUTIONS LTD,27/06/2022 00:00,31/07/2022 00:00,P04-2023,
P&V,RIVER LEE COUNTRY PARK,SUPPLIES AND SERVICES,OFFICE EXPENSES,4311,P118092-SERVICE-11624RY - 1x Clear Easy Tear Tape Pk6,04/07/2022 00:00,264078,9.12,TH0008,JKL SOLUTIONS LTD,27/06/2022 00:00,31/07/2022 00:00,P04-2023,
P&V,RIVER LEE COUNTRY PARK,SUPPLIES AND SERVICES,OFFICE EXPENSES,4311,P118092-SERVICE-KF01909 - 3x Ass Highlighter Pens Pk6,04/07/2022 00:00,264078,9.24,TH0008,JKL SOLUTIONS LTD,27/06/2022 00:00,31/07/2022 00:00,P04-2023,
P&V,RIVER LEE COUNTRY PARK,SUPPLIES AND SERVICES,OFFICE EXPENSES,4311,P118092-SERVICE-CPD34619 - 1x A3 Copier Paper,04/07/2022 00:00,264078,9.99,TH0008,JKL SOLUTIONS LTD,27/06/2022 00:00,31/07/2022 00:00,P04-2023,
P&V,RIVER LEE COUNTRY PARK,SUPPLIES AND SERVICES,OFFICE EXPENSES,4311,P118092-SERVICE-RI21010 - 3x A4 White Card Pk20,04/07/2022 00:00,264078,6.48,TH0008,JKL SOLUTIONS LTD,27/06/2022 00:00,31/07/2022 00:00,P04-2023,
P&V,RIVER LEE COUNTRY PARK,SUPPLIES AND SERVICES,OFFICE EXPENSES,4311,P118092-SERVICE-KF02221 - 1x Clear Double Sided Tissue Tape P,04/07/2022 00:00,264078,18.35,TH0008,JKL SOLUTIONS LTD,27/06/2022 00:00,31/07/2022 00:00,P04-2023,
P&V,POLICY & PERFORMANCE (L&E),SUPPLIES AND SERVICES,OFFICE EXPENSES,4311,P118662-SERVICE-Stationery as per invoice 113532,12/07/2022 00:00,264928,55.12,TH0008,JKL SOLUTIONS LTD,27/06/2022 00:00,31/07/2022 00:00,P04-2023,
,LV LEISURE CENTRE CAMPSITE,SUPPLIES AND SERVICES,OFFICE EXPENSES,4311,P118428-SERVICE-Stationary,12/07/2022 00:00,264741,84.47,TH0008,JKL SOLUTIONS LTD,27/06/2022 00:00,31/07/2022 00:00,P04-2023,
CEO,PR/COMMUNICATIONS,SUPPLIES AND SERVICES,PRINTING CORPORATE BROCHURES,4321,P118575-SERVICE-Discover Waltham Abbey leaflet,11/07/2022 00:00,264831,125.21,WA0309,WALTHAM ABBEY TOWN PARTNERSHIPS,27/06/2022 00:00,31/07/2022 00:00,P04-2023,
P&V,LEE VALLEY FARM HOLYFIELDHALL,SUPPLIES AND SERVICES,SUBSCRIPTIONS,4334,P117608-SERVICE-Subs,11/07/2022 00:00,264955,384.68,NA0005,NATIONAL MILK RECORDS PLC,27/06/2022 00:00,31/07/2022 00:00,P04-2023,
P&V,MYDDELTON HOUSE,SUPPLIES AND SERVICES,POSTAGE & MAILING,4445,PITNEY BOWES PURCHASE POWER,26/07/2022 00:00,265356,449.51,PI0021,PITNEY BOWES PURCHASE POWER,27/06/2022 00:00,31/07/2022 00:00,P04-2023,
R&B,REVENUE SUSPENSE (AUTHORITY),SUPPLIES AND SERVICES,TELEPHONES (MOBILE),4484,GAMMA TELECOM LTD,18/07/2022 00:00,264973,694.9,GA0432,GAMMA TELECOM LTD,27/06/2022 00:00,31/07/2022 00:00,P04-2023,
R&B,REVENUE SUSPENSE (AUTHORITY),SUPPLIES AND SERVICES,TELEPHONES (MOBILE),4484,VODAFONE  LIMITED (CORPORATE),31/07/2022 00:00,265564,279.98,VO0010,VODAFONE  LIMITED (CORPORATE),27/06/2022 00:00,31/07/2022 00:00,P04-2023,
CEO,PR/COMMUNICATIONS,SUPPLIES AND SERVICES,HOSPITALITY,4505,P118396-SERVICE-Refreshments at LVIC topping out ceremony on,05/07/2022 00:00,264739,200,GR0097,GREENWICH LEISURE LTD,27/06/2022 00:00,31/07/2022 00:00,P04-2023,
,LEE VALLEY CAMPSITE,SUPPLIES AND SERVICES,MARKETING,4603,P118744-SERVICE-Fire exit arrow signs  fire blanked id sign,25/07/2022 00:00,264519,8.22,FI0215,VALUE  PRODUCTS LTD,27/06/2022 00:00,31/07/2022 00:00,P04-2023,
,LEE VALLEY CARAVAN PARK,SUPPLIES AND SERVICES,MARKETING,4603,P118784-SERVICE-RENEWAL ANNUAL MEMBERSHIP,27/07/2022 00:00,265380,472.04,VI0109,VISIT ENGLAND ASSESSMENT SERVICES,27/06/2022 00:00,31/07/2022 00:00,P04-2023,
P&V,RIVER LEE COUNTRY PARK,SUPPLIES AND SERVICES,MARKETING,4603,P118173-SERVICE-X Frame Banners - Promoting the Park,12/07/2022 00:00,264953,36.48,MA0167,MARTIN DANNELL & CO LTD,27/06/2022 00:00,31/07/2022 00:00,P04-2023,
,LV LEISURE CENTRE CAMPSITE,SUPPLIES AND SERVICES,MARKETING,4603,P118542-SERVICE-Arrival cards,13/07/2022 00:00,264760,33.24,SO0582,SOLOPRESS,27/06/2022 00:00,31/07/2022 00:00,P04-2023,
,LV LEISURE CENTRE CAMPSITE,SUPPLIES AND SERVICES,MARKETING,4603,P118814-SERVICE-Parks E-Newsletter,31/07/2022 00:00,265229,150,WA0063,WARNERS GROUP PUBLICATIONS PLC,27/06/2022 00:00,31/07/2022 00:00,P04-2023,
,LEE VALLEY MARINA SPRINGFIELD,SUPPLIES AND SERVICES,MERCHANT PROCESSING CHARGES,4641,WORLDPAY,04/07/2022 00:00,264610,30,WO0338,WORLDPAY,27/06/2022 00:00,31/07/2022 00:00,P04-2023,
,LEE VALLEY MARINA STANSTEAD,SUPPLIES AND SERVICES,MERCHANT PROCESSING CHARGES,4641,WORLDPAY,04/07/2022 00:00,264610,30,WO0338,WORLDPAY,27/06/2022 00:00,31/07/2022 00:00,P04-2023,
R&B,FINANCE & RESOURCES MANAGEMENT,SUPPLIES AND SERVICES,DEBT RECOVERY FEES,4646,P117729-SERVICE-DEBT RECOVERY FEES 2022/2023,25/07/2022 00:00,265227,516.74,LE0069,LEGAL RECOVERIES AND COLLECTIONS LIMITED,27/06/2022 00:00,31/07/2022 00:00,P04-2023,
R&B,FINANCE & RESOURCES MANAGEMENT,SUPPLIES AND SERVICES,DEBT RECOVERY FEES,4646,LEGAL RECOVERIES AND COLLECTIO,25/07/2022 00:00,265227,446.74,LE0069,LEGAL RECOVERIES AND COLLECTIONS LIMITED,27/06/2022 00:00,31/07/2022 00:00,P04-2023,
R&B,FINANCE & RESOURCES MANAGEMENT,SUPPLIES AND SERVICES,DEBT RECOVERY FEES,4646,LEGAL RECOVERIES AND COLLECTIO,25/07/2022 00:00,265227,70,LE0069,LEGAL RECOVERIES AND COLLECTIONS LIMITED,27/06/2022 00:00,31/07/2022 00:00,P04-2023,
R&B,FINANCE & RESOURCES MANAGEMENT,SUPPLIES AND SERVICES,DEBT RECOVERY FEES,4646,LEGAL RECOVERIES AND COLLECTIO,25/07/2022 00:00,265227,-516.74,LE0069,LEGAL RECOVERIES AND COLLECTIONS LIMITED,27/06/2022 00:00,31/07/2022 00:00,P04-2023,
,LEE VALLEY MARINA STANSTEAD,SUPPLIES AND SERVICES,SECURITY,4650,P117120-SERVICE-photo cells fit/test & replaced safety loop,27/07/2022 00:00,265405,999.91,AI0262,AIS ( ADVANCED INTEGRATED SECURITY),27/06/2022 00:00,31/07/2022 00:00,P04-2023,
,LEE VALLEY MARINA STANSTEAD,SUPPLIES AND SERVICES,SECURITY,4650,P117505-SERVICE-AIS  paxton fobs  3 boxes,27/07/2022 00:00,265406,106,AI0262,AIS ( ADVANCED INTEGRATED SECURITY),27/06/2022 00:00,31/07/2022 00:00,P04-2023,
,LEE VALLEY CAMPSITE,SUPPLIES AND SERVICES,SECURITY,4650,P118842-SERVICE-Security Lights,31/07/2022 00:00,265573,21.32,AM0406,AMAZON PAYMENTS UK LIMITED,27/06/2022 00:00,31/07/2022 00:00,P04-2023,
,LEE VALLEY CARAVAN PARK,SUPPLIES AND SERVICES,SECURITY,4650,P118346-SERVICE-Finished cleaning stickers,11/07/2022 00:00,264494,320,SL0528,SLAM SIGNS LTD,27/06/2022 00:00,31/07/2022 00:00,P04-2023,
,LEE VALLEY CARAVAN PARK,SUPPLIES AND SERVICES,SECURITY,4650,P118842-SERVICE-Security Light,31/07/2022 00:00,265573,21.32,AM0406,AMAZON PAYMENTS UK LIMITED,27/06/2022 00:00,31/07/2022 00:00,P04-2023,
P&V,EAST INDIA DOCK AND BOW CREEK,SUPPLIES AND SERVICES,SECURITY,4650,P118177-SERVICE-Security - South of Park,25/07/2022 00:00,265214,7720.6,PA0059,PARKGUARD LTD,27/06/2022 00:00,31/07/2022 00:00,P04-2023,
P&V,EAST INDIA DOCK AND BOW CREEK,SUPPLIES AND SERVICES,SECURITY,4650,P118177-SERVICE-Security - South of Park,25/07/2022 00:00,265327,3279.4,PA0059,PARKGUARD LTD,27/06/2022 00:00,31/07/2022 00:00,P04-2023,
P&V,NORTH AREA RANGERS,SUPPLIES AND SERVICES,SECURITY,4650,P118176-SERVICE-Security - North of Park,31/07/2022 00:00,265326,2625.12,PA0059,PARKGUARD LTD,27/06/2022 00:00,31/07/2022 00:00,P04-2023,
P&V,NORTH AREA RANGERS,SUPPLIES AND SERVICES,SECURITY,4650,P118771-SERVICE-Addtional Security at Glen Faba,27/07/2022 00:00,265377,570,PA0059,PARKGUARD LTD,27/06/2022 00:00,31/07/2022 00:00,P04-2023,
P&V,NORTH AREA RANGERS,SUPPLIES AND SERVICES,SECURITY,4650,P118771-SERVICE-Addtional Security at Glen Faba,27/07/2022 00:00,265377,1254,PA0059,PARKGUARD LTD,27/06/2022 00:00,31/07/2022 00:00,P04-2023,
P&V,SOUTH AREA RANGERS,SUPPLIES AND SERVICES,SECURITY,4650,P118486-SERVICE-Additional Security Coppermill/Wathamstow Mar,11/07/2022 00:00,264786,456,PA0059,PARKGUARD LTD,27/06/2022 00:00,31/07/2022 00:00,P04-2023,
P&V,SOUTH AREA RANGERS,SUPPLIES AND SERVICES,SECURITY,4650,P112728-SERVICE-Security - South of the Park,25/07/2022 00:00,265225,6296.32,PA0059,PARKGUARD LTD,27/06/2022 00:00,31/07/2022 00:00,P04-2023,
P&V,SOUTH AREA RANGERS,SUPPLIES AND SERVICES,SECURITY,4650,P118177-SERVICE-Security - South of Park,25/07/2022 00:00,265327,1642.88,PA0059,PARKGUARD LTD,27/06/2022 00:00,31/07/2022 00:00,P04-2023,
P&V,SOUTH AREA RANGERS,SUPPLIES AND SERVICES,SECURITY,4650,P118772-SERVICE-Additional Security at Coppermill,27/07/2022 00:00,265378,456,PA0059,PARKGUARD LTD,27/06/2022 00:00,31/07/2022 00:00,P04-2023,
P&V,SOUTH AREA RANGERS,SUPPLIES AND SERVICES,SECURITY,4650,P118772-SERVICE-Additional Security at Coppermill,27/07/2022 00:00,265378,456,PA0059,PARKGUARD LTD,27/06/2022 00:00,31/07/2022 00:00,P04-2023,
P&V,ABBEY GARDENS,SUPPLIES AND SERVICES,SECURITY,4650,P118176-SERVICE-Security - North of Park,26/07/2022 00:00,265215,4857.28,PA0059,PARKGUARD LTD,27/06/2022 00:00,31/07/2022 00:00,P04-2023,
P&V,ABBEY GARDENS,SUPPLIES AND SERVICES,SECURITY,4650,P118176-SERVICE-Security - North of Park,31/07/2022 00:00,265326,1242.72,PA0059,PARKGUARD LTD,27/06/2022 00:00,31/07/2022 00:00,P04-2023,
P&V,GUNPOWDER PARK,SUPPLIES AND SERVICES,SECURITY,4650,P118177-SERVICE-Security - South of Park,25/07/2022 00:00,265327,1500,PA0059,PARKGUARD LTD,27/06/2022 00:00,31/07/2022 00:00,P04-2023,
P&V,RIVER LEE COUNTRY PARK,SUPPLIES AND SERVICES,SECURITY,4650,P112727-SERVICE-Security - North of the Park,25/07/2022 00:00,265225,300.25,PA0059,PARKGUARD LTD,27/06/2022 00:00,31/07/2022 00:00,P04-2023,
P&V,RIVER LEE COUNTRY PARK,SUPPLIES AND SERVICES,SECURITY,4650,P112727-SERVICE-Security - North of the Park,25/07/2022 00:00,265226,4016.45,PA0059,PARKGUARD LTD,27/06/2022 00:00,31/07/2022 00:00,P04-2023,
P&V,RIVER LEE COUNTRY PARK,SUPPLIES AND SERVICES,SECURITY,4650,P118611-SERVICE-Height Barriers at Turnford Brook,27/07/2022 00:00,265401,180,LW0268,LWC ENGINEERING LIMITED,27/06/2022 00:00,31/07/2022 00:00,P04-2023,
P&V,RIVER LEE COUNTRY PARK,SUPPLIES AND SERVICES,SECURITY,4650,P118611-SERVICE-Height Barriers at Broxbourne Riverside,27/07/2022 00:00,265401,230,LW0268,LWC ENGINEERING LIMITED,27/06/2022 00:00,31/07/2022 00:00,P04-2023,
P&V,RIVER LEE COUNTRY PARK,SUPPLIES AND SERVICES,SECURITY,4650,P118611-SERVICE-Height Barriers at Cornmill Meadows,27/07/2022 00:00,265401,350,LW0268,LWC ENGINEERING LIMITED,27/06/2022 00:00,31/07/2022 00:00,P04-2023,
P&V,THREE MILLS,SUPPLIES AND SERVICES,SECURITY,4650,P118177-SERVICE-Security - South of Park,25/07/2022 00:00,265327,1800,PA0059,PARKGUARD LTD,27/06/2022 00:00,31/07/2022 00:00,P04-2023,
P&V,FORMER LV LIDO SITE,SUPPLIES AND SERVICES,SECURITY,4650,P118176-SERVICE-Security - North of Park,31/07/2022 00:00,265326,1200,PA0059,PARKGUARD LTD,27/06/2022 00:00,31/07/2022 00:00,P04-2023,
,LV LEISURE CENTRE CAMPSITE,SUPPLIES AND SERVICES,SECURITY,4650,P118842-SERVICE-Security Light,31/07/2022 00:00,265573,21.32,AM0406,AMAZON PAYMENTS UK LIMITED,27/06/2022 00:00,31/07/2022 00:00,P04-2023,
CEO,LVLC SERVICE CHARGE,SUPPLIES AND SERVICES,SECURITY,4650,P118521-SERVICE-Security Services at LVLC,11/07/2022 00:00,264664,639.2,SA0626,SAFE SITE SECURITY SOLUTIONS LTD,27/06/2022 00:00,31/07/2022 00:00,P04-2023,
CEO,LVLC SERVICE CHARGE,SUPPLIES AND SERVICES,SECURITY,4650,P118521-SERVICE-Security Services at LVLC,11/07/2022 00:00,264665,767.04,SA0626,SAFE SITE SECURITY SOLUTIONS LTD,27/06/2022 00:00,31/07/2022 00:00,P04-2023,
CEO,LVLC SERVICE CHARGE,SUPPLIES AND SERVICES,SECURITY,4650,P118521-SERVICE-Security Services at LVLC,11/07/2022 00:00,264666,191.76,SA0626,SAFE SITE SECURITY SOLUTIONS LTD,27/06/2022 00:00,31/07/2022 00:00,P04-2023,
CEO,LVLC SERVICE CHARGE,SUPPLIES AND SERVICES,SECURITY,4650,P118521-SERVICE-Security Services at LVLC,27/07/2022 00:00,265209,95.88,SA0626,SAFE SITE SECURITY SOLUTIONS LTD,27/06/2022 00:00,31/07/2022 00:00,P04-2023,
CEO,PR/COMMUNICATIONS,SUPPLIES AND SERVICES,ARTWORK,4664,P118360-SERVICE-Our Business Plan 2022-23,05/07/2022 00:00,264740,600,MI0455,THE MILL HOUSE,27/06/2022 00:00,31/07/2022 00:00,P04-2023,
R&B,PERFORMANCE MANAGEMENT,SUPPLIES AND SERVICES,OFFSITE ARCHIVED STORAGE,4667,P118660-SERVICE-Off Site storage June 2022,12/07/2022 00:00,264940,324.07,DA0154,RESTORE PLC,27/06/2022 00:00,31/07/2022 00:00,P04-2023,
P&V,LEE VALLEY FARM HOLYFIELDHALL,THIRD PARTY PAYMENTS,VETERINARY SERVICES,4718,P118710-SERVICE-Vets,19/07/2022 00:00,264975,1690.55,HA0443,HAMPDEN VETERINARY HOSPITAL,27/06/2022 00:00,31/07/2022 00:00,P04-2023,
P&V,MYDDLETON HSE HERITAGE CENTRE,SUPPLIES AND SERVICES,NET CATERING PURCHASES,4777,BIDFOOD,04/07/2022 00:00,264238,-708.38,360001,BIDFOOD,27/06/2022 00:00,31/07/2022 00:00,P04-2023,
P&V,MYDDLETON HSE HERITAGE CENTRE,SUPPLIES AND SERVICES,NET CATERING PURCHASES,4777,P118531-SERVICE-food/drinks order june 22,04/07/2022 00:00,264238,708.38,360001,BIDFOOD,27/06/2022 00:00,31/07/2022 00:00,P04-2023,
P&V,MYDDLETON HSE HERITAGE CENTRE,SUPPLIES AND SERVICES,NET CATERING PURCHASES,4777,BIDFOOD,04/07/2022 00:00,264238,213.03,360001,BIDFOOD,27/06/2022 00:00,31/07/2022 00:00,P04-2023,
P&V,MYDDLETON HSE HERITAGE CENTRE,SUPPLIES AND SERVICES,NET CATERING PURCHASES,4777,BIDFOOD,04/07/2022 00:00,264238,495.35,360001,BIDFOOD,27/06/2022 00:00,31/07/2022 00:00,P04-2023,
P&V,MYDDLETON HSE HERITAGE CENTRE,SUPPLIES AND SERVICES,NET CATERING PURCHASES,4777,BIDFOOD,29/06/2022 00:00,264311,218.21,360001,BIDFOOD,27/06/2022 00:00,31/07/2022 00:00,P04-2023,
P&V,MYDDLETON HSE HERITAGE CENTRE,SUPPLIES AND SERVICES,NET CATERING PURCHASES,4777,BIDFOOD,29/06/2022 00:00,264311,211.18,360001,BIDFOOD,27/06/2022 00:00,31/07/2022 00:00,P04-2023,
P&V,MYDDLETON HSE HERITAGE CENTRE,SUPPLIES AND SERVICES,NET CATERING PURCHASES,4777,BIDFOOD,29/06/2022 00:00,264311,-429.39,360001,BIDFOOD,27/06/2022 00:00,31/07/2022 00:00,P04-2023,
P&V,MYDDLETON HSE HERITAGE CENTRE,SUPPLIES AND SERVICES,NET CATERING PURCHASES,4777,P118523-SERVICE-food/drinks order june 22,29/06/2022 00:00,264311,429.39,360001,BIDFOOD,27/06/2022 00:00,31/07/2022 00:00,P04-2023,
P&V,MYDDLETON HSE HERITAGE CENTRE,SUPPLIES AND SERVICES,NET CATERING PURCHASES,4777,BIDFOOD,04/07/2022 00:00,264369,265.95,360001,BIDFOOD,27/06/2022 00:00,31/07/2022 00:00,P04-2023,
P&V,MYDDLETON HSE HERITAGE CENTRE,SUPPLIES AND SERVICES,NET CATERING PURCHASES,4777,P118530-SERVICE-food/drinks order june 22,04/07/2022 00:00,264369,830.73,360001,BIDFOOD,27/06/2022 00:00,31/07/2022 00:00,P04-2023,
P&V,MYDDLETON HSE HERITAGE CENTRE,SUPPLIES AND SERVICES,NET CATERING PURCHASES,4777,BIDFOOD,04/07/2022 00:00,264369,-830.73,360001,BIDFOOD,27/06/2022 00:00,31/07/2022 00:00,P04-2023,
P&V,MYDDLETON HSE HERITAGE CENTRE,SUPPLIES AND SERVICES,NET CATERING PURCHASES,4777,BIDFOOD,04/07/2022 00:00,264369,564.78,360001,BIDFOOD,27/06/2022 00:00,31/07/2022 00:00,P04-2023,
P&V,MYDDLETON HSE HERITAGE CENTRE,SUPPLIES AND SERVICES,NET CATERING PURCHASES,4777,P118441-SERVICE-Cups & Disposables order,04/07/2022 00:00,264381,80.5,CA0585,CAFE CONNECTIONS,27/06/2022 00:00,31/07/2022 00:00,P04-2023,
P&V,MYDDLETON HSE HERITAGE CENTRE,SUPPLIES AND SERVICES,NET CATERING PURCHASES,4777,P118523-SERVICE-food/drinks order june 22,04/07/2022 00:00,264528,196.41,360001,BIDFOOD,27/06/2022 00:00,31/07/2022 00:00,P04-2023,
P&V,MYDDLETON HSE HERITAGE CENTRE,SUPPLIES AND SERVICES,NET CATERING PURCHASES,4777,P118523-SERVICE-food/drinks order june 22,04/07/2022 00:00,264588,-13.56,360001,BIDFOOD,27/06/2022 00:00,31/07/2022 00:00,P04-2023,
P&V,MYDDLETON HSE HERITAGE CENTRE,SUPPLIES AND SERVICES,NET CATERING PURCHASES,4777,BIDFOOD,12/07/2022 00:00,264603,236.43,360001,BIDFOOD,27/06/2022 00:00,31/07/2022 00:00,P04-2023,
P&V,MYDDLETON HSE HERITAGE CENTRE,SUPPLIES AND SERVICES,NET CATERING PURCHASES,4777,BIDFOOD,12/07/2022 00:00,264603,-257.55,360001,BIDFOOD,27/06/2022 00:00,31/07/2022 00:00,P04-2023,
P&V,MYDDLETON HSE HERITAGE CENTRE,SUPPLIES AND SERVICES,NET CATERING PURCHASES,4777,BIDFOOD,12/07/2022 00:00,264603,21.12,360001,BIDFOOD,27/06/2022 00:00,31/07/2022 00:00,P04-2023,
P&V,MYDDLETON HSE HERITAGE CENTRE,SUPPLIES AND SERVICES,NET CATERING PURCHASES,4777,P118442-SERVICE-Food/drinks order 21 june 2022,12/07/2022 00:00,264603,257.55,360001,BIDFOOD,27/06/2022 00:00,31/07/2022 00:00,P04-2023,
P&V,MYDDLETON HSE HERITAGE CENTRE,SUPPLIES AND SERVICES,NET CATERING PURCHASES,4777,P118568-SERVICE-FOOD/DRINKS ORDER JULY 22,13/07/2022 00:00,264692,453.58,360001,BIDFOOD,27/06/2022 00:00,31/07/2022 00:00,P04-2023,
P&V,MYDDLETON HSE HERITAGE CENTRE,SUPPLIES AND SERVICES,NET CATERING PURCHASES,4777,BIDFOOD,13/07/2022 00:00,264692,-453.58,360001,BIDFOOD,27/06/2022 00:00,31/07/2022 00:00,P04-2023,
P&V,MYDDLETON HSE HERITAGE CENTRE,SUPPLIES AND SERVICES,NET CATERING PURCHASES,4777,BIDFOOD,13/07/2022 00:00,264692,46.09,360001,BIDFOOD,27/06/2022 00:00,31/07/2022 00:00,P04-2023,
P&V,MYDDLETON HSE HERITAGE CENTRE,SUPPLIES AND SERVICES,NET CATERING PURCHASES,4777,BIDFOOD,13/07/2022 00:00,264692,407.49,360001,BIDFOOD,27/06/2022 00:00,31/07/2022 00:00,P04-2023,
P&V,MYDDLETON HSE HERITAGE CENTRE,SUPPLIES AND SERVICES,NET CATERING PURCHASES,4777,P118568-SERVICE-FOOD/DRINKS ORDER JULY 22,13/07/2022 00:00,264754,-10.67,360001,BIDFOOD,27/06/2022 00:00,31/07/2022 00:00,P04-2023,
P&V,MYDDLETON HSE HERITAGE CENTRE,SUPPLIES AND SERVICES,NET CATERING PURCHASES,4777,P118442-SERVICE-Food/drinks order 21 june 2022,13/07/2022 00:00,264788,-0.85,360001,BIDFOOD,27/06/2022 00:00,31/07/2022 00:00,P04-2023,
P&V,MYDDLETON HSE HERITAGE CENTRE,SUPPLIES AND SERVICES,NET CATERING PURCHASES,4777,P118687-SERVICE-food/drinks july 22,13/07/2022 00:00,264789,138,TU0194,TUDOR TEA & COFFEE,27/06/2022 00:00,31/07/2022 00:00,P04-2023,
P&V,MYDDLETON HSE HERITAGE CENTRE,SUPPLIES AND SERVICES,NET CATERING PURCHASES,4777,P118687-SERVICE-food/drinks july 22,13/07/2022 00:00,264790,138,TU0194,TUDOR TEA & COFFEE,27/06/2022 00:00,31/07/2022 00:00,P04-2023,
P&V,MYDDLETON HSE HERITAGE CENTRE,SUPPLIES AND SERVICES,NET CATERING PURCHASES,4777,TUDOR TEA & COFFEE,13/07/2022 00:00,264791,-249.7,TU0194,TUDOR TEA & COFFEE,27/06/2022 00:00,31/07/2022 00:00,P04-2023,
P&V,MYDDLETON HSE HERITAGE CENTRE,SUPPLIES AND SERVICES,NET CATERING PURCHASES,4777,TUDOR TEA & COFFEE,13/07/2022 00:00,264791,99.7,TU0194,TUDOR TEA & COFFEE,27/06/2022 00:00,31/07/2022 00:00,P04-2023,
P&V,MYDDLETON HSE HERITAGE CENTRE,SUPPLIES AND SERVICES,NET CATERING PURCHASES,4777,P118687-SERVICE-food/drinks july 22,13/07/2022 00:00,264791,249.7,TU0194,TUDOR TEA & COFFEE,27/06/2022 00:00,31/07/2022 00:00,P04-2023,
P&V,MYDDLETON HSE HERITAGE CENTRE,SUPPLIES AND SERVICES,NET CATERING PURCHASES,4777,TUDOR TEA & COFFEE,13/07/2022 00:00,264791,150,TU0194,TUDOR TEA & COFFEE,27/06/2022 00:00,31/07/2022 00:00,P04-2023,
P&V,MYDDLETON HSE HERITAGE CENTRE,SUPPLIES AND SERVICES,NET CATERING PURCHASES,4777,P118687-SERVICE-food/drinks july 22,13/07/2022 00:00,264792,138,TU0194,TUDOR TEA & COFFEE,27/06/2022 00:00,31/07/2022 00:00,P04-2023,
P&V,MYDDLETON HSE HERITAGE CENTRE,SUPPLIES AND SERVICES,NET CATERING PURCHASES,4777,P118689-SERVICE-food/drinks order july 22,13/07/2022 00:00,264817,979.63,360001,BIDFOOD,27/06/2022 00:00,31/07/2022 00:00,P04-2023,
P&V,MYDDLETON HSE HERITAGE CENTRE,SUPPLIES AND SERVICES,NET CATERING PURCHASES,4777,BIDFOOD,13/07/2022 00:00,264817,-979.63,360001,BIDFOOD,27/06/2022 00:00,31/07/2022 00:00,P04-2023,
P&V,MYDDLETON HSE HERITAGE CENTRE,SUPPLIES AND SERVICES,NET CATERING PURCHASES,4777,BIDFOOD,13/07/2022 00:00,264817,576.35,360001,BIDFOOD,27/06/2022 00:00,31/07/2022 00:00,P04-2023,
P&V,MYDDLETON HSE HERITAGE CENTRE,SUPPLIES AND SERVICES,NET CATERING PURCHASES,4777,BIDFOOD,13/07/2022 00:00,264817,403.28,360001,BIDFOOD,27/06/2022 00:00,31/07/2022 00:00,P04-2023,
P&V,MYDDLETON HSE HERITAGE CENTRE,SUPPLIES AND SERVICES,NET CATERING PURCHASES,4777,BIDFOOD,13/07/2022 00:00,264942,52.34,360001,BIDFOOD,27/06/2022 00:00,31/07/2022 00:00,P04-2023,
P&V,MYDDLETON HSE HERITAGE CENTRE,SUPPLIES AND SERVICES,NET CATERING PURCHASES,4777,BIDFOOD,13/07/2022 00:00,264942,-37.52,360001,BIDFOOD,27/06/2022 00:00,31/07/2022 00:00,P04-2023,
P&V,MYDDLETON HSE HERITAGE CENTRE,SUPPLIES AND SERVICES,NET CATERING PURCHASES,4777,BIDFOOD,13/07/2022 00:00,264942,-14.82,360001,BIDFOOD,27/06/2022 00:00,31/07/2022 00:00,P04-2023,
P&V,MYDDLETON HSE HERITAGE CENTRE,SUPPLIES AND SERVICES,NET CATERING PURCHASES,4777,P118689-SERVICE-food/drinks order july 22,13/07/2022 00:00,264942,-52.34,360001,BIDFOOD,27/06/2022 00:00,31/07/2022 00:00,P04-2023,
P&V,MYDDLETON HSE HERITAGE CENTRE,SUPPLIES AND SERVICES,NET CATERING PURCHASES,4777,BIDFOOD,13/07/2022 00:00,264943,-543.4,360001,BIDFOOD,27/06/2022 00:00,31/07/2022 00:00,P04-2023,
P&V,MYDDLETON HSE HERITAGE CENTRE,SUPPLIES AND SERVICES,NET CATERING PURCHASES,4777,BIDFOOD,13/07/2022 00:00,264943,25.09,360001,BIDFOOD,27/06/2022 00:00,31/07/2022 00:00,P04-2023,
P&V,MYDDLETON HSE HERITAGE CENTRE,SUPPLIES AND SERVICES,NET CATERING PURCHASES,4777,BIDFOOD,13/07/2022 00:00,264943,518.31,360001,BIDFOOD,27/06/2022 00:00,31/07/2022 00:00,P04-2023,
P&V,MYDDLETON HSE HERITAGE CENTRE,SUPPLIES AND SERVICES,NET CATERING PURCHASES,4777,P118689-SERVICE-food/drinks order july 22,13/07/2022 00:00,264943,543.4,360001,BIDFOOD,27/06/2022 00:00,31/07/2022 00:00,P04-2023,
P&V,MYDDLETON HSE HERITAGE CENTRE,SUPPLIES AND SERVICES,NET CATERING PURCHASES,4777,BIDFOOD,26/07/2022 00:00,265193,91.43,360001,BIDFOOD,27/06/2022 00:00,31/07/2022 00:00,P04-2023,
P&V,MYDDLETON HSE HERITAGE CENTRE,SUPPLIES AND SERVICES,NET CATERING PURCHASES,4777,BIDFOOD,26/07/2022 00:00,265193,-272.01,360001,BIDFOOD,27/06/2022 00:00,31/07/2022 00:00,P04-2023,
P&V,MYDDLETON HSE HERITAGE CENTRE,SUPPLIES AND SERVICES,NET CATERING PURCHASES,4777,P118568-SERVICE-FOOD/DRINKS ORDER JULY 22,26/07/2022 00:00,265193,272.01,360001,BIDFOOD,27/06/2022 00:00,31/07/2022 00:00,P04-2023,
P&V,MYDDLETON HSE HERITAGE CENTRE,SUPPLIES AND SERVICES,NET CATERING PURCHASES,4777,BIDFOOD,26/07/2022 00:00,265193,180.58,360001,BIDFOOD,27/06/2022 00:00,31/07/2022 00:00,P04-2023,
P&V,MYDDLETON HSE HERITAGE CENTRE,SUPPLIES AND SERVICES,NET CATERING PURCHASES,4777,P118568-SERVICE-FOOD/DRINKS ORDER JULY 22,26/07/2022 00:00,265218,-78.3,360001,BIDFOOD,27/06/2022 00:00,31/07/2022 00:00,P04-2023,
P&V,MYDDLETON HSE HERITAGE CENTRE,SUPPLIES AND SERVICES,NET CATERING PURCHASES,4777,BIDFOOD,26/07/2022 00:00,265218,78.3,360001,BIDFOOD,27/06/2022 00:00,31/07/2022 00:00,P04-2023,
P&V,MYDDLETON HSE HERITAGE CENTRE,SUPPLIES AND SERVICES,NET CATERING PURCHASES,4777,BIDFOOD,26/07/2022 00:00,265218,-44.72,360001,BIDFOOD,27/06/2022 00:00,31/07/2022 00:00,P04-2023,
P&V,MYDDLETON HSE HERITAGE CENTRE,SUPPLIES AND SERVICES,NET CATERING PURCHASES,4777,BIDFOOD,26/07/2022 00:00,265218,-33.58,360001,BIDFOOD,27/06/2022 00:00,31/07/2022 00:00,P04-2023,
P&V,MYDDLETON HSE HERITAGE CENTRE,SUPPLIES AND SERVICES,NET CATERING PURCHASES,4777,P118523-SERVICE-food/drinks order june 22,31/07/2022 00:00,265340,231.03,360001,BIDFOOD,27/06/2022 00:00,31/07/2022 00:00,P04-2023,
P&V,MYDDLETON HSE HERITAGE CENTRE,SUPPLIES AND SERVICES,NET CATERING PURCHASES,4777,BIDFOOD,31/07/2022 00:00,265340,145.08,360001,BIDFOOD,27/06/2022 00:00,31/07/2022 00:00,P04-2023,
P&V,MYDDLETON HSE HERITAGE CENTRE,SUPPLIES AND SERVICES,NET CATERING PURCHASES,4777,BIDFOOD,31/07/2022 00:00,265340,384.23,360001,BIDFOOD,27/06/2022 00:00,31/07/2022 00:00,P04-2023,
P&V,MYDDLETON HSE HERITAGE CENTRE,SUPPLIES AND SERVICES,NET CATERING PURCHASES,4777,P118689-SERVICE-food/drinks order july 22,31/07/2022 00:00,265340,529.31,360001,BIDFOOD,27/06/2022 00:00,31/07/2022 00:00,P04-2023,
P&V,MYDDLETON HSE HERITAGE CENTRE,SUPPLIES AND SERVICES,NET CATERING PURCHASES,4777,BIDFOOD,31/07/2022 00:00,265340,-529.31,360001,BIDFOOD,27/06/2022 00:00,31/07/2022 00:00,P04-2023,
P&V,MYDDLETON HSE HERITAGE CENTRE,SUPPLIES AND SERVICES,NET CATERING PURCHASES,4777,P118689-SERVICE-food/drinks order july 22,31/07/2022 00:00,265388,-20.2,360001,BIDFOOD,27/06/2022 00:00,31/07/2022 00:00,P04-2023,
P&V,FISHERIES MANAGEMENT,SUPPLIES AND SERVICES,FISHERIES (MATERIALS),4803,"P118675-SERVICE-Repair Foot Path Brackens Pool, Nazeing",25/07/2022 00:00,265185,950,AQ0410,AQUAMAINTAIN LTD,27/06/2022 00:00,31/07/2022 00:00,P04-2023,
P&V,MYDDELTON HOUSE,SUPPLIES AND SERVICES,TRADING AC - EXTERNAL PURCHASE,4875,P118764-SERVICE-1 x Box Assorted Biscuits (20028),26/07/2022 00:00,265341,10.12,360001,BIDFOOD,27/06/2022 00:00,31/07/2022 00:00,P04-2023,
P&V,MYDDELTON HOUSE,SUPPLIES AND SERVICES,TRADING AC - EXTERNAL PURCHASE,4875,P118764-SERVICE-1 x Box Assorted Luxury Biscuits (01048),26/07/2022 00:00,265341,1.38,360001,BIDFOOD,27/06/2022 00:00,31/07/2022 00:00,P04-2023,
,LEE VALLEY MARINA SPRINGFIELD,SUPPLIES AND SERVICES,TRADING AC - EXTERNAL PURCHASE,4875,P118504-SERVICE-Chandlery Stock   864791,04/07/2022 00:00,264559,799.41,MI0200,MIDLAND CHANDLERS LIMITED,27/06/2022 00:00,31/07/2022 00:00,P04-2023,
,LEE VALLEY MARINA SPRINGFIELD,SUPPLIES AND SERVICES,TRADING AC - EXTERNAL PURCHASE,4875,P118513-SERVICE-Chandlery Stock   102832,04/07/2022 00:00,264612,150.08,AQ0033,AQUAFAX LIMITED,27/06/2022 00:00,31/07/2022 00:00,P04-2023,
,LEE VALLEY MARINA SPRINGFIELD,SUPPLIES AND SERVICES,TRADING AC - EXTERNAL PURCHASE,4875,P118487-SERVICE-Chandlery Stock,04/07/2022 00:00,264672,587.7,SM0658,SML PAINTS AND COATINGS,27/06/2022 00:00,31/07/2022 00:00,P04-2023,
,LEE VALLEY MARINA SPRINGFIELD,SUPPLIES AND SERVICES,TRADING AC - EXTERNAL PURCHASE,4875,P118563-SERVICE-Chandlery Stock,06/07/2022 00:00,264763,536.01,CR0651,CRAFTMASTER PAINTS,27/06/2022 00:00,31/07/2022 00:00,P04-2023,
,LEE VALLEY MARINA SPRINGFIELD,SUPPLIES AND SERVICES,TRADING AC - EXTERNAL PURCHASE,4875,P118562-SERVICE-Chandlery Stock  (diesel) 123.6 per litre,11/07/2022 00:00,264846,11124,SP0543,SPEEDY FUELS LIMITED,27/06/2022 00:00,31/07/2022 00:00,P04-2023,
,LEE VALLEY MARINA SPRINGFIELD,SUPPLIES AND SERVICES,TRADING AC - EXTERNAL PURCHASE,4875,P118560-SERVICE-Chandlery Stock,11/07/2022 00:00,264934,690.75,SM0664,KG SMITH & SON,27/06/2022 00:00,31/07/2022 00:00,P04-2023,
,LEE VALLEY MARINA SPRINGFIELD,SUPPLIES AND SERVICES,TRADING AC - EXTERNAL PURCHASE,4875,P118590-SERVICE-Chandlery Stock  WSO0244628,12/07/2022 00:00,264945,253.52,CE0510,CENTURION EUROPE LIMITED,27/06/2022 00:00,31/07/2022 00:00,P04-2023,
,LEE VALLEY MARINA SPRINGFIELD,SUPPLIES AND SERVICES,TRADING AC - EXTERNAL PURCHASE,4875,P118612-SERVICE-Chandlery Stock  869742,12/07/2022 00:00,264946,591.09,MI0200,MIDLAND CHANDLERS LIMITED,27/06/2022 00:00,31/07/2022 00:00,P04-2023,
,LEE VALLEY MARINA SPRINGFIELD,SUPPLIES AND SERVICES,TRADING AC - EXTERNAL PURCHASE,4875,P118444-SERVICE-Chandlery Stock  102053,19/07/2022 00:00,265023,5.9,AQ0033,AQUAFAX LIMITED,27/06/2022 00:00,31/07/2022 00:00,P04-2023,
,LEE VALLEY MARINA SPRINGFIELD,SUPPLIES AND SERVICES,TRADING AC - EXTERNAL PURCHASE,4875,P118699-SERVICE-Chandlery Stock  872827,25/07/2022 00:00,265156,509.19,MI0200,MIDLAND CHANDLERS LIMITED,27/06/2022 00:00,31/07/2022 00:00,P04-2023,
,LEE VALLEY MARINA SPRINGFIELD,SUPPLIES AND SERVICES,TRADING AC - EXTERNAL PURCHASE,4875,P118722-SERVICE-Chandlery Stock  874388,25/07/2022 00:00,265211,115.8,MI0200,MIDLAND CHANDLERS LIMITED,27/06/2022 00:00,31/07/2022 00:00,P04-2023,
,LEE VALLEY MARINA SPRINGFIELD,SUPPLIES AND SERVICES,TRADING AC - EXTERNAL PURCHASE,4875,P118683-SERVICE-Chandlery Stock,25/07/2022 00:00,265311,167.55,AS0036,ASAP SUPPLIES,27/06/2022 00:00,31/07/2022 00:00,P04-2023,
,LEE VALLEY MARINA SPRINGFIELD,SUPPLIES AND SERVICES,TRADING AC - EXTERNAL PURCHASE,4875,P118265-SERVICE-100 x Magnesium Anode 25M,25/07/2022 00:00,265337,2079.16,MM0065,MME ENGINEERING LTD,27/06/2022 00:00,31/07/2022 00:00,P04-2023,
,LEE VALLEY MARINA SPRINGFIELD,SUPPLIES AND SERVICES,TRADING AC - EXTERNAL PURCHASE,4875,P118770-SERVICE-Chandlery Stock   876173,31/07/2022 00:00,265369,406.72,MI0200,MIDLAND CHANDLERS LIMITED,27/06/2022 00:00,31/07/2022 00:00,P04-2023,
,STANSTEAD RECHARGEABLE WORKS,SUPPLIES AND SERVICES,TRADING AC - EXTERNAL PURCHASE,4875,P118618-SERVICE-Chandlery items,19/07/2022 00:00,264358,21.54,AQ0033,AQUAFAX LIMITED,27/06/2022 00:00,31/07/2022 00:00,P04-2023,
,STANSTEAD RECHARGEABLE WORKS,SUPPLIES AND SERVICES,TRADING AC - EXTERNAL PURCHASE,4875,P118417-SERVICE-2200l red diesel @ 127.71ppl,27/07/2022 00:00,264492,2809.62,SP0543,SPEEDY FUELS LIMITED,27/06/2022 00:00,31/07/2022 00:00,P04-2023,
,STANSTEAD RECHARGEABLE WORKS,SUPPLIES AND SERVICES,TRADING AC - EXTERNAL PURCHASE,4875,P118417-SERVICE-increase to meet invoice,27/07/2022 00:00,264492,0.88,SP0543,SPEEDY FUELS LIMITED,27/06/2022 00:00,31/07/2022 00:00,P04-2023,
,STANSTEAD RECHARGEABLE WORKS,SUPPLIES AND SERVICES,TRADING AC - EXTERNAL PURCHASE,4875,P118481-SERVICE-correction for larger tins,04/07/2022 00:00,264505,15.18,CR0651,CRAFTMASTER PAINTS,27/06/2022 00:00,31/07/2022 00:00,P04-2023,
,STANSTEAD RECHARGEABLE WORKS,SUPPLIES AND SERVICES,TRADING AC - EXTERNAL PURCHASE,4875,P118481-SERVICE-chandlery stock,04/07/2022 00:00,264505,534.74,CR0651,CRAFTMASTER PAINTS,27/06/2022 00:00,31/07/2022 00:00,P04-2023,
,STANSTEAD RECHARGEABLE WORKS,SUPPLIES AND SERVICES,TRADING AC - EXTERNAL PURCHASE,4875,P118479-SERVICE-chandlery stock,04/07/2022 00:00,264509,659.31,AQ0033,AQUAFAX LIMITED,27/06/2022 00:00,31/07/2022 00:00,P04-2023,
,STANSTEAD RECHARGEABLE WORKS,SUPPLIES AND SERVICES,TRADING AC - EXTERNAL PURCHASE,4875,P118463-SERVICE-chandlery stock,04/07/2022 00:00,264510,775.98,MI0200,MIDLAND CHANDLERS LIMITED,27/06/2022 00:00,31/07/2022 00:00,P04-2023,
,STANSTEAD RECHARGEABLE WORKS,SUPPLIES AND SERVICES,TRADING AC - EXTERNAL PURCHASE,4875,P118463-SERVICE-chandlery stock,04/07/2022 00:00,264513,558.6,MI0200,MIDLAND CHANDLERS LIMITED,27/06/2022 00:00,31/07/2022 00:00,P04-2023,
,STANSTEAD RECHARGEABLE WORKS,SUPPLIES AND SERVICES,TRADING AC - EXTERNAL PURCHASE,4875,P118058-SERVICE-chandlery stock,04/07/2022 00:00,264514,36.63,AQ0033,AQUAFAX LIMITED,27/06/2022 00:00,31/07/2022 00:00,P04-2023,
,STANSTEAD RECHARGEABLE WORKS,SUPPLIES AND SERVICES,TRADING AC - EXTERNAL PURCHASE,4875,P117548-SERVICE-chandlery stock,27/07/2022 00:00,264564,14.76,AQ0033,AQUAFAX LIMITED,27/06/2022 00:00,31/07/2022 00:00,P04-2023,
,STANSTEAD RECHARGEABLE WORKS,SUPPLIES AND SERVICES,TRADING AC - EXTERNAL PURCHASE,4875,P118618-SERVICE-Chandlery items,19/07/2022 00:00,264565,6.86,AQ0033,AQUAFAX LIMITED,27/06/2022 00:00,31/07/2022 00:00,P04-2023,
,STANSTEAD RECHARGEABLE WORKS,SUPPLIES AND SERVICES,TRADING AC - EXTERNAL PURCHASE,4875,P118479-SERVICE-chandlery stock,27/07/2022 00:00,264566,30.78,AQ0033,AQUAFAX LIMITED,27/06/2022 00:00,31/07/2022 00:00,P04-2023,
,STANSTEAD RECHARGEABLE WORKS,SUPPLIES AND SERVICES,TRADING AC - EXTERNAL PURCHASE,4875,P118505-SERVICE-chandlery stock,27/07/2022 00:00,264578,41.4,MI0200,MIDLAND CHANDLERS LIMITED,27/06/2022 00:00,31/07/2022 00:00,P04-2023,
,STANSTEAD RECHARGEABLE WORKS,SUPPLIES AND SERVICES,TRADING AC - EXTERNAL PURCHASE,4875,P118505-SERVICE-chandlery stock,27/07/2022 00:00,264579,63.11,MI0200,MIDLAND CHANDLERS LIMITED,27/06/2022 00:00,31/07/2022 00:00,P04-2023,
,STANSTEAD RECHARGEABLE WORKS,SUPPLIES AND SERVICES,TRADING AC - EXTERNAL PURCHASE,4875,P118505-SERVICE-chandlery stock,27/07/2022 00:00,264580,23.68,MI0200,MIDLAND CHANDLERS LIMITED,27/06/2022 00:00,31/07/2022 00:00,P04-2023,
,STANSTEAD RECHARGEABLE WORKS,SUPPLIES AND SERVICES,TRADING AC - EXTERNAL PURCHASE,4875,P118300-SERVICE-chandlery - elsan blue & pinks,11/07/2022 00:00,264674,389.4,EL0376,ELSAN LTD,27/06/2022 00:00,31/07/2022 00:00,P04-2023,
,STANSTEAD RECHARGEABLE WORKS,SUPPLIES AND SERVICES,TRADING AC - EXTERNAL PURCHASE,4875,P118515-SERVICE-chandlery stock,27/07/2022 00:00,264700,105.3,DS0201,DSM GROUP,27/06/2022 00:00,31/07/2022 00:00,P04-2023,
,STANSTEAD RECHARGEABLE WORKS,SUPPLIES AND SERVICES,TRADING AC - EXTERNAL PURCHASE,4875,P118515-SERVICE-chandlery stock,27/07/2022 00:00,264701,300.18,DS0201,DSM GROUP,27/06/2022 00:00,31/07/2022 00:00,P04-2023,
,STANSTEAD RECHARGEABLE WORKS,SUPPLIES AND SERVICES,TRADING AC - EXTERNAL PURCHASE,4875,P118019-SERVICE-CHANDLERY STOCK,27/07/2022 00:00,264743,70.58,MI0200,MIDLAND CHANDLERS LIMITED,27/06/2022 00:00,31/07/2022 00:00,P04-2023,
,STANSTEAD RECHARGEABLE WORKS,SUPPLIES AND SERVICES,TRADING AC - EXTERNAL PURCHASE,4875,P118548-SERVICE-customer order,27/07/2022 00:00,264744,20.96,MI0200,MIDLAND CHANDLERS LIMITED,27/06/2022 00:00,31/07/2022 00:00,P04-2023,
,STANSTEAD RECHARGEABLE WORKS,SUPPLIES AND SERVICES,TRADING AC - EXTERNAL PURCHASE,4875,P118515-SERVICE-chandlery stock,27/07/2022 00:00,264762,357.83,DS0201,DSM GROUP,27/06/2022 00:00,31/07/2022 00:00,P04-2023,
,STANSTEAD RECHARGEABLE WORKS,SUPPLIES AND SERVICES,TRADING AC - EXTERNAL PURCHASE,4875,P118019-SERVICE-CHANDLERY STOCK,27/07/2022 00:00,264773,13.83,MI0200,MIDLAND CHANDLERS LIMITED,27/06/2022 00:00,31/07/2022 00:00,P04-2023,
,STANSTEAD RECHARGEABLE WORKS,SUPPLIES AND SERVICES,TRADING AC - EXTERNAL PURCHASE,4875,P117834-SERVICE-chandlery stock,27/07/2022 00:00,264773,24.21,MI0200,MIDLAND CHANDLERS LIMITED,27/06/2022 00:00,31/07/2022 00:00,P04-2023,
,STANSTEAD RECHARGEABLE WORKS,SUPPLIES AND SERVICES,TRADING AC - EXTERNAL PURCHASE,4875,P118231-SERVICE-ASAP Supplies  chandlery,19/07/2022 00:00,264795,37.63,AS0036,ASAP SUPPLIES,27/06/2022 00:00,31/07/2022 00:00,P04-2023,
,STANSTEAD RECHARGEABLE WORKS,SUPPLIES AND SERVICES,TRADING AC - EXTERNAL PURCHASE,4875,P118543-SERVICE-chandlery items,06/07/2022 00:00,264796,32.82,AS0036,ASAP SUPPLIES,27/06/2022 00:00,31/07/2022 00:00,P04-2023,
,STANSTEAD RECHARGEABLE WORKS,SUPPLIES AND SERVICES,TRADING AC - EXTERNAL PURCHASE,4875,P118569-SERVICE-chandelry stock,27/07/2022 00:00,264828,190.36,MI0200,MIDLAND CHANDLERS LIMITED,27/06/2022 00:00,31/07/2022 00:00,P04-2023,
,STANSTEAD RECHARGEABLE WORKS,SUPPLIES AND SERVICES,TRADING AC - EXTERNAL PURCHASE,4875,P118589-SERVICE-chandlery stock,27/07/2022 00:00,264920,404.17,AQ0033,AQUAFAX LIMITED,27/06/2022 00:00,31/07/2022 00:00,P04-2023,
,STANSTEAD RECHARGEABLE WORKS,SUPPLIES AND SERVICES,TRADING AC - EXTERNAL PURCHASE,4875,P118479-SERVICE-chandlery stock,27/07/2022 00:00,264921,39.53,AQ0033,AQUAFAX LIMITED,27/06/2022 00:00,31/07/2022 00:00,P04-2023,
,STANSTEAD RECHARGEABLE WORKS,SUPPLIES AND SERVICES,TRADING AC - EXTERNAL PURCHASE,4875,P117464-SERVICE-chandlery stock,31/07/2022 00:00,265632,-31.64,MI0200,MIDLAND CHANDLERS LIMITED,27/06/2022 00:00,31/07/2022 00:00,P04-2023,
,STANSTEAD RECHARGEABLE WORKS,SUPPLIES AND SERVICES,TRADING AC - EXTERNAL PURCHASE,4875,P117464-SERVICE-chandlery stock,31/07/2022 00:00,265634,-41.15,MI0200,MIDLAND CHANDLERS LIMITED,27/06/2022 00:00,31/07/2022 00:00,P04-2023,
,LEE VALLEY CAMPSITE,SUPPLIES AND SERVICES,TRADING AC - EXTERNAL PURCHASE,4875,P118787-SERVICE-logs  1 pallet  270 bags,27/07/2022 00:00,265313,702,LO0473,LOGS DIRECT LTD,27/06/2022 00:00,31/07/2022 00:00,P04-2023,
,LEE VALLEY CAMPSITE,SUPPLIES AND SERVICES,TRADING AC - EXTERNAL PURCHASE,4875,P118787-SERVICE-charcoal 50 bags,27/07/2022 00:00,265313,175,LO0473,LOGS DIRECT LTD,27/06/2022 00:00,31/07/2022 00:00,P04-2023,
,LEE VALLEY CAMPSITE,SUPPLIES AND SERVICES,TRAVEL CARDS,4876,P118630-SERVICE-250 x Adult travell cards,11/07/2022 00:00,264937,3242.5,PA0003,TRANSPORT TRADING LIMITED,27/06/2022 00:00,31/07/2022 00:00,P04-2023,
,LEE VALLEY CAMPSITE,SUPPLIES AND SERVICES,BOTTLED GAS,4877,P118632-SERVICE-20x 47 kg,11/07/2022 00:00,264805,712.95,FL0147,FLOGAS BRITAIN LIMITED,27/06/2022 00:00,31/07/2022 00:00,P04-2023,
,LEE VALLEY CAMPSITE,SUPPLIES AND SERVICES,BOTTLED GAS,4877,P118632-SERVICE-delivery,11/07/2022 00:00,264806,9.5,FL0147,FLOGAS BRITAIN LIMITED,27/06/2022 00:00,31/07/2022 00:00,P04-2023,
,LEE VALLEY CAMPSITE,SUPPLIES AND SERVICES,BOTTLED GAS,4877,P118632-SERVICE-2x 19kg,11/07/2022 00:00,264806,55.76,FL0147,FLOGAS BRITAIN LIMITED,27/06/2022 00:00,31/07/2022 00:00,P04-2023,
,LEE VALLEY CAMPSITE,SUPPLIES AND SERVICES,BOTTLED GAS,4877,P118632-SERVICE-Market volatility surcharge,11/07/2022 00:00,264806,50.6,FL0147,FLOGAS BRITAIN LIMITED,27/06/2022 00:00,31/07/2022 00:00,P04-2023,
,LEE VALLEY CAMPSITE,SUPPLIES AND SERVICES,BOTTLED GAS,4877,P118632-SERVICE-20x 47 kg,11/07/2022 00:00,264806,657.45,FL0147,FLOGAS BRITAIN LIMITED,27/06/2022 00:00,31/07/2022 00:00,P04-2023,
,LEE VALLEY CAMPSITE,SUPPLIES AND SERVICES,BOTTLED GAS,4877,P117393-SERVICE-10 x 47 kg cylinders,11/07/2022 00:00,264807,685.2,FL0147,FLOGAS BRITAIN LIMITED,27/06/2022 00:00,31/07/2022 00:00,P04-2023,
,LEE VALLEY CAMPSITE,SUPPLIES AND SERVICES,BOTTLED GAS,4877,P117393-SERVICE-increase to cover invoice,11/07/2022 00:00,264807,6.62,FL0147,FLOGAS BRITAIN LIMITED,27/06/2022 00:00,31/07/2022 00:00,P04-2023,
,LEE VALLEY CAMPSITE,SUPPLIES AND SERVICES,BOTTLED GAS,4877,P118834-SERVICE-8 x 47kg stock,31/07/2022 00:00,265407,586.16,FL0147,FLOGAS BRITAIN LIMITED,27/06/2022 00:00,31/07/2022 00:00,P04-2023,
P&V,MYDDELTON HOUSE,SUPPLIES AND SERVICES,UNRECONCILED COMPANY CARD EXP,4880,G FLAVIEN  - JULY 2022 CCARD STATEMENT,05/07/2022 00:00,264726,93.29,NA0007,NATWEST CARD CENTRE,27/06/2022 00:00,31/07/2022 00:00,P04-2023,
CEO,PR/COMMUNICATIONS,SUPPLIES AND SERVICES,UNRECONCILED COMPANY CARD EXP,4880,S BROMBERG  - JULY 2022 CCARD STATEMENT,05/07/2022 00:00,264726,3389.42,NA0007,NATWEST CARD CENTRE,27/06/2022 00:00,31/07/2022 00:00,P04-2023,
P&V,"ASSET PROTECTION, MAINT, DEVEL",SUPPLIES AND SERVICES,UNRECONCILED COMPANY CARD EXP,4880,S BODELL  - JULY 2022 CCARD STATEMENT,05/07/2022 00:00,264726,58.36,NA0007,NATWEST CARD CENTRE,27/06/2022 00:00,31/07/2022 00:00,P04-2023,
CEO,REGENERATION & PLANNING,SUPPLIES AND SERVICES,UNRECONCILED COMPANY CARD EXP,4880,C MARTIN  - JULY 2022 CCARD STATEMENT,05/07/2022 00:00,264726,956.2,NA0007,NATWEST CARD CENTRE,27/06/2022 00:00,31/07/2022 00:00,P04-2023,
R&B,DEMOCRATIC REPRESENTATION & MA,SUPPLIES AND SERVICES,UNRECONCILED COMPANY CARD EXP,4880,S BERTSCHIN  - JULY 2022 CCARD STATEMENT,05/07/2022 00:00,264726,609.6,NA0007,NATWEST CARD CENTRE,27/06/2022 00:00,31/07/2022 00:00,P04-2023,
R&B,INFORMATION TECHNOLOGY,SUPPLIES AND SERVICES,UNRECONCILED COMPANY CARD EXP,4880,S CLARK  - JULY 2022 CCARD STATEMENT,05/07/2022 00:00,264726,363.23,NA0007,NATWEST CARD CENTRE,27/06/2022 00:00,31/07/2022 00:00,P04-2023,
,LEE VALLEY MARINA SPRINGFIELD,SUPPLIES AND SERVICES,UNRECONCILED COMPANY CARD EXP,4880,T BEAN,05/07/2022 00:00,264726,358.54,NA0007,NATWEST CARD CENTRE,27/06/2022 00:00,31/07/2022 00:00,P04-2023,
,LEE VALLEY MARINA STANSTEAD,SUPPLIES AND SERVICES,UNRECONCILED COMPANY CARD EXP,4880,C BAKER  - JULY 2022 CCARD STATEMENT,05/07/2022 00:00,264726,159.81,NA0007,NATWEST CARD CENTRE,27/06/2022 00:00,31/07/2022 00:00,P04-2023,
P&V,LEE VALLEY FARM HOLYFIELDHALL,SUPPLIES AND SERVICES,UNRECONCILED COMPANY CARD EXP,4880,J PAINTER  - JULY 2022 CCARD STATEMENT,05/07/2022 00:00,264726,225.54,NA0007,NATWEST CARD CENTRE,27/06/2022 00:00,31/07/2022 00:00,P04-2023,
,LEE VALLEY CAMPSITE,SUPPLIES AND SERVICES,UNRECONCILED COMPANY CARD EXP,4880,C CARTER  - JULY 2022 CCARD STATEMENT,05/07/2022 00:00,264726,2982.5,NA0007,NATWEST CARD CENTRE,27/06/2022 00:00,31/07/2022 00:00,P04-2023,
,LEE VALLEY CARAVAN PARK,SUPPLIES AND SERVICES,UNRECONCILED COMPANY CARD EXP,4880,I RUSSELL  - JULY 2022 CCARD STATEMENT,05/07/2022 00:00,264726,1064.08,NA0007,NATWEST CARD CENTRE,27/06/2022 00:00,31/07/2022 00:00,P04-2023,
P&V,MYDDELTON HOUSE GARDENS,SUPPLIES AND SERVICES,UNRECONCILED COMPANY CARD EXP,4880,R HARMES  - JULY 2022 CCARD STATEMENT,05/07/2022 00:00,264726,228.01,NA0007,NATWEST CARD CENTRE,27/06/2022 00:00,31/07/2022 00:00,P04-2023,
P&V,OPERATIONAL MANAGEMENT (L&E),SUPPLIES AND SERVICES,UNRECONCILED COMPANY CARD EXP,4880,J CARNEY  - JULY 2022 CCARD STATEMENT,05/07/2022 00:00,264726,11.4,NA0007,NATWEST CARD CENTRE,27/06/2022 00:00,31/07/2022 00:00,P04-2023,
P&V,OPERATIONAL MANAGEMENT (L&E),SUPPLIES AND SERVICES,UNRECONCILED COMPANY CARD EXP,4880,D HUTLEY  - JULY 2022 CCARD STATEMENT,05/07/2022 00:00,264726,314.91,NA0007,NATWEST CARD CENTRE,27/06/2022 00:00,31/07/2022 00:00,P04-2023,
P&V,OPERATIONAL MANAGEMENT (L&E),SUPPLIES AND SERVICES,UNRECONCILED COMPANY CARD EXP,4880,J HETHERINGTON  - JULY 2022 CCARD STATEMENT,05/07/2022 00:00,264726,125,NA0007,NATWEST CARD CENTRE,27/06/2022 00:00,31/07/2022 00:00,P04-2023,
P&V,POLICY & PERFORMANCE (L&E),SUPPLIES AND SERVICES,UNRECONCILED COMPANY CARD EXP,4880,A SACKETT - JULY 2022 CCARD STATEMENT,05/07/2022 00:00,264726,234.4,NA0007,NATWEST CARD CENTRE,27/06/2022 00:00,31/07/2022 00:00,P04-2023,
P&V,VOLUNTEERS (L&E),SUPPLIES AND SERVICES,UNRECONCILED COMPANY CARD EXP,4880,J WHITEHEAD  - JULY 2022 CCARD STATEMENT,05/07/2022 00:00,264726,2,NA0007,NATWEST CARD CENTRE,27/06/2022 00:00,31/07/2022 00:00,P04-2023,
CEO,COMMERCIAL ACCOMMODATION,SUPPLIES AND SERVICES,OTHER EXPENSES,4899,P117468-SERVICE-Land Registry Fees,31/07/2022 00:00,265549,21,HM0032,HM LAND REGISTRY,27/06/2022 00:00,31/07/2022 00:00,P04-2023,
R&B,FINANCE,SUPPLIES AND SERVICES,OTHER EXPENSES,4899,KENNEDYS,27/07/2022 00:00,265376,0,KE0104,KENNEDYS,27/06/2022 00:00,31/07/2022 00:00,P04-2023,
CEO,COMMONWEALTH GAMES 2022,SUPPLIES AND SERVICES,OTHER EXPENSES,4899,P118647-SERVICE-Items to be hung from Velo roofing,19/07/2022 00:00,265154,2500,EX0288,USEFUL SIMPLE GROUP LTD,27/06/2022 00:00,31/07/2022 00:00,P04-2023,
CEO,COMMONWEALTH GAMES 2022,SUPPLIES AND SERVICES,OTHER EXPENSES,4899,P118677-SERVICE-Security Provision 29/7 -2/8,26/07/2022 00:00,265358,56857.13,WI0227,WISE SECURITY SERVICES,27/06/2022 00:00,31/07/2022 00:00,P04-2023,
CEO,COMMONWEALTH GAMES 2022,SUPPLIES AND SERVICES,OTHER EXPENSES,4899,P118529-SERVICE-CWG Cable tray install,31/07/2022 00:00,265383,1240,RE0094,REACT 2 IT (BUILDING & REFURBISHMENT) LTD,27/06/2022 00:00,31/07/2022 00:00,P04-2023,
CEO,COMMONWEALTH GAMES 2022,SUPPLIES AND SERVICES,OTHER EXPENSES,4899,P118656-SERVICE-Repair to damaged netting as per photograph s,31/07/2022 00:00,265578,650,ST0483,STAN LIMITED,27/06/2022 00:00,31/07/2022 00:00,P04-2023,
,LEE VALLEY CAMPSITE,SUPPLIES AND SERVICES,OTHER EXPENSES,4899,P118240-SERVICE-1x TXM ASSA Keys,20/07/2022 00:00,264684,13.4,LO0020,LOCK AND KEY SERVICES,27/06/2022 00:00,31/07/2022 00:00,P04-2023,
,LEE VALLEY CAMPSITE,SUPPLIES AND SERVICES,OTHER EXPENSES,4899,P118240-SERVICE-Delivery Keys,20/07/2022 00:00,264684,3.33,LO0020,LOCK AND KEY SERVICES,27/06/2022 00:00,31/07/2022 00:00,P04-2023,
,LEE VALLEY CAMPSITE,SUPPLIES AND SERVICES,OTHER EXPENSES,4899,P118743-SERVICE-Shop stock- toys,25/07/2022 00:00,265001,166.94,CR0733,CROSSWEAR TRADING LIMITED,27/06/2022 00:00,31/07/2022 00:00,P04-2023,
,LEE VALLEY CAMPSITE,SUPPLIES AND SERVICES,OTHER EXPENSES,4899,P118702-SERVICE-Sewardstone Peakychairs tables and umbrella,20/07/2022 00:00,265153,279.99,AM0406,AMAZON PAYMENTS UK LIMITED,27/06/2022 00:00,31/07/2022 00:00,P04-2023,
,LEE VALLEY CAMPSITE,SUPPLIES AND SERVICES,OTHER EXPENSES,4899,P118702-SERVICE-Sewardstone Peakychairs tables and umbrella,20/07/2022 00:00,265176,62.49,AM0406,AMAZON PAYMENTS UK LIMITED,27/06/2022 00:00,31/07/2022 00:00,P04-2023,
,LEE VALLEY CAMPSITE,SUPPLIES AND SERVICES,OTHER EXPENSES,4899,P118743-SERVICE-Shop stock- toys,27/07/2022 00:00,265422,-166.94,CR0733,CROSSWEAR TRADING LIMITED,27/06/2022 00:00,31/07/2022 00:00,P04-2023,
,LEE VALLEY CARAVAN PARK,SUPPLIES AND SERVICES,OTHER EXPENSES,4899,P118381-SERVICE-Various Plants,05/07/2022 00:00,264066,230.79,CL0093,CLOCKHOUSE NURSERY,27/06/2022 00:00,31/07/2022 00:00,P04-2023,
,LEE VALLEY CARAVAN PARK,SUPPLIES AND SERVICES,OTHER EXPENSES,4899,P118472-SERVICE-Various Plants - Cap Ex,05/07/2022 00:00,264673,112.82,CL0093,CLOCKHOUSE NURSERY,27/06/2022 00:00,31/07/2022 00:00,P04-2023,
,LEE VALLEY CARAVAN PARK,SUPPLIES AND SERVICES,OTHER EXPENSES,4899,P118240-SERVICE-1x TXM ASSA Keys,20/07/2022 00:00,264684,13.38,LO0020,LOCK AND KEY SERVICES,27/06/2022 00:00,31/07/2022 00:00,P04-2023,
,LEE VALLEY CARAVAN PARK,SUPPLIES AND SERVICES,OTHER EXPENSES,4899,P118240-SERVICE-Delivery Keys,20/07/2022 00:00,264684,3.33,LO0020,LOCK AND KEY SERVICES,27/06/2022 00:00,31/07/2022 00:00,P04-2023,
,LEE VALLEY CARAVAN PARK,SUPPLIES AND SERVICES,OTHER EXPENSES,4899,CAPSER,25/07/2022 00:00,265315,1025,MO0041,CAPSER,27/06/2022 00:00,31/07/2022 00:00,P04-2023,
,LEE VALLEY CARAVAN PARK,SUPPLIES AND SERVICES,OTHER EXPENSES,4899,CAPSER,25/07/2022 00:00,265315,2400,MO0041,CAPSER,27/06/2022 00:00,31/07/2022 00:00,P04-2023,
,LEE VALLEY CARAVAN PARK,SUPPLIES AND SERVICES,OTHER EXPENSES,4899,CAPSER,25/07/2022 00:00,265315,-3425,MO0041,CAPSER,27/06/2022 00:00,31/07/2022 00:00,P04-2023,
,LEE VALLEY CARAVAN PARK,SUPPLIES AND SERVICES,OTHER EXPENSES,4899,P118448-SERVICE-External works on bungalow,25/07/2022 00:00,265315,3425,MO0041,CAPSER,27/06/2022 00:00,31/07/2022 00:00,P04-2023,
P&V,MYDDELTON HOUSE GARDENS,SUPPLIES AND SERVICES,OTHER EXPENSES,4899,P118378-SERVICE-door repair mess room,04/07/2022 00:00,264244,420,CC0751,CCL WOODWORKERS LIMITED,27/06/2022 00:00,31/07/2022 00:00,P04-2023,
P&V,MYDDLETON HSE HERITAGE CENTRE,SUPPLIES AND SERVICES,OTHER EXPENSES,4899,P118526-SERVICE-gardens machinery order 8777,12/07/2022 00:00,264932,3541.28,SA0682,SAM TURNER & SONS LTD,27/06/2022 00:00,31/07/2022 00:00,P04-2023,
P&V,MYDDLETON HSE HERITAGE CENTRE,SUPPLIES AND SERVICES,OTHER EXPENSES,4899,P118526-SERVICE-gardens machinery order 8777,25/07/2022 00:00,265221,-3541.28,SA0682,SAM TURNER & SONS LTD,27/06/2022 00:00,31/07/2022 00:00,P04-2023,
P&V,MYDDLETON HSE HERITAGE CENTRE,SUPPLIES AND SERVICES,OTHER EXPENSES,4899,P118526-SERVICE-gardens machinery order 8777,25/07/2022 00:00,265222,3109.62,SA0682,SAM TURNER & SONS LTD,27/06/2022 00:00,31/07/2022 00:00,P04-2023,
P&V,MYDDLETON HSE HERITAGE CENTRE,SUPPLIES AND SERVICES,OTHER EXPENSES,4899,SAM TURNER & SONS LTD,25/07/2022 00:00,265222,-3109.62,SA0682,SAM TURNER & SONS LTD,27/06/2022 00:00,31/07/2022 00:00,P04-2023,
P&V,MYDDLETON HSE HERITAGE CENTRE,SUPPLIES AND SERVICES,OTHER EXPENSES,4899,SAM TURNER & SONS LTD,25/07/2022 00:00,265222,137.45,SA0682,SAM TURNER & SONS LTD,27/06/2022 00:00,31/07/2022 00:00,P04-2023,
P&V,MYDDLETON HSE HERITAGE CENTRE,SUPPLIES AND SERVICES,OTHER EXPENSES,4899,SAM TURNER & SONS LTD,25/07/2022 00:00,265222,2972.17,SA0682,SAM TURNER & SONS LTD,27/06/2022 00:00,31/07/2022 00:00,P04-2023,
P&V,MYDDLETON HSE HERITAGE CENTRE,SUPPLIES AND SERVICES,OTHER EXPENSES,4899,P118526-SERVICE-gardens machinery order 8777,31/07/2022 00:00,265367,165.83,SA0682,SAM TURNER & SONS LTD,27/06/2022 00:00,31/07/2022 00:00,P04-2023,
P&V,MYDDLETON HSE HERITAGE CENTRE,SUPPLIES AND SERVICES,OTHER EXPENSES,4899,P118526-SERVICE-gardens machinery order 8777,31/07/2022 00:00,265582,265.83,SA0682,SAM TURNER & SONS LTD,27/06/2022 00:00,31/07/2022 00:00,P04-2023,
P&V,RIVER LEE COUNTRY PARK,SUPPLIES AND SERVICES,OTHER EXPENSES,4899,P118567-SERVICE-Animal Disposal,05/07/2022 00:00,264766,8.25,HO0033,HOLTS ABATTOIR LTD,27/06/2022 00:00,31/07/2022 00:00,P04-2023,
P&V,RIVER LEE COUNTRY PARK,SUPPLIES AND SERVICES,OTHER EXPENSES,4899,P118033-SERVICE-Delivery Plaque,13/07/2022 00:00,264794,8.33,JA0162,JAG'S TROPHIES,27/06/2022 00:00,31/07/2022 00:00,P04-2023,
P&V,RIVER LEE COUNTRY PARK,SUPPLIES AND SERVICES,OTHER EXPENSES,4899,P118033-SERVICE-Memorial Bench Plaque - Shirley O'Reilly,13/07/2022 00:00,264794,75,JA0162,JAG'S TROPHIES,27/06/2022 00:00,31/07/2022 00:00,P04-2023,
P&V,COMMUNITY ACCESS FUND,SUPPLIES AND SERVICES,OTHER EXPENSES,4899,P117638-SERVICE-Room hire LV WWC Tuesday 12/4/22,11/07/2022 00:00,264604,68.75,GR0097,GREENWICH LEISURE LTD,27/06/2022 00:00,31/07/2022 00:00,P04-2023,
P&V,COMMUNITY ACCESS FUND,SUPPLIES AND SERVICES,OTHER EXPENSES,4899,P118797-SERVICE-U3A - 4 week Paddling course (50%),27/07/2022 00:00,264605,200,GR0097,GREENWICH LEISURE LTD,27/06/2022 00:00,31/07/2022 00:00,P04-2023,
P&V,COMMUNITY ACCESS FUND,SUPPLIES AND SERVICES,OTHER EXPENSES,4899,P118207-SERVICE-CAF coach payment Woodpecker Hall,20/07/2022 00:00,264985,1249,SO0525,SOUTHGATE & FINCHLEY COACHES LIMITED,27/06/2022 00:00,31/07/2022 00:00,P04-2023,
P&V,COMMUNITY ACCESS FUND,SUPPLIES AND SERVICES,OTHER EXPENSES,4899,P118696-SERVICE-CAF WWC Qrt 1,25/07/2022 00:00,265118,510,GR0097,GREENWICH LEISURE LTD,27/06/2022 00:00,31/07/2022 00:00,P04-2023,
P&V,COMMUNITY ACCESS FUND,SUPPLIES AND SERVICES,OTHER EXPENSES,4899,P118839-SERVICE-cAF Coach Drapers Academy 28/9/22,31/07/2022 00:00,265560,425,BR0510,BRENTWOOD COACHES,27/06/2022 00:00,31/07/2022 00:00,P04-2023,
,LV LEISURE CENTRE CAMPSITE,SUPPLIES AND SERVICES,OTHER EXPENSES,4899,P118240-SERVICE-Delivery Keys,20/07/2022 00:00,264684,3.33,LO0020,LOCK AND KEY SERVICES,27/06/2022 00:00,31/07/2022 00:00,P04-2023,
,LV LEISURE CENTRE CAMPSITE,SUPPLIES AND SERVICES,OTHER EXPENSES,4899,P118240-SERVICE-1x TXM ASSA Keys,20/07/2022 00:00,264684,13.38,LO0020,LOCK AND KEY SERVICES,27/06/2022 00:00,31/07/2022 00:00,P04-2023,
,LV LEISURE CENTRE GOLF COURSE,SUPPLIES AND SERVICES,OTHER EXPENSES,4899,P118532-SERVICE-Dimitri Timesheet 15 x 74,13/07/2022 00:00,264851,1110,NE0225,DIMITRI NEOPHYTOU,27/06/2022 00:00,31/07/2022 00:00,P04-2023,
,LV LEISURE CENTRE GOLF COURSE,SUPPLIES AND SERVICES,OTHER EXPENSES,4899,P118587-SERVICE-Dimitri Timesheet 62 x 15,13/07/2022 00:00,265009,930,NE0225,DIMITRI NEOPHYTOU,27/06/2022 00:00,31/07/2022 00:00,P04-2023,
,LV LEISURE CENTRE GOLF COURSE,SUPPLIES AND SERVICES,OTHER EXPENSES,4899,P118724-SERVICE-Petrol Hazard signs for golf course,31/07/2022 00:00,265228,80,SL0528,SLAM SIGNS LTD,27/06/2022 00:00,31/07/2022 00:00,P04-2023,
P&V,AWARDS AND ACCREDITATIONS,SUPPLIES AND SERVICES,OTHER EXPENSES,4899,P118571-SERVICE-LVRC Quest assessment (Plus),11/07/2022 00:00,264742,1450,4G0455,4GLOBAL CONSULTING LIMITED,27/06/2022 00:00,31/07/2022 00:00,P04-2023,
P&V,AWARDS AND ACCREDITATIONS,SUPPLIES AND SERVICES,OTHER EXPENSES,4899,P118414-SERVICE-Mystery Vists and Quality Audits,05/07/2022 00:00,264753,1125,RI0053,RIGHT DIRECTIONS (MANAGEMENT) LTD,27/06/2022 00:00,31/07/2022 00:00,P04-2023,
P&V,S106 PROJECTS,S106 EXPENDITURE (REVENUE),S106 EXPENDITURE (REVENUE),4985,P118214-SERVICE-Printing 100 Copies of River Lee Country Park,05/07/2022 00:00,264707,619,LI0474,W & J LINNEY LTD T/AS QUADRANT,27/06/2022 00:00,31/07/2022 00:00,P04-2023,
P&V,"ASSET PROTECTION, MAINT, DEVEL",CAPITAL EXPENDITURE,CAPITAL EXPENDITURE,4990,P117141-SERVICE-PowerPro EL380DSP 80kVA / 72KW three phase st,05/07/2022 00:00,264548,2261.89,BP0447,BPC ENERGY LIMITED,27/06/2022 00:00,31/07/2022 00:00,P04-2023,
P&V,"ASSET PROTECTION, MAINT, DEVEL",CAPITAL EXPENDITURE,CAPITAL EXPENDITURE,4990,P118433-SERVICE-Security cover VeloPark,05/07/2022 00:00,264597,739.5,WI0227,WISE SECURITY SERVICES,27/06/2022 00:00,31/07/2022 00:00,P04-2023,
P&V,"ASSET PROTECTION, MAINT, DEVEL",CAPITAL EXPENDITURE,CAPITAL EXPENDITURE,4990,P118433-SERVICE-Additional dates,05/07/2022 00:00,264597,374,WI0227,WISE SECURITY SERVICES,27/06/2022 00:00,31/07/2022 00:00,P04-2023,
P&V,"ASSET PROTECTION, MAINT, DEVEL",CAPITAL EXPENDITURE,CAPITAL EXPENDITURE,4990,P118659-SERVICE-Install large banner at WWC,12/07/2022 00:00,264675,5144.78,SI0434,SIGNS & IMAGING ( SOUTHEAST) LIMITED,27/06/2022 00:00,31/07/2022 00:00,P04-2023,
P&V,"ASSET PROTECTION, MAINT, DEVEL",CAPITAL EXPENDITURE,CAPITAL EXPENDITURE,4990,P118578-SERVICE-LV Velodrome lighting upgrade,11/07/2022 00:00,264687,4683,BD0643,BDP (BUILDING DESIGN PARTNERSHIP LTD),27/06/2022 00:00,31/07/2022 00:00,P04-2023,
P&V,"ASSET PROTECTION, MAINT, DEVEL",CAPITAL EXPENDITURE,CAPITAL EXPENDITURE,4990,P117759-SERVICE-Bollard - Three Mills Green,19/07/2022 00:00,264688,5495,RB0221,R 'n 'B ENGINEERING LTD,27/06/2022 00:00,31/07/2022 00:00,P04-2023,
P&V,"ASSET PROTECTION, MAINT, DEVEL",CAPITAL EXPENDITURE,CAPITAL EXPENDITURE,4990,P118580-SERVICE-Abercrombie lodge,11/07/2022 00:00,264746,180,BR0018,BRADSHAW ELECTRICAL LIMITED,27/06/2022 00:00,31/07/2022 00:00,P04-2023,
P&V,"ASSET PROTECTION, MAINT, DEVEL",CAPITAL EXPENDITURE,CAPITAL EXPENDITURE,4990,P118540-SERVICE-Test Cleaning Patches Woodwork at White Water,11/07/2022 00:00,264774,120,RE0094,REACT 2 IT (BUILDING & REFURBISHMENT) LTD,27/06/2022 00:00,31/07/2022 00:00,P04-2023,
P&V,"ASSET PROTECTION, MAINT, DEVEL",CAPITAL EXPENDITURE,CAPITAL EXPENDITURE,4990,P118539-SERVICE-Emergency Repairs at White Water Centre,11/07/2022 00:00,264775,1070,RE0094,REACT 2 IT (BUILDING & REFURBISHMENT) LTD,27/06/2022 00:00,31/07/2022 00:00,P04-2023,
P&V,"ASSET PROTECTION, MAINT, DEVEL",CAPITAL EXPENDITURE,CAPITAL EXPENDITURE,4990,P118596-SERVICE-Equipment cabinet and associated fixings,12/07/2022 00:00,264926,1238,AL0491,ALTRON COMMUNICATIONS EQUIPMENT LTD,27/06/2022 00:00,31/07/2022 00:00,P04-2023,
P&V,"ASSET PROTECTION, MAINT, DEVEL",CAPITAL EXPENDITURE,CAPITAL EXPENDITURE,4990,P117403-SERVICE-LED lighting replacement project at Velo,25/07/2022 00:00,264967,208482.25,EL0411,ELCOM PROJECTS LTD,27/06/2022 00:00,31/07/2022 00:00,P04-2023,
P&V,"ASSET PROTECTION, MAINT, DEVEL",CAPITAL EXPENDITURE,CAPITAL EXPENDITURE,4990,P117403-SERVICE-Uplift of order as agreed by MS,25/07/2022 00:00,264967,24670.16,EL0411,ELCOM PROJECTS LTD,27/06/2022 00:00,31/07/2022 00:00,P04-2023,
P&V,"ASSET PROTECTION, MAINT, DEVEL",CAPITAL EXPENDITURE,CAPITAL EXPENDITURE,4990,P117759-SERVICE-Bollard - Three Mills Green,19/07/2022 00:00,264986,-5495,RB0221,R 'n 'B ENGINEERING LTD,27/06/2022 00:00,31/07/2022 00:00,P04-2023,
P&V,"ASSET PROTECTION, MAINT, DEVEL",CAPITAL EXPENDITURE,CAPITAL EXPENDITURE,4990,P118400-SERVICE-2 no PL7121/935 350kw FLYGT Cast Iron Submers,19/07/2022 00:00,264989,110106.42,CL0039,XYLEM WATER SOLUTIONS UK  LIMITED,27/06/2022 00:00,31/07/2022 00:00,P04-2023,
P&V,"ASSET PROTECTION, MAINT, DEVEL",CAPITAL EXPENDITURE,CAPITAL EXPENDITURE,4990,P118593-SERVICE-Check Window Opening Abercrombie Lodge,19/07/2022 00:00,265014,120,RE0094,REACT 2 IT (BUILDING & REFURBISHMENT) LTD,27/06/2022 00:00,31/07/2022 00:00,P04-2023,
P&V,"ASSET PROTECTION, MAINT, DEVEL",CAPITAL EXPENDITURE,CAPITAL EXPENDITURE,4990,P118071-SERVICE-Overnight security at VeloPark as discussed,25/07/2022 00:00,265190,1181.5,WI0227,WISE SECURITY SERVICES,27/06/2022 00:00,31/07/2022 00:00,P04-2023,
P&V,"ASSET PROTECTION, MAINT, DEVEL",CAPITAL EXPENDITURE,CAPITAL EXPENDITURE,4990,P118311-SERVICE-LVVP - Commissioning of Concourse Lighting,25/07/2022 00:00,265216,3500,PH0319,SIGNIFY COMMERCIAL UK LIMITED (PHILIPS LIGHTI,27/06/2022 00:00,31/07/2022 00:00,P04-2023,
P&V,"ASSET PROTECTION, MAINT, DEVEL",CAPITAL EXPENDITURE,CAPITAL EXPENDITURE,4990,P118309-SERVICE-Tottenham Marshes,31/07/2022 00:00,265379,6925.8,HE0297,HENDERSON & TAYLOR (PUBLIC WORKS LIMITED),27/06/2022 00:00,31/07/2022 00:00,P04-2023,
P&V,"ASSET PROTECTION, MAINT, DEVEL",CAPITAL EXPENDITURE,CAPITAL EXPENDITURE,4990,P117893-SERVICE-Gulley works,31/07/2022 00:00,265384,1480,RE0094,REACT 2 IT (BUILDING & REFURBISHMENT) LTD,27/06/2022 00:00,31/07/2022 00:00,P04-2023,
P&V,"ASSET PROTECTION, MAINT, DEVEL",CAPITAL EXPENDITURE,CAPITAL EXPENDITURE,4990,P117891-SERVICE-HTC - Roof Walkways urgent works,31/07/2022 00:00,265385,1920,RE0094,REACT 2 IT (BUILDING & REFURBISHMENT) LTD,27/06/2022 00:00,31/07/2022 00:00,P04-2023,
P&V,"ASSET PROTECTION, MAINT, DEVEL",CAPITAL EXPENDITURE,CAPITAL EXPENDITURE,4990,P118476-SERVICE-Double Glazing Unit at Abercrombie Lodge,31/07/2022 00:00,265515,644,TO0639,TOWNS-END DOUBLE GLAZING LTD,27/06/2022 00:00,31/07/2022 00:00,P04-2023,
P&V,"ASSET PROTECTION, MAINT, DEVEL",CAPITAL EXPENDITURE,CAPITAL EXPENDITURE,4990,P118262-SERVICE-Springfield Marina - Sewage Pipework,31/07/2022 00:00,265534,632,CL0039,XYLEM WATER SOLUTIONS UK  LIMITED,27/06/2022 00:00,31/07/2022 00:00,P04-2023,
P&V,"ASSET PROTECTION, MAINT, DEVEL",CAPITAL EXPENDITURE,CAPITAL EXPENDITURE,4990,P118217-SERVICE-External Decoration Abercrombie Lodge using D,31/07/2022 00:00,265546,6450,BE0563,BELL DECORATING  GROUP LTD,27/06/2022 00:00,31/07/2022 00:00,P04-2023,
P&V,"ASSET PROTECTION, MAINT, DEVEL",CAPITAL EXPENDITURE,CAPITAL EXPENDITURE,4990,P117141-SERVICE-PowerPro EL380DSP 80kVA / 72KW three phase st,31/07/2022 00:00,265559,4500,BP0447,BPC ENERGY LIMITED,27/06/2022 00:00,31/07/2022 00:00,P04-2023,
R&B,INFORMATION TECHNOLOGY,CAPITAL EXPENDITURE,CAPITAL EXPENDITURE,4990,P118432-SERVICE-LG Screen - order ref no. ECT00984639,19/07/2022 00:00,264922,332.59,SO0480,SOFTCAT LTD,27/06/2022 00:00,31/07/2022 00:00,P04-2023,
R&B,INFORMATION TECHNOLOGY,CAPITAL EXPENDITURE,CAPITAL EXPENDITURE,4990,P118432-SERVICE-Shipping,19/07/2022 00:00,264922,7.5,SO0480,SOFTCAT LTD,27/06/2022 00:00,31/07/2022 00:00,P04-2023,
,LEE VALLEY CAMPSITE,CAPITAL EXPENDITURE,CAPITAL EXPENDITURE,4990,P118835-SERVICE-Fixtures & fittings for Peakys -  various,31/07/2022 00:00,264996,200.96,BQ0164,TRADE UK ACCOUNT,27/06/2022 00:00,31/07/2022 00:00,P04-2023,
,LEE VALLEY CAMPSITE,CAPITAL EXPENDITURE,CAPITAL EXPENDITURE,4990,P115215-SERVICE-Centre  Touring Supply,25/07/2022 00:00,265208,1000,BR0018,BRADSHAW ELECTRICAL LIMITED,27/06/2022 00:00,31/07/2022 00:00,P04-2023,
,LEE VALLEY CAMPSITE,CAPITAL EXPENDITURE,CAPITAL EXPENDITURE,4990,P118835-SERVICE-Fixtures & fittings for Peakys -  various,31/07/2022 00:00,265373,79.23,BQ0164,TRADE UK ACCOUNT,27/06/2022 00:00,31/07/2022 00:00,P04-2023,
P&V,BIODIVERSITY ACTION PLAN,CAPITAL EXPENDITURE,CAPITAL EXPENDITURE,4990,P118161-SERVICE-Supply and Planting of 750 1L Phragmites Aust,11/07/2022 00:00,264813,4050,AQ0410,AQUAMAINTAIN LTD,27/06/2022 00:00,31/07/2022 00:00,P04-2023,
,LEE VALLEY ICE CENTRE,CAPITAL EXPENDITURE,CAPITAL EXPENDITURE,4990,P118570-SERVICE-IC Redevelopment June 22 project management,11/07/2022 00:00,264765,51990,WR0199,WRENBRIDGE LAND LTD,27/06/2022 00:00,31/07/2022 00:00,P04-2023,
,LEE VALLEY ICE CENTRE,CAPITAL EXPENDITURE,CAPITAL EXPENDITURE,4990,P118657-SERVICE-IC contracted works as per certificate 012,12/07/2022 00:00,264919,1471454.04,BU0634,BUCKINGHAM GROUP CONTRACTING LIMITED,27/06/2022 00:00,31/07/2022 00:00,P04-2023,
,LEE VALLEY ICE CENTRE,CAPITAL EXPENDITURE,CAPITAL EXPENDITURE,4990,P118769-SERVICE-IC Proffessional fees July 21 - March 22,25/07/2022 00:00,265329,3926.95,FO0283,FORSTERS LLP,27/06/2022 00:00,31/07/2022 00:00,P04-2023,
,LEE VALLEY ICE CENTRE,CAPITAL EXPENDITURE,CAPITAL EXPENDITURE,4990,P118867-SERVICE-Works as per interim certificate 13,31/07/2022 00:00,265590,1807435.42,BU0634,BUCKINGHAM GROUP CONTRACTING LIMITED,27/06/2022 00:00,31/07/2022 00:00,P04-2023,
P&V,EVENTS MANAGEMENT (PR),THIRD PARTY PAYMENTS,EVENTS,5101,P118661-SERVICE-Annual membership 2022/23,13/07/2022 00:00,264931,240,NA0207,NATIONAL OUTDOOR EVENTS ASSOCIATION,27/06/2022 00:00,31/07/2022 00:00,P04-2023,
CEO,PR/COMMUNICATIONS,THIRD PARTY PAYMENTS,CONSULTANTS (GENERAL),5110,KENDALL & SONS LIMITED,05/07/2022 00:00,264145,-787,KE0023,KENDALL & SONS LIMITED,27/06/2022 00:00,31/07/2022 00:00,P04-2023,
CEO,PR/COMMUNICATIONS,THIRD PARTY PAYMENTS,CONSULTANTS (GENERAL),5110,P118219-SERVICE-Supply and fit 7 no. posts at different locat,05/07/2022 00:00,264145,787,KE0023,KENDALL & SONS LIMITED,27/06/2022 00:00,31/07/2022 00:00,P04-2023,
CEO,PR/COMMUNICATIONS,THIRD PARTY PAYMENTS,CONSULTANTS (GENERAL),5110,KENDALL & SONS LIMITED,05/07/2022 00:00,264145,617,KE0023,KENDALL & SONS LIMITED,27/06/2022 00:00,31/07/2022 00:00,P04-2023,
CEO,PR/COMMUNICATIONS,THIRD PARTY PAYMENTS,CONSULTANTS (GENERAL),5110,KENDALL & SONS LIMITED,05/07/2022 00:00,264145,170,KE0023,KENDALL & SONS LIMITED,27/06/2022 00:00,31/07/2022 00:00,P04-2023,
CEO,PR/COMMUNICATIONS,THIRD PARTY PAYMENTS,CONSULTANTS (GENERAL),5110,P118145-SERVICE-Composite panels x 7,04/07/2022 00:00,264502,27.5,SI0024,SIGNS EXPRESS (HARLOW),27/06/2022 00:00,31/07/2022 00:00,P04-2023,
CEO,PR/COMMUNICATIONS,THIRD PARTY PAYMENTS,CONSULTANTS (GENERAL),5110,P118107-SERVICE-Communications Support for 2022-23,04/07/2022 00:00,264557,5000,LO0024,LONDON COMMUNICATIONS AGENCY LTD,27/06/2022 00:00,31/07/2022 00:00,P04-2023,
CEO,PR/COMMUNICATIONS,THIRD PARTY PAYMENTS,CONSULTANTS (GENERAL),5110,P118107-SERVICE-Communications Support for 2022-23,04/07/2022 00:00,264601,1500,LO0024,LONDON COMMUNICATIONS AGENCY LTD,27/06/2022 00:00,31/07/2022 00:00,P04-2023,
CEO,PR/COMMUNICATIONS,THIRD PARTY PAYMENTS,CONSULTANTS (GENERAL),5110,P118107-SERVICE-Communications Support for 2022-23,25/07/2022 00:00,265195,2250,LO0024,LONDON COMMUNICATIONS AGENCY LTD,27/06/2022 00:00,31/07/2022 00:00,P04-2023,
P&V,"ASSET PROTECTION, MAINT, DEVEL",THIRD PARTY PAYMENTS,CONSULTANTS (GENERAL),5110,P115823-SERVICE-Elec Veh Charging Points Proj,05/07/2022 00:00,264574,6158.25,PE0379,PERFECT CIRCLE JV LTD,27/06/2022 00:00,31/07/2022 00:00,P04-2023,
P&V,"ASSET PROTECTION, MAINT, DEVEL",THIRD PARTY PAYMENTS,CONSULTANTS (GENERAL),5110,P116052-SERVICE-LVAC re top indoor track,05/07/2022 00:00,264598,800,SP0182,SPORTS LABS LTD,27/06/2022 00:00,31/07/2022 00:00,P04-2023,
P&V,"ASSET PROTECTION, MAINT, DEVEL",THIRD PARTY PAYMENTS,CONSULTANTS (GENERAL),5110,P118537-SERVICE-WWC Extreme slalom starter ramp,11/07/2022 00:00,264778,1020,AN0029,ANDRIS BERZINS + ASSOCIATES,27/06/2022 00:00,31/07/2022 00:00,P04-2023,
P&V,"ASSET PROTECTION, MAINT, DEVEL",THIRD PARTY PAYMENTS,CONSULTANTS (GENERAL),5110,P118667-SERVICE-WWC Feasibility study for Extreme Kayak launc,12/07/2022 00:00,264948,12000,EX0288,USEFUL SIMPLE GROUP LTD,27/06/2022 00:00,31/07/2022 00:00,P04-2023,
P&V,"ASSET PROTECTION, MAINT, DEVEL",THIRD PARTY PAYMENTS,CONSULTANTS (GENERAL),5110,P118872-SERVICE-feasibility study for extreme kayak launch br,31/07/2022 00:00,265390,13000,EX0288,USEFUL SIMPLE GROUP LTD,27/06/2022 00:00,31/07/2022 00:00,P04-2023,
P&V,"ASSET PROTECTION, MAINT, DEVEL",THIRD PARTY PAYMENTS,CONSULTANTS (GENERAL),5110,P116052-SERVICE-LVAC re top indoor track,31/07/2022 00:00,265519,500,SP0182,SPORTS LABS LTD,27/06/2022 00:00,31/07/2022 00:00,P04-2023,
R&B,FINANCE & RESOURCES MANAGEMENT,THIRD PARTY PAYMENTS,CONSULTANTS (GENERAL),5110,P118572-SERVICE-VAT advice in connection with various sports,12/07/2022 00:00,264727,4500,KP0010,KPMG TAX ADVISERS,27/06/2022 00:00,31/07/2022 00:00,P04-2023,
R&B,FINANCE & RESOURCES MANAGEMENT,THIRD PARTY PAYMENTS,CONSULTANTS (GENERAL),5110,P118579-SERVICE-helpline for period 1/7/22 - 30/9/22,12/07/2022 00:00,264728,800,KP0010,KPMG TAX ADVISERS,27/06/2022 00:00,31/07/2022 00:00,P04-2023,
R&B,INTERNAL AUDIT/HEALTH & SAFETY,THIRD PARTY PAYMENTS,CONSULTANTS (GENERAL),5110,P117619-SERVICE-H&S support April - Sept 2022,05/07/2022 00:00,264752,7108.33,RI0181,RD HEALTH & SAFETY LIMITED,27/06/2022 00:00,31/07/2022 00:00,P04-2023,
R&B,INTERNAL AUDIT/HEALTH & SAFETY,THIRD PARTY PAYMENTS,CONSULTANTS (GENERAL),5110,P117619-SERVICE-H&S support April - Sept 2022,31/07/2022 00:00,265591,7108.33,RI0181,RD HEALTH & SAFETY LIMITED,27/06/2022 00:00,31/07/2022 00:00,P04-2023,
CEO,LEGAL SERVICES,THIRD PARTY PAYMENTS,CONSULTANTS (GENERAL),5110,P118638-SERVICE-GLL - Clarity System Advice,12/07/2022 00:00,264771,1034.5,WO0344,WOMBLE BOND DICKINSON (UK) LLP,27/06/2022 00:00,31/07/2022 00:00,P04-2023,
CEO,LEGAL SERVICES,THIRD PARTY PAYMENTS,CONSULTANTS (GENERAL),5110,P118639-SERVICE-GLL Advice,12/07/2022 00:00,264772,1472.92,WO0344,WOMBLE BOND DICKINSON (UK) LLP,27/06/2022 00:00,31/07/2022 00:00,P04-2023,
CEO,LEGAL SERVICES,THIRD PARTY PAYMENTS,CONSULTANTS (GENERAL),5110,"P118640-SERVICE-Substation Lease, LVIC Advice",12/07/2022 00:00,264944,2016.4,WO0344,WOMBLE BOND DICKINSON (UK) LLP,27/06/2022 00:00,31/07/2022 00:00,P04-2023,
CEO,LEGAL SERVICES,THIRD PARTY PAYMENTS,CONSULTANTS (GENERAL),5110,P118641-SERVICE-GLL - IT Agreement Advice,13/07/2022 00:00,264971,4850,WO0344,WOMBLE BOND DICKINSON (UK) LLP,27/06/2022 00:00,31/07/2022 00:00,P04-2023,
CEO,LEGAL SERVICES,THIRD PARTY PAYMENTS,CONSULTANTS (GENERAL),5110,P118848-SERVICE-GLL Advice,31/07/2022 00:00,265570,4203.1,WO0344,WOMBLE BOND DICKINSON (UK) LLP,27/06/2022 00:00,31/07/2022 00:00,P04-2023,
CEO,LEGAL SERVICES,THIRD PARTY PAYMENTS,CONSULTANTS (GENERAL),5110,P118849-SERVICE-GLL IT Advice,31/07/2022 00:00,265571,691.6,WO0344,WOMBLE BOND DICKINSON (UK) LLP,27/06/2022 00:00,31/07/2022 00:00,P04-2023,
CEO,LEGAL SERVICES,THIRD PARTY PAYMENTS,CONSULTANTS (GENERAL),5110,P118884-SERVICE-Dispute with Trust Advice,31/07/2022 00:00,265638,18143.13,WO0344,WOMBLE BOND DICKINSON (UK) LLP,27/06/2022 00:00,31/07/2022 00:00,P04-2023,
P&V,SPORTS DEVELOPMENT GRANTS & AG,THIRD PARTY PAYMENTS,CONTRIBUTIONS/GRANTS MADE,5140,AC GRANT 412 BRITISH CYCLING,27/07/2022 00:00,265391,5000,NA0054,BRITISH CYCLING FEDERATION,27/06/2022 00:00,31/07/2022 00:00,P04-2023,
R&B,BALANCE SHEET (AUTHORITY),CREDITORS,EMPLOYEES INCOME TAX,6701,PAYE,19/07/2022 00:00,265150,51342.25,HM0368,HMRC,27/06/2022 00:00,31/07/2022 00:00,P04-2023,
R&B,BALANCE SHEET (AUTHORITY),CREDITORS,EMPLOYEES NATIONAL INSURANCE,6702,PAYE,19/07/2022 00:00,265150,26846.84,HM0368,HMRC,27/06/2022 00:00,31/07/2022 00:00,P04-2023,
R&B,BALANCE SHEET (AUTHORITY),CREDITORS,EMPLOYERS NATIONAL INSURANCE,6704,PAYE,19/07/2022 00:00,265150,41128.38,HM0368,HMRC,27/06/2022 00:00,31/07/2022 00:00,P04-2023,
R&B,BALANCE SHEET (AUTHORITY),CREDITORS,EMPLOYEES PENSION LGPS,6706,EMPLOYEE CONTRIBUTIONS,19/07/2022 00:00,265149,24254.13,LO0334,LONDON PENSION FUND OPERATIONAL ACCOUNT,27/06/2022 00:00,31/07/2022 00:00,P04-2023,
R&B,BALANCE SHEET (AUTHORITY),CREDITORS,EMPLOYEES PENSION LGPS,6706,AVC CONTRIBUTIONS,19/07/2022 00:00,265151,125,LO0455,LOCAL GOVERNMENT AVC DEPARTMENT,27/06/2022 00:00,31/07/2022 00:00,P04-2023,
R&B,BALANCE SHEET (AUTHORITY),CREDITORS,EMPLOYERS PENSION LGPS,6707,EMPLOYER CONTRIBUTIONS,19/07/2022 00:00,265149,52268.2,LO0334,LONDON PENSION FUND OPERATIONAL ACCOUNT,27/06/2022 00:00,31/07/2022 00:00,P04-2023,
R&B,BALANCE SHEET (AUTHORITY),CREDITORS,EMPLOYEES STUDENT LOANS,6709,PAYE,19/07/2022 00:00,265150,1089,HM0368,HMRC,27/06/2022 00:00,31/07/2022 00:00,P04-2023,
R&B,BALANCE SHEET (AUTHORITY),CREDITORS,EMPLOYEES AEO/DEO,6710,ATTACHMENT OF EARNINGS,19/07/2022 00:00,265148,267.02,HM0458,HMCTS-HERTFORDSHIRE MAGISTRATES COURT,27/06/2022 00:00,31/07/2022 00:00,P04-2023,
R&B,BALANCE SHEET (AUTHORITY),CREDITORS,EMPLOYEES UNION SUBSCRIPTIONS,6711,MEMBERSHIP FEES,19/07/2022 00:00,265152,57,UN0002,UNISON Greater London Region,27/06/2022 00:00,31/07/2022 00:00,P04-2023,
R&B,BALANCE SHEET (AUTHORITY),CREDITORS,EMPLOYEES SMP/SSP,6712,PAYE,19/07/2022 00:00,265150,-555.92,HM0368,HMRC,27/06/2022 00:00,31/07/2022 00:00,P04-2023,
R&B,BALANCE SHEET (AUTHORITY),CREDITORS,CONSTRUCTION INDUSTRY SCHEME,6721,R G JOYCE,29/06/2022 00:00,264636,-199,JO0019,R G JOYCE,27/06/2022 00:00,31/07/2022 00:00,P04-2023,
R&B,BALANCE SHEET (AUTHORITY),CREDITORS,CONSTRUCTION INDUSTRY SCHEME,6721,KENDALL & SONS LIMITED,29/06/2022 00:00,264639,-16,KE0023,KENDALL & SONS LIMITED,27/06/2022 00:00,31/07/2022 00:00,P04-2023,
R&B,BALANCE SHEET (AUTHORITY),CREDITORS,CONSTRUCTION INDUSTRY SCHEME,6721,KENDALL & SONS LIMITED,06/07/2022 00:00,264890,-70,KE0023,KENDALL & SONS LIMITED,27/06/2022 00:00,31/07/2022 00:00,P04-2023,
R&B,BALANCE SHEET (AUTHORITY),CREDITORS,CONSTRUCTION INDUSTRY SCHEME,6721,CASPER,13/07/2022 00:00,264984,1013,IN0016,INLAND REVENUE ONLY 948/L1005,27/06/2022 00:00,31/07/2022 00:00,P04-2023,
R&B,BALANCE SHEET (AUTHORITY),CREDITORS,CONSTRUCTION INDUSTRY SCHEME,6721,JOYCE,13/07/2022 00:00,264984,427,IN0016,INLAND REVENUE ONLY 948/L1005,27/06/2022 00:00,31/07/2022 00:00,P04-2023,
R&B,BALANCE SHEET (AUTHORITY),CREDITORS,CONSTRUCTION INDUSTRY SCHEME,6721,KENDALL,13/07/2022 00:00,264984,205.6,IN0016,INLAND REVENUE ONLY 948/L1005,27/06/2022 00:00,31/07/2022 00:00,P04-2023,
R&B,BALANCE SHEET (AUTHORITY),CREDITORS,CONSTRUCTION INDUSTRY SCHEME,6721,KENDALL & SONS LIMITED,13/07/2022 00:00,265078,-35,KE0023,KENDALL & SONS LIMITED,27/06/2022 00:00,31/07/2022 00:00,P04-2023,
R&B,BALANCE SHEET (AUTHORITY),CREDITORS,CONSTRUCTION INDUSTRY SCHEME,6721,CAPSER,27/07/2022 00:00,265482,-597.4,MO0041,CAPSER,27/06/2022 00:00,31/07/2022 00:00,P04-2023,
R&B,BALANCE SHEET (AUTHORITY),CL SUSPENSE,INSURANCE SUSPENSE,6861,NFU MUTUAL INSURANCES SOCIETY ,27/07/2022 00:00,265397,1863.64,NF0013,NFU MUTUAL INSURANCES SOCIETY LTD,27/06/2022 00:00,31/07/2022 00:00,P04-2023,
R&B,BALANCE SHEET (AUTHORITY),CA SUSPENSE,RECEIPT/PAYMENT PSEUDO BANK AC,6884,EDF ENERGY 1 LIMITED,13/07/2022 00:00,265108,79.91,ED0077,EDF ENERGY 1 LIMITED,27/06/2022 00:00,31/07/2022 00:00,P04-2023,
R&B,REVENUE SUSPENSE (AUTHORITY),GENERAL SUSPENSE,GENERAL SUSPENSE,6890,DAISY COMMUNICATIONS LTD,11/07/2022 00:00,264941,2207.31,ID0002,DAISY COMMUNICATIONS LTD,27/06/2022 00:00,31/07/2022 00:00,P04-2023,
,LEE VALLEY CAMPSITE,INCOME,TOURING FEES,9376,NEWMAN CATHOLIC COLLEGE,19/07/2022 00:00,265175,124.5,NE0227,NEWMAN CATHOLIC COLLEGE,27/06/2022 00:00,31/07/2022 00:00,P04-2023,
P&V,CAR PARK INCOME,INCOME,CAR PARKING INCOME,9730,PARKINGEYE LIMITED,05/07/2022 00:00,264729,-109,PA0372,PARKINGEYE LIMITED,27/06/2022 00:00,31/07/2022 00:00,P04-2023,
P&V,CAR PARK INCOME,INCOME,CAR PARKING INCOME,9730,PARKINGEYE LIMITED,05/07/2022 00:00,264730,-22,PA0372,PARKINGEYE LIMITED,27/06/2022 00:00,31/07/2022 00:00,P04-2023,
P&V,CAR PARK INCOME,INCOME,CAR PARKING INCOME,9730,PARKINGEYE LIMITED,05/07/2022 00:00,264731,-57.68,PA0372,PARKINGEYE LIMITED,27/06/2022 00:00,31/07/2022 00:00,P04-2023,
P&V,CAR PARK INCOME,INCOME,CAR PARKING INCOME,9730,PARKINGEYE LIMITED,05/07/2022 00:00,264732,-58.68,PA0372,PARKINGEYE LIMITED,27/06/2022 00:00,31/07/2022 00:00,P04-2023,
P&V,CAR PARK INCOME,INCOME,CAR PARKING INCOME,9730,PARKINGEYE LIMITED,05/07/2022 00:00,264733,-91,PA0372,PARKINGEYE LIMITED,27/06/2022 00:00,31/07/2022 00:00,P04-2023,
P&V,CAR PARK INCOME,INCOME,CAR PARKING INCOME,9730,PARKINGEYE LIMITED,05/07/2022 00:00,264734,-66.68,PA0372,PARKINGEYE LIMITED,27/06/2022 00:00,31/07/2022 00:00,P04-2023,
P&V,CAR PARK INCOME,INCOME,CAR PARKING INCOME,9730,PARKINGEYE LIMITED,05/07/2022 00:00,264735,-48.5,PA0372,PARKINGEYE LIMITED,27/06/2022 00:00,31/07/2022 00:00,P04-2023,
P&V,CAR PARK INCOME,INCOME,CAR PARKING INCOME,9730,P118582-SERVICE-Paid Parking Tickets used GPP - Jun 2022,11/07/2022 00:00,264736,2.8,PA0372,PARKINGEYE LIMITED,27/06/2022 00:00,31/07/2022 00:00,P04-2023,
P&V,CAR PARK INCOME,INCOME,CAR PARKING INCOME,9730,P118582-SERVICE-Paid Parking Tickets used FG - Jun 2022,11/07/2022 00:00,264736,2.44,PA0372,PARKINGEYE LIMITED,27/06/2022 00:00,31/07/2022 00:00,P04-2023,
P&V,CAR PARK INCOME,INCOME,CAR PARKING INCOME,9730,P118582-SERVICE-Paid Parking Tickets used CMM - Jun 2022,11/07/2022 00:00,264736,0.97,PA0372,PARKINGEYE LIMITED,27/06/2022 00:00,31/07/2022 00:00,P04-2023,
P&V,CAR PARK INCOME,INCOME,CAR PARKING INCOME,9730,P118582-SERVICE-Paid Parking Tickets used WAG - Jun 2022,11/07/2022 00:00,264736,3.04,PA0372,PARKINGEYE LIMITED,27/06/2022 00:00,31/07/2022 00:00,P04-2023,
P&V,CAR PARK INCOME,INCOME,CAR PARKING INCOME,9730,PARKINGEYE LIMITED,11/07/2022 00:00,264779,-44.75,PA0372,PARKINGEYE LIMITED,27/06/2022 00:00,31/07/2022 00:00,P04-2023,
P&V,CAR PARK INCOME,INCOME,CAR PARKING INCOME,9730,PARKINGEYE LIMITED,11/07/2022 00:00,264779,4.62,PA0372,PARKINGEYE LIMITED,27/06/2022 00:00,31/07/2022 00:00,P04-2023,
P&V,CAR PARK INCOME,INCOME,CAR PARKING INCOME,9730,PARKINGEYE LIMITED,11/07/2022 00:00,264780,30.69,PA0372,PARKINGEYE LIMITED,27/06/2022 00:00,31/07/2022 00:00,P04-2023,
P&V,CAR PARK INCOME,INCOME,CAR PARKING INCOME,9730,PARKINGEYE LIMITED,11/07/2022 00:00,264780,-364.68,PA0372,PARKINGEYE LIMITED,27/06/2022 00:00,31/07/2022 00:00,P04-2023,
P&V,CAR PARK INCOME,INCOME,CAR PARKING INCOME,9730,PARKINGEYE LIMITED,11/07/2022 00:00,264781,-3679.1,PA0372,PARKINGEYE LIMITED,27/06/2022 00:00,31/07/2022 00:00,P04-2023,
P&V,CAR PARK INCOME,INCOME,CAR PARKING INCOME,9730,PARKINGEYE LIMITED,11/07/2022 00:00,264781,241.56,PA0372,PARKINGEYE LIMITED,27/06/2022 00:00,31/07/2022 00:00,P04-2023,
P&V,CAR PARK INCOME,INCOME,CAR PARKING INCOME,9730,PARKINGEYE LIMITED,11/07/2022 00:00,264782,-33.39,PA0372,PARKINGEYE LIMITED,27/06/2022 00:00,31/07/2022 00:00,P04-2023,
P&V,CAR PARK INCOME,INCOME,CAR PARKING INCOME,9730,PARKINGEYE LIMITED,11/07/2022 00:00,264782,3.3,PA0372,PARKINGEYE LIMITED,27/06/2022 00:00,31/07/2022 00:00,P04-2023,
P&V,CAR PARK INCOME,INCOME,CAR PARKING INCOME,9730,PARKINGEYE LIMITED,11/07/2022 00:00,264783,10.23,PA0372,PARKINGEYE LIMITED,27/06/2022 00:00,31/07/2022 00:00,P04-2023,
P&V,CAR PARK INCOME,INCOME,CAR PARKING INCOME,9730,PARKINGEYE LIMITED,11/07/2022 00:00,264783,-94.52,PA0372,PARKINGEYE LIMITED,27/06/2022 00:00,31/07/2022 00:00,P04-2023,
P&V,CAR PARK INCOME,INCOME,CAR PARKING INCOME,9730,PARKINGEYE LIMITED,11/07/2022 00:00,264784,70.29,PA0372,PARKINGEYE LIMITED,27/06/2022 00:00,31/07/2022 00:00,P04-2023,
P&V,CAR PARK INCOME,INCOME,CAR PARKING INCOME,9730,PARKINGEYE LIMITED,11/07/2022 00:00,264784,-1065.17,PA0372,PARKINGEYE LIMITED,27/06/2022 00:00,31/07/2022 00:00,P04-2023,
P&V,CAR PARK INCOME,INCOME,CAR PARKING INCOME,9730,PARKINGEYE LIMITED,11/07/2022 00:00,264785,-900.2,PA0372,PARKINGEYE LIMITED,27/06/2022 00:00,31/07/2022 00:00,P04-2023,
P&V,CAR PARK INCOME,INCOME,CAR PARKING INCOME,9730,PARKINGEYE LIMITED,11/07/2022 00:00,264785,60.72,PA0372,PARKINGEYE LIMITED,27/06/2022 00:00,31/07/2022 00:00,P04-2023,
P&V,CAR PARK INCOME,INCOME,CAR PARKING INCOME,9730,PARKINGEYE LIMITED,18/07/2022 00:00,265026,-121.66,PA0372,PARKINGEYE LIMITED,27/06/2022 00:00,31/07/2022 00:00,P04-2023,
